OrganisationName,OrganisationCode,EffectiveDate,DirectorateService,SupplierName,PaymentDate,TransactionNumber,NetAmount,IrrecoverableVAT,PurposeOfSpend,CouncilProcurementCategoryName
Leeds City Council,http://opendatacommunities.org/id/metropolitan-district-council/leeds,12/11/2014,Strategic & Central,1st Barwick Brownies,25/03/2014,20131400001,500,0,Locality grant,Supplies & Services
Leeds City Council,http://opendatacommunities.org/id/metropolitan-district-council/leeds,12/11/2014,Citizens & Communities,1st Cross Gate Rainbows,04/12/2013,20131400002,250,0,Proceeds of Crime grant,Supplies & Services
Leeds City Council,http://opendatacommunities.org/id/metropolitan-district-council/leeds,12/11/2014,Citizens & Communities,1st Cross Gate Rainbows,11/02/2014,20131400003,250,0,Proceeds of Crime grant,Supplies & Services
Leeds City Council,http://opendatacommunities.org/id/metropolitan-district-council/leeds,12/11/2014,Citizens & Communities,1st Cross Gates Guides,11/11/2013,20131400004,250,0,Proceeds of Crime grant,Supplies & Services
Leeds City Council,http://opendatacommunities.org/id/metropolitan-district-council/leeds,12/11/2014,Strategic & Central,1st Drighlington Girls Brigade,14/01/2014,20131400005,100,0,Locality grant,Supplies & Services
Leeds City Council,http://opendatacommunities.org/id/metropolitan-district-council/leeds,12/11/2014,Strategic & Central,1st Drighlington Girls Brigade,07/01/2014,20131400006,100,0,Locality grant,Supplies & Services
Leeds City Council,http://opendatacommunities.org/id/metropolitan-district-council/leeds,12/11/2014,Environment & Housing,1st Garforth Scouts Burma Troop,22/05/2013,20131400007,500,0,Horticultural grant,Supplies & Services
Leeds City Council,http://opendatacommunities.org/id/metropolitan-district-council/leeds,12/11/2014,Strategic & Central,1st Oulton (St John's) Brownies,25/03/2014,20131400008,300,0,Locality grant,Supplies & Services
Leeds City Council,http://opendatacommunities.org/id/metropolitan-district-council/leeds,12/11/2014,Strategic & Central,1st Oulton (St John's) Brownies,23/04/2013,20131400009,199,0,Locality grant,Supplies & Services
Leeds City Council,http://opendatacommunities.org/id/metropolitan-district-council/leeds,12/11/2014,Citizens & Communities,1st Thorner Guides,20/05/2013,20131400010,500,0,Neighbourhood grant,Supplies & Services
Leeds City Council,http://opendatacommunities.org/id/metropolitan-district-council/leeds,12/11/2014,Citizens & Communities,1st Thorner Guides,22/04/2013,20131400011,250,0,Proceeds of Crime grant,Supplies & Services
Leeds City Council,http://opendatacommunities.org/id/metropolitan-district-council/leeds,12/11/2014,Strategic & Central,21st and 23rd Leeds Brownie Packs,26/11/2013,20131400012,200,0,Locality grant,Supplies & Services
Leeds City Council,http://opendatacommunities.org/id/metropolitan-district-council/leeds,12/11/2014,Strategic & Central,2nd Adel Guides,14/01/2014,20131400013,210,0,Locality grant,Supplies & Services
Leeds City Council,http://opendatacommunities.org/id/metropolitan-district-council/leeds,12/11/2014,Strategic & Central,2nd Beeston Brownies,18/06/2013,20131400014,50,0,Locality grant,Supplies & Services
Leeds City Council,http://opendatacommunities.org/id/metropolitan-district-council/leeds,12/11/2014,Strategic & Central,2nd Beeston Guides,18/06/2013,20131400015,50,0,Locality grant,Supplies & Services
Leeds City Council,http://opendatacommunities.org/id/metropolitan-district-council/leeds,12/11/2014,Strategic & Central,"2nd New Wortley Rainbows, Brownies and Guides",28/06/2013,20131400016,175,0,Locality grant,Supplies & Services
Leeds City Council,http://opendatacommunities.org/id/metropolitan-district-council/leeds,12/11/2014,Strategic & Central,"2nd New Wortley Rainbows, Brownies and Guides",11/06/2013,20131400017,225,0,Locality grant,Supplies & Services
Leeds City Council,http://opendatacommunities.org/id/metropolitan-district-council/leeds,12/11/2014,Strategic & Central,3rd Garforth Guides,18/06/2013,20131400018,118,0,Locality grant,Supplies & Services
Leeds City Council,http://opendatacommunities.org/id/metropolitan-district-council/leeds,12/11/2014,Strategic & Central,3rd Garforth Guides,30/04/2013,20131400019,100,0,Locality grant,Supplies & Services
Leeds City Council,http://opendatacommunities.org/id/metropolitan-district-council/leeds,12/11/2014,Citizens & Communities,4th (St Theresa'S) Crossgates Brownies,06/02/2014,20131400020,250,0,Proceeds of Crime grant,Supplies & Services
Leeds City Council,http://opendatacommunities.org/id/metropolitan-district-council/leeds,12/11/2014,Strategic & Central,5th Middleton Guides,27/08/2013,20131400021,350,0,Locality grant,Supplies & Services
Leeds City Council,http://opendatacommunities.org/id/metropolitan-district-council/leeds,12/11/2014,Strategic & Central,6th Beeston Brownies,13/05/2013,20131400022,50,0,Locality grant,Supplies & Services
Leeds City Council,http://opendatacommunities.org/id/metropolitan-district-council/leeds,12/11/2014,Strategic & Central,6th Wortley Rainbows,12/11/2013,20131400023,240,0,Locality grant,Supplies & Services
Leeds City Council,http://opendatacommunities.org/id/metropolitan-district-council/leeds,12/11/2014,Strategic & Central,6th Wortley Rainbows,29/10/2013,20131400024,120,0,Locality grant,Supplies & Services
Leeds City Council,http://opendatacommunities.org/id/metropolitan-district-council/leeds,12/11/2014,Citizens & Communities,7th Leeds Boys Brigade,05/06/2013,20131400025,500,0,Neighbourhood grant,Supplies & Services
Leeds City Council,http://opendatacommunities.org/id/metropolitan-district-council/leeds,12/11/2014,Strategic & Central,9th Horsforth (St James) Brownies,25/02/2014,20131400026,300,0,Locality grant,Supplies & Services
Leeds City Council,http://opendatacommunities.org/id/metropolitan-district-council/leeds,12/11/2014,Strategic & Central,ACCESS COMMITTEE FOR LEEDS,25/03/2014,20131400027,100,0,Locality grant,Supplies & Services
Leeds City Council,http://opendatacommunities.org/id/metropolitan-district-council/leeds,12/11/2014,Strategic & Central,ACTION FOR GIPTON ELDERLY,04/02/2014,20131400028,300,0,Locality grant,Supplies & Services
Leeds City Council,http://opendatacommunities.org/id/metropolitan-district-council/leeds,12/11/2014,Environment & Housing,Activ8 Leeds,22/05/2013,20131400029,250,0,Horticultural grant,Supplies & Services
Leeds City Council,http://opendatacommunities.org/id/metropolitan-district-council/leeds,12/11/2014,City Development,Adam Hughes (writer),06/08/2013,20131400030,"1,000.00",0,Leeds Inspired grant,Supplies & Services
Leeds City Council,http://opendatacommunities.org/id/metropolitan-district-council/leeds,12/11/2014,Citizens & Communities,Adel Association,20/12/2013,20131400031,587,0,Neighbourhood grant,Supplies & Services
Leeds City Council,http://opendatacommunities.org/id/metropolitan-district-council/leeds,12/11/2014,Environment & Housing,ADEL CRAG COMMUNITY ASSOCIATION,21/11/2013,20131400032,175,0,Housing grant,Supplies & Services
Leeds City Council,http://opendatacommunities.org/id/metropolitan-district-council/leeds,12/11/2014,Citizens & Communities,ADEL PRE SCHOOL,17/05/2013,20131400033,500,0,Neighbourhood grant,Supplies & Services
Leeds City Council,http://opendatacommunities.org/id/metropolitan-district-council/leeds,12/11/2014,Adult Social Care,Advocacy For Mental Health And Dementia,11/03/2014,20131400034,"24,000.00",0,Dementia Grant ,Supplies & Services
Leeds City Council,http://opendatacommunities.org/id/metropolitan-district-council/leeds,12/11/2014,Citizens & Communities,Advocate UK Young People and Families,07/08/2013,20131400035,"2,700.00",0,Neighbourhood grant,Supplies & Services
Leeds City Council,http://opendatacommunities.org/id/metropolitan-district-council/leeds,12/11/2014,Strategic & Central,AFC Morley,17/09/2013,20131400036,114,0,Locality grant,Supplies & Services
Leeds City Council,http://opendatacommunities.org/id/metropolitan-district-council/leeds,12/11/2014,Citizens & Communities,Ahead Partnership Ltd,23/12/2013,20131400037,"2,524.00",0,Neighbourhood grant,Supplies & Services
Leeds City Council,http://opendatacommunities.org/id/metropolitan-district-council/leeds,12/11/2014,Citizens & Communities,Ahead Partnership Ltd,07/04/2014,20131400038,"2,524.00",0,Neighbourhood grant,Supplies & Services
Leeds City Council,http://opendatacommunities.org/id/metropolitan-district-council/leeds,12/11/2014,Citizens & Communities,Ahead Partnership Ltd,10/03/2014,20131400039,"2,524.00",0,Neighbourhood grant,Supplies & Services
Leeds City Council,http://opendatacommunities.org/id/metropolitan-district-council/leeds,12/11/2014,Citizens & Communities,Ahead Partnership Ltd,20/02/2014,20131400040,"2,524.00",0,Neighbourhood grant,Supplies & Services
Leeds City Council,http://opendatacommunities.org/id/metropolitan-district-council/leeds,12/11/2014,Citizens & Communities,Ahead Partnership Ltd,20/02/2014,20131400041,"2,524.00",0,Neighbourhood grant,Supplies & Services
Leeds City Council,http://opendatacommunities.org/id/metropolitan-district-council/leeds,12/11/2014,Environment & Housing,Ahead Partnership Ltd,21/10/2013,20131400042,500,0,Access to Nature grant,Supplies & Services
Leeds City Council,http://opendatacommunities.org/id/metropolitan-district-council/leeds,12/11/2014,Environment & Housing,Ahead Partnership Ltd,14/01/2014,20131400043,500,0,Access to Nature grant,Supplies & Services
Leeds City Council,http://opendatacommunities.org/id/metropolitan-district-council/leeds,12/11/2014,Citizens & Communities,Aireborough & District Angling Assoc,06/12/2013,20131400044,"1,000.00",0,Neighbourhood grant,Supplies & Services
Leeds City Council,http://opendatacommunities.org/id/metropolitan-district-council/leeds,12/11/2014,Citizens & Communities,AIREBOROUGH SUMMER ACTIVITIES SCHEME,08/04/2014,20131400045,445.25,0,Neighbourhood grant,Supplies & Services
Leeds City Council,http://opendatacommunities.org/id/metropolitan-district-council/leeds,12/11/2014,Citizens & Communities,AIREBOROUGH SUMMER ACTIVITIES SCHEME,02/12/2013,20131400046,445.25,0,Neighbourhood grant,Supplies & Services
Leeds City Council,http://opendatacommunities.org/id/metropolitan-district-council/leeds,12/11/2014,Citizens & Communities,AIREBOROUGH SUMMER ACTIVITIES SCHEME,16/08/2013,20131400047,445.25,0,Neighbourhood grant,Supplies & Services
Leeds City Council,http://opendatacommunities.org/id/metropolitan-district-council/leeds,12/11/2014,Citizens & Communities,AIREBOROUGH SUMMER ACTIVITIES SCHEME,13/01/2014,20131400048,"5,265.00",0,Neighbourhood grant,Supplies & Services
Leeds City Council,http://opendatacommunities.org/id/metropolitan-district-council/leeds,12/11/2014,Citizens & Communities,AIREBOROUGH SUMMER ACTIVITIES SCHEME,11/11/2013,20131400049,"5,265.00",0,Neighbourhood grant,Supplies & Services
Leeds City Council,http://opendatacommunities.org/id/metropolitan-district-council/leeds,12/11/2014,Citizens & Communities,AIREBOROUGH SUMMER ACTIVITIES SCHEME,16/08/2013,20131400050,"5,265.00",0,Neighbourhood grant,Supplies & Services
Leeds City Council,http://opendatacommunities.org/id/metropolitan-district-council/leeds,12/11/2014,Children's Services,Al Haqq Supplementary School,17/03/2014,20131400051,400,0,Education grant,Supplies & Services
Leeds City Council,http://opendatacommunities.org/id/metropolitan-district-council/leeds,12/11/2014,Children's Services,Al Haqq Supplementary School,12/03/2014,20131400052,"1,437.00",0,Outreach project funding,Supplies & Services
Leeds City Council,http://opendatacommunities.org/id/metropolitan-district-council/leeds,12/11/2014,Children's Services,Al Haqq Supplementary School,14/11/2013,20131400053,"1,373.75",0,Education grant,Supplies & Services
Leeds City Council,http://opendatacommunities.org/id/metropolitan-district-council/leeds,12/11/2014,Citizens & Communities,Al Khidmat Centre,27/03/2014,20131400054,"2,500.00",0,Neighbourhood grant,Supplies & Services
Leeds City Council,http://opendatacommunities.org/id/metropolitan-district-council/leeds,12/11/2014,Strategic & Central,Alderton Allotments Association,29/10/2013,20131400055,180,0,Locality grant,Supplies & Services
Leeds City Council,http://opendatacommunities.org/id/metropolitan-district-council/leeds,12/11/2014,Strategic & Central,Allerton Bywater C.A.S.C,18/06/2013,20131400056,300,0,Locality grant,Supplies & Services
Leeds City Council,http://opendatacommunities.org/id/metropolitan-district-council/leeds,12/11/2014,Strategic & Central,Allerton Bywater C.A.S.C,07/05/2013,20131400057,300,0,Locality grant,Supplies & Services
Leeds City Council,http://opendatacommunities.org/id/metropolitan-district-council/leeds,12/11/2014,Strategic & Central,Allerton Bywater C.A.S.C,16/04/2013,20131400058,300,0,Locality grant,Supplies & Services
Leeds City Council,http://opendatacommunities.org/id/metropolitan-district-council/leeds,12/11/2014,Environment & Housing,Allerton Bywater Collery Allotments,11/06/2013,20131400059,500,0,Horticultural grant,Supplies & Services
Leeds City Council,http://opendatacommunities.org/id/metropolitan-district-council/leeds,12/11/2014,Strategic & Central,ALLERTON BYWATER COMMUNITY PARTNERSHIP,04/03/2014,20131400060,300,0,Locality grant,Supplies & Services
Leeds City Council,http://opendatacommunities.org/id/metropolitan-district-council/leeds,12/11/2014,Strategic & Central,ALLERTON BYWATER COMMUNITY PARTNERSHIP,16/04/2013,20131400061,300,0,Locality grant,Supplies & Services
Leeds City Council,http://opendatacommunities.org/id/metropolitan-district-council/leeds,12/11/2014,Strategic & Central,Allerton Bywater Community Resource,09/07/2013,20131400062,170,0,Locality grant,Supplies & Services
Leeds City Council,http://opendatacommunities.org/id/metropolitan-district-council/leeds,12/11/2014,Strategic & Central,Allerton Bywater Craft Class,16/04/2013,20131400063,300,0,Locality grant,Supplies & Services
Leeds City Council,http://opendatacommunities.org/id/metropolitan-district-council/leeds,12/11/2014,Strategic & Central,Allerton Bywater Cricket Club,03/12/2013,20131400064,300,0,Locality grant,Supplies & Services
Leeds City Council,http://opendatacommunities.org/id/metropolitan-district-council/leeds,12/11/2014,Strategic & Central,Allerton Bywater Youth Project,12/11/2013,20131400065,200,0,Locality grant,Supplies & Services
Leeds City Council,http://opendatacommunities.org/id/metropolitan-district-council/leeds,12/11/2014,Strategic & Central,Allerton Bywater Youth Project,12/11/2013,20131400066,300,0,Locality grant,Supplies & Services
Leeds City Council,http://opendatacommunities.org/id/metropolitan-district-council/leeds,12/11/2014,Strategic & Central,Allerton Bywater Youth Project,22/10/2013,20131400067,200,0,Locality grant,Supplies & Services
Leeds City Council,http://opendatacommunities.org/id/metropolitan-district-council/leeds,12/11/2014,Citizens & Communities,Alwoodley Allotment Association,13/03/2014,20131400068,"2,765.94",0,Neighbourhood grant,Supplies & Services
Leeds City Council,http://opendatacommunities.org/id/metropolitan-district-council/leeds,12/11/2014,Citizens & Communities,Alwoodley Allotment Association,08/10/2013,20131400069,"7,500.00",0,Neighbourhood grant,Supplies & Services
Leeds City Council,http://opendatacommunities.org/id/metropolitan-district-council/leeds,12/11/2014,City Development,Alwoodley Community Association,22/08/2013,20131400070,"13,800.00",0,Green Space improvement grant,Supplies & Services
Leeds City Council,http://opendatacommunities.org/id/metropolitan-district-council/leeds,12/11/2014,City Development,Alwoodley Community Association,26/09/2013,20131400071,"13,827.00",0,Green Space improvement grant,Supplies & Services
Leeds City Council,http://opendatacommunities.org/id/metropolitan-district-council/leeds,12/11/2014,Strategic & Central,Alwoodley Community Association,25/03/2014,20131400072,250,0,Locality grant,Supplies & Services
Leeds City Council,http://opendatacommunities.org/id/metropolitan-district-council/leeds,12/11/2014,Strategic & Central,Alwoodley Community Association,10/12/2013,20131400073,300,0,Locality grant,Supplies & Services
Leeds City Council,http://opendatacommunities.org/id/metropolitan-district-council/leeds,12/11/2014,Citizens & Communities,Alwoodley Community Association,15/11/2013,20131400074,"3,500.00",0,Neighbourhood grant,Supplies & Services
Leeds City Council,http://opendatacommunities.org/id/metropolitan-district-council/leeds,12/11/2014,Citizens & Communities,Alwoodley Community Association,09/09/2013,20131400075,"3,500.00",0,Neighbourhood grant,Supplies & Services
Leeds City Council,http://opendatacommunities.org/id/metropolitan-district-council/leeds,12/11/2014,Strategic & Central,Alwoodley In Bloom,04/02/2014,20131400076,200,0,Locality grant,Supplies & Services
Leeds City Council,http://opendatacommunities.org/id/metropolitan-district-council/leeds,12/11/2014,Strategic & Central,Alwoodley In Bloom,10/12/2013,20131400077,200,0,Locality grant,Supplies & Services
Leeds City Council,http://opendatacommunities.org/id/metropolitan-district-council/leeds,12/11/2014,Strategic & Central,Alwoodley Maritial Arts Club,08/10/2013,20131400078,200,0,Locality grant,Supplies & Services
Leeds City Council,http://opendatacommunities.org/id/metropolitan-district-council/leeds,12/11/2014,Adult Social Care,ALWOODLEY PARK METHODIST LUNCHEON CLUB,12/04/2013,20131400079,"1,275.00",0,Luncheon Club grant,Supplies & Services
Leeds City Council,http://opendatacommunities.org/id/metropolitan-district-council/leeds,12/11/2014,City Development,Alwoodley Sinfonia,27/06/2013,20131400080,250,0,Leeds Inspired grant,Supplies & Services
Leeds City Council,http://opendatacommunities.org/id/metropolitan-district-council/leeds,12/11/2014,Adult Social Care,Alzheimers Society,29/10/2013,20131400081,"15,000.00",0,Dementia Grant ,Supplies & Services
Leeds City Council,http://opendatacommunities.org/id/metropolitan-district-council/leeds,12/11/2014,Citizens & Communities,AMARANTH FOOTBALL CLUB,17/09/2013,20131400082,250,0,Proceeds of Crime grant,Supplies & Services
Leeds City Council,http://opendatacommunities.org/id/metropolitan-district-council/leeds,12/11/2014,City Development,Angel Of Youth,10/02/2014,20131400083,250,0,Leeds Inspired grant,Supplies & Services
Leeds City Council,http://opendatacommunities.org/id/metropolitan-district-council/leeds,12/11/2014,West North West ALMO,Angel Of Youth,11/09/2013,20131400084,500,0,Diverse community grant,Supplies & Services
Leeds City Council,http://opendatacommunities.org/id/metropolitan-district-council/leeds,12/11/2014,Children's Services,Arabic Evening Classes,17/03/2014,20131400085,400,0,Education grant,Supplies & Services
Leeds City Council,http://opendatacommunities.org/id/metropolitan-district-council/leeds,12/11/2014,West North West ALMO,ARMLEY & NEW WORTLEY PAROCHIAL,26/07/2013,20131400086,65,0,Diverse community grant,Supplies & Services
Leeds City Council,http://opendatacommunities.org/id/metropolitan-district-council/leeds,12/11/2014,Strategic & Central,Armley Common Right Trust,24/05/2013,20131400087,500,0,Locality grant,Supplies & Services
Leeds City Council,http://opendatacommunities.org/id/metropolitan-district-council/leeds,12/11/2014,Citizens & Communities,Armley Common Right Trust,17/03/2014,20131400088,175,0,Neighbourhood grant,Supplies & Services
Leeds City Council,http://opendatacommunities.org/id/metropolitan-district-council/leeds,12/11/2014,Citizens & Communities,Armley Common Right Trust,29/10/2013,20131400089,"1,720.00",0,Neighbourhood grant,Supplies & Services
Leeds City Council,http://opendatacommunities.org/id/metropolitan-district-council/leeds,12/11/2014,Adult Social Care,Armley Helping Hands Luncheon Club,12/04/2013,20131400090,"3,088.00",0,Luncheon Club grant,Supplies & Services
Leeds City Council,http://opendatacommunities.org/id/metropolitan-district-council/leeds,12/11/2014,Strategic & Central,Armley Juniors Project for Young People,28/01/2014,20131400091,50,0,Locality grant,Supplies & Services
Leeds City Council,http://opendatacommunities.org/id/metropolitan-district-council/leeds,12/11/2014,Strategic & Central,Armley Juniors Project for Young People,23/04/2013,20131400092,100,0,Locality grant,Supplies & Services
Leeds City Council,http://opendatacommunities.org/id/metropolitan-district-council/leeds,12/11/2014,Citizens & Communities,Armley Juniors Project for Young People,06/12/2013,20131400093,"4,893.00",0,Neighbourhood grant,Supplies & Services
Leeds City Council,http://opendatacommunities.org/id/metropolitan-district-council/leeds,12/11/2014,Citizens & Communities,Armley Juniors Project for Young People,09/09/2013,20131400094,"4,893.00",0,Neighbourhood grant,Supplies & Services
Leeds City Council,http://opendatacommunities.org/id/metropolitan-district-council/leeds,12/11/2014,Citizens & Communities,Armley Juniors Project for Young People,18/07/2013,20131400095,"4,893.00",0,Neighbourhood grant,Supplies & Services
Leeds City Council,http://opendatacommunities.org/id/metropolitan-district-council/leeds,12/11/2014,Citizens & Communities,Armley Juniors Project for Young People,07/06/2013,20131400096,"4,893.00",0,Neighbourhood grant,Supplies & Services
Leeds City Council,http://opendatacommunities.org/id/metropolitan-district-council/leeds,12/11/2014,Strategic & Central,Armley Taijutsu Association,30/07/2013,20131400097,150,0,Locality grant,Supplies & Services
Leeds City Council,http://opendatacommunities.org/id/metropolitan-district-council/leeds,12/11/2014,Strategic & Central,Art For Barwick Children,24/05/2013,20131400098,300,0,Locality grant,Supplies & Services
Leeds City Council,http://opendatacommunities.org/id/metropolitan-district-council/leeds,12/11/2014,Strategic & Central,Artforms,28/01/2014,20131400099,75,0,Locality grant,Supplies & Services
Leeds City Council,http://opendatacommunities.org/id/metropolitan-district-council/leeds,12/11/2014,Adult Social Care,ARTICULATE ADVOCACY,10/01/2014,20131400100,"14,345.06",0,Learning Disabilities grant,Supplies & Services
Leeds City Council,http://opendatacommunities.org/id/metropolitan-district-council/leeds,12/11/2014,Adult Social Care,ARTICULATE ADVOCACY,26/09/2013,20131400101,"14,345.06",0,Learning Disabilities grant,Supplies & Services
Leeds City Council,http://opendatacommunities.org/id/metropolitan-district-council/leeds,12/11/2014,Adult Social Care,ARTICULATE ADVOCACY,26/09/2013,20131400102,"6,500.00",0,Learning Disabilities grant,Supplies & Services
Leeds City Council,http://opendatacommunities.org/id/metropolitan-district-council/leeds,12/11/2014,City Development,ARTLINK WEST YORKSHIRE,06/03/2014,20131400103,"1,000.00",0,Leeds Inspired grant,Supplies & Services
Leeds City Council,http://opendatacommunities.org/id/metropolitan-district-council/leeds,12/11/2014,City Development,ARTLINK WEST YORKSHIRE,11/04/2013,20131400104,"12,000.00",0,Arts grant,Supplies & Services
Leeds City Council,http://opendatacommunities.org/id/metropolitan-district-council/leeds,12/11/2014,City Development,Arts @ Trinity Ltd,26/04/2013,20131400105,"1,000.00",0,Leeds Inspired grant,Supplies & Services
Leeds City Council,http://opendatacommunities.org/id/metropolitan-district-council/leeds,12/11/2014,Strategic & Central,ARTS TO SHARE (LEEDS),23/07/2013,20131400106,300,0,Locality grant,Supplies & Services
Leeds City Council,http://opendatacommunities.org/id/metropolitan-district-council/leeds,12/11/2014,Children's Services,ASHA NEIGHBOURHOOD PROJECT,29/01/2014,20131400107,"1,000.00",0,Early Years Start Up Grant,Third Party Payments
Leeds City Council,http://opendatacommunities.org/id/metropolitan-district-council/leeds,12/11/2014,Strategic & Central,Ashlea Court Tenants Association,10/09/2013,20131400108,300,0,Locality grant,Supplies & Services
Leeds City Council,http://opendatacommunities.org/id/metropolitan-district-council/leeds,12/11/2014,West North West ALMO,Ashlea Court Tenants Association,13/09/2013,20131400109,100,0,Support Grant,Supplies & Services
Leeds City Council,http://opendatacommunities.org/id/metropolitan-district-council/leeds,12/11/2014,Environment & Housing,Association Of Blind Asians,01/05/2013,20131400110,"5,000.00",0,Support grant,Supplies & Services
Leeds City Council,http://opendatacommunities.org/id/metropolitan-district-council/leeds,12/11/2014,Strategic & Central,Astura Courts Residents Association,26/11/2013,20131400111,75,0,Locality grant,Supplies & Services
Leeds City Council,http://opendatacommunities.org/id/metropolitan-district-council/leeds,12/11/2014,Citizens & Communities,ASYABI UK,28/11/2013,20131400112,500,0,Neighbourhood grant,Supplies & Services
Leeds City Council,http://opendatacommunities.org/id/metropolitan-district-council/leeds,12/11/2014,Citizens & Communities,Ayendah Sazan Community,07/11/2013,20131400113,500,0,Neighbourhood grant,Supplies & Services
Leeds City Council,http://opendatacommunities.org/id/metropolitan-district-council/leeds,12/11/2014,Children's Services,Baltica,17/03/2014,20131400114,400,0,Education grant,Supplies & Services
Leeds City Council,http://opendatacommunities.org/id/metropolitan-district-council/leeds,12/11/2014,Children's Services,Baltica,12/11/2013,20131400115,300,0,Education grant,Supplies & Services
Leeds City Council,http://opendatacommunities.org/id/metropolitan-district-council/leeds,12/11/2014,Strategic & Central,Bangladesh Centre Leeds.,18/03/2014,20131400116,300,0,Locality grant,Supplies & Services
Leeds City Council,http://opendatacommunities.org/id/metropolitan-district-council/leeds,12/11/2014,Strategic & Central,Bangladeshi Elderly Group,11/03/2014,20131400117,175,0,Locality grant,Supplies & Services
Leeds City Council,http://opendatacommunities.org/id/metropolitan-district-council/leeds,12/11/2014,Strategic & Central,BARCA LEEDS,18/06/2013,20131400118,300,0,Locality grant,Supplies & Services
Leeds City Council,http://opendatacommunities.org/id/metropolitan-district-council/leeds,12/11/2014,Citizens & Communities,BARCA LEEDS,13/02/2014,20131400119,300,0,Neighbourhood grant,Supplies & Services
Leeds City Council,http://opendatacommunities.org/id/metropolitan-district-council/leeds,12/11/2014,Citizens & Communities,BARCA LEEDS,26/03/2014,20131400120,"4,650.00",0,Neighbourhood grant,Supplies & Services
Leeds City Council,http://opendatacommunities.org/id/metropolitan-district-council/leeds,12/11/2014,Citizens & Communities,BARCA LEEDS,15/01/2014,20131400121,"4,650.00",0,Neighbourhood grant,Supplies & Services
Leeds City Council,http://opendatacommunities.org/id/metropolitan-district-council/leeds,12/11/2014,West North West ALMO,Barca Leeds Youth Inc,19/08/2013,20131400122,500,0,Diverse community grant,Supplies & Services
Leeds City Council,http://opendatacommunities.org/id/metropolitan-district-council/leeds,12/11/2014,Strategic & Central,Bardsey Scout Group,11/03/2014,20131400123,500,0,Locality grant,Supplies & Services
Leeds City Council,http://opendatacommunities.org/id/metropolitan-district-council/leeds,12/11/2014,Environment & Housing,Barnados,14/05/2013,20131400124,"3,750.00",0,Qtr 1 Support grant,Supplies & Services
Leeds City Council,http://opendatacommunities.org/id/metropolitan-district-council/leeds,12/11/2014,Environment & Housing,Barnados,18/03/2014,20131400125,"3,750.00",0,Qtr 4 Support grant,Supplies & Services
Leeds City Council,http://opendatacommunities.org/id/metropolitan-district-council/leeds,12/11/2014,Environment & Housing,Barnados,05/12/2013,20131400126,"3,750.00",0,Qtr 2 & 3 Support grant,Supplies & Services
Leeds City Council,http://opendatacommunities.org/id/metropolitan-district-council/leeds,12/11/2014,Environment & Housing,Barnados,05/12/2013,20131400127,"3,750.00",0,Qtr 2 & 3 Support grant,Supplies & Services
Leeds City Council,http://opendatacommunities.org/id/metropolitan-district-council/leeds,12/11/2014,Children's Services,Barnados,16/08/2013,20131400128,"35,693.75",0,Support grant,Third Party Payments
Leeds City Council,http://opendatacommunities.org/id/metropolitan-district-council/leeds,12/11/2014,Children's Services,Barnados,06/08/2013,20131400129,"11,230.75",0,Support grant,Third Party Payments
Leeds City Council,http://opendatacommunities.org/id/metropolitan-district-council/leeds,12/11/2014,Strategic & Central,BARNCROFT GRANGE TENANTS GROUP,28/01/2014,20131400130,200,0,Locality grant,Supplies & Services
Leeds City Council,http://opendatacommunities.org/id/metropolitan-district-council/leeds,12/11/2014,Strategic & Central,BARWICK IN BLOOM,11/03/2014,20131400131,500,0,Locality grant,Supplies & Services
Leeds City Council,http://opendatacommunities.org/id/metropolitan-district-council/leeds,12/11/2014,Citizens & Communities,Barwick In Elmet Village Hall,13/03/2014,20131400132,"2,000.00",0,Neighbourhood grant,Supplies & Services
Leeds City Council,http://opendatacommunities.org/id/metropolitan-district-council/leeds,12/11/2014,Strategic & Central,Bawns and Nuttingroves TARA,25/03/2014,20131400133,350,0,Locality grant,Supplies & Services
Leeds City Council,http://opendatacommunities.org/id/metropolitan-district-council/leeds,12/11/2014,Strategic & Central,Bawns and Nuttingroves TARA,22/10/2013,20131400134,110,0,Locality grant,Supplies & Services
Leeds City Council,http://opendatacommunities.org/id/metropolitan-district-council/leeds,12/11/2014,Environment & Housing,Bawns and Nuttingroves TARA,18/02/2014,20131400135,275,0,Housing grant,Supplies & Services
Leeds City Council,http://opendatacommunities.org/id/metropolitan-district-council/leeds,12/11/2014,Strategic & Central,Beckett Park Community Association,18/03/2014,20131400136,200,0,Locality grant,Supplies & Services
Leeds City Council,http://opendatacommunities.org/id/metropolitan-district-council/leeds,12/11/2014,Strategic & Central,Beeston and Holbeck Community Care Group,09/07/2013,20131400137,950,0,Locality grant,Supplies & Services
Leeds City Council,http://opendatacommunities.org/id/metropolitan-district-council/leeds,12/11/2014,Strategic & Central,BEESTON BRONCOS 2007,25/03/2014,20131400138,50,0,Locality grant,Supplies & Services
Leeds City Council,http://opendatacommunities.org/id/metropolitan-district-council/leeds,12/11/2014,Strategic & Central,BEESTON COMMUNITY FORUM,25/03/2014,20131400139,50,0,Locality grant,Supplies & Services
Leeds City Council,http://opendatacommunities.org/id/metropolitan-district-council/leeds,12/11/2014,Strategic & Central,BEESTON FESTIVAL,25/03/2014,20131400140,750,0,Locality grant,Supplies & Services
Leeds City Council,http://opendatacommunities.org/id/metropolitan-district-council/leeds,12/11/2014,Strategic & Central,BEESTON FESTIVAL,25/02/2014,20131400141,750,0,Locality grant,Supplies & Services
Leeds City Council,http://opendatacommunities.org/id/metropolitan-district-council/leeds,12/11/2014,Strategic & Central,BEESTON FESTIVAL,13/05/2013,20131400142,750,0,Locality grant,Supplies & Services
Leeds City Council,http://opendatacommunities.org/id/metropolitan-district-council/leeds,12/11/2014,Citizens & Communities,BEESTON FESTIVAL,08/07/2013,20131400143,"5,000.00",0,Neighbourhood grant,Supplies & Services
Leeds City Council,http://opendatacommunities.org/id/metropolitan-district-council/leeds,12/11/2014,City Development,BEESTON FESTIVAL & MELA,09/05/2013,20131400144,"2,500.00",0,Leeds Inspired grant,Supplies & Services
Leeds City Council,http://opendatacommunities.org/id/metropolitan-district-council/leeds,12/11/2014,Environment & Housing,BEESTON IN BLOOM,04/06/2013,20131400145,500,0,Horticultural grant,Supplies & Services
Leeds City Council,http://opendatacommunities.org/id/metropolitan-district-council/leeds,12/11/2014,Strategic & Central,BEESTON IN BLOOM,25/03/2014,20131400146,200,0,Locality grant,Supplies & Services
Leeds City Council,http://opendatacommunities.org/id/metropolitan-district-council/leeds,12/11/2014,Citizens & Communities,BEESTON IN BLOOM,31/05/2013,20131400147,"1,000.00",0,Neighbourhood grant,Supplies & Services
Leeds City Council,http://opendatacommunities.org/id/metropolitan-district-council/leeds,12/11/2014,Strategic & Central,Beeston Local History Society,25/03/2014,20131400148,25,0,Locality grant,Supplies & Services
Leeds City Council,http://opendatacommunities.org/id/metropolitan-district-council/leeds,12/11/2014,Strategic & Central,Beeston Parish Centre,25/03/2014,20131400149,50,0,Locality grant,Supplies & Services
Leeds City Council,http://opendatacommunities.org/id/metropolitan-district-council/leeds,12/11/2014,Citizens & Communities,Beeston Parish Centre,03/12/2013,20131400150,500,0,Neighbourhood grant,Supplies & Services
Leeds City Council,http://opendatacommunities.org/id/metropolitan-district-council/leeds,12/11/2014,Strategic & Central,Beeston PCC (St Davids),25/03/2014,20131400151,50,0,Locality grant,Supplies & Services
Leeds City Council,http://opendatacommunities.org/id/metropolitan-district-council/leeds,12/11/2014,Strategic & Central,Beeston PCC (St Marys),25/03/2014,20131400152,50,0,Locality grant,Supplies & Services
Leeds City Council,http://opendatacommunities.org/id/metropolitan-district-council/leeds,12/11/2014,Environment & Housing,Beevers Court Residents Association,25/02/2014,20131400153,100,0,Housing new group starter grant,Supplies & Services
Leeds City Council,http://opendatacommunities.org/id/metropolitan-district-council/leeds,12/11/2014,Environment & Housing,Beevers Court Residents Association,25/02/2014,20131400154,100,0,Housing annual support grant,Supplies & Services
Leeds City Council,http://opendatacommunities.org/id/metropolitan-district-council/leeds,12/11/2014,Strategic & Central,Behno Group (Sisters),18/03/2014,20131400155,400,0,Locality grant,Supplies & Services
Leeds City Council,http://opendatacommunities.org/id/metropolitan-district-council/leeds,12/11/2014,Citizens & Communities,Behno Group (Sisters),07/03/2014,20131400156,500,0,Neighbourhood grant,Supplies & Services
Leeds City Council,http://opendatacommunities.org/id/metropolitan-district-council/leeds,12/11/2014,Adult Social Care,Belle Isle Elderly Winter Aid Lunch Club,12/04/2013,20131400157,"2,551.00",0,Luncheon Club grant,Supplies & Services
Leeds City Council,http://opendatacommunities.org/id/metropolitan-district-council/leeds,12/11/2014,Strategic & Central,Belle Isle Youth Services,17/07/2013,20131400158,250,0,Locality grant,Supplies & Services
Leeds City Council,http://opendatacommunities.org/id/metropolitan-district-council/leeds,12/11/2014,Citizens & Communities,Bentley Court Luncheon Club,16/08/2013,20131400159,500,0,Neighbourhood grant,Supplies & Services
Leeds City Council,http://opendatacommunities.org/id/metropolitan-district-council/leeds,12/11/2014,Strategic & Central,Bentley Resident's Association,07/01/2014,20131400160,100,0,Locality grant,Supplies & Services
Leeds City Council,http://opendatacommunities.org/id/metropolitan-district-council/leeds,12/11/2014,Citizens & Communities,Beraca Community Centre,22/04/2013,20131400161,500,0,Neighbourhood grant,Supplies & Services
Leeds City Council,http://opendatacommunities.org/id/metropolitan-district-council/leeds,12/11/2014,Public Health,BETH JOHNSON FOUNDATION,12/02/2014,20131400162,"2,000.00",0,Public Health grant,Supplies & Services
Leeds City Council,http://opendatacommunities.org/id/metropolitan-district-council/leeds,12/11/2014,Strategic & Central,Better Leeds Communities,21/05/2013,20131400163,100,0,Locality grant,Supplies & Services
Leeds City Council,http://opendatacommunities.org/id/metropolitan-district-council/leeds,12/11/2014,Citizens & Communities,Better Leeds Communities,04/03/2014,20131400164,"3,969.50",0,Neighbourhood grant,Supplies & Services
Leeds City Council,http://opendatacommunities.org/id/metropolitan-district-council/leeds,12/11/2014,Citizens & Communities,Better Leeds Communities,08/10/2013,20131400165,888,0,Neighbourhood grant,Supplies & Services
Leeds City Council,http://opendatacommunities.org/id/metropolitan-district-council/leeds,12/11/2014,Citizens & Communities,Better Leeds Communities,01/07/2013,20131400166,"51,749.00",0,Social welfare grant,Supplies & Services
Leeds City Council,http://opendatacommunities.org/id/metropolitan-district-council/leeds,12/11/2014,Strategic & Central,BHA,19/11/2013,20131400167,50,0,Locality grant,Supplies & Services
Leeds City Council,http://opendatacommunities.org/id/metropolitan-district-council/leeds,12/11/2014,Strategic & Central,BHH Leisure Club,29/10/2013,20131400168,280,0,Locality grant,Supplies & Services
Leeds City Council,http://opendatacommunities.org/id/metropolitan-district-council/leeds,12/11/2014,Citizens & Communities,BHOJAN SANGAM GROUP,26/04/2013,20131400169,500,0,Neighbourhood grant,Supplies & Services
Leeds City Council,http://opendatacommunities.org/id/metropolitan-district-council/leeds,12/11/2014,Adult Social Care,BHOJAN SANGAM GROUP,12/04/2013,20131400170,"1,913.00",0,Luncheon Club grant,Supplies & Services
Leeds City Council,http://opendatacommunities.org/id/metropolitan-district-council/leeds,12/11/2014,Strategic & Central,Billing View Community Group,03/12/2013,20131400171,100,0,Locality grant,Supplies & Services
Leeds City Council,http://opendatacommunities.org/id/metropolitan-district-council/leeds,12/11/2014,Strategic & Central,Billing View Community Group,06/11/2013,20131400172,100,0,Locality grant,Supplies & Services
Leeds City Council,http://opendatacommunities.org/id/metropolitan-district-council/leeds,12/11/2014,Strategic & Central,Billing View Community Group,29/10/2013,20131400173,50,0,Locality grant,Supplies & Services
Leeds City Council,http://opendatacommunities.org/id/metropolitan-district-council/leeds,12/11/2014,Strategic & Central,Billing View Community Group,19/11/2013,20131400174,175,0,Locality grant,Supplies & Services
Leeds City Council,http://opendatacommunities.org/id/metropolitan-district-council/leeds,12/11/2014,West North West ALMO,Billing View Community Group,21/05/2013,20131400175,100,0,Support Grant,Supplies & Services
Leeds City Council,http://opendatacommunities.org/id/metropolitan-district-council/leeds,12/11/2014,West North West ALMO,Blenheim Residents Association,29/07/2013,20131400176,100,0,Support Grant,Supplies & Services
Leeds City Council,http://opendatacommunities.org/id/metropolitan-district-council/leeds,12/11/2014,Children's Services,Bradford Dragons Goalball,13/08/2013,20131400177,750,0,Short Breaks Capital Funding,Capital Expenditure
Leeds City Council,http://opendatacommunities.org/id/metropolitan-district-council/leeds,12/11/2014,Strategic & Central,Brain Injuries Rehabilitation Trust,08/10/2013,20131400178,300,0,Locality grant,Supplies & Services
Leeds City Council,http://opendatacommunities.org/id/metropolitan-district-council/leeds,12/11/2014,Strategy & Resources,Bramham Sports & Leisure Association,13/05/2013,20131400179,"5,000.00",0,Neighbourhood capital grant,Capital Expenditure
Leeds City Council,http://opendatacommunities.org/id/metropolitan-district-council/leeds,12/11/2014,Environment & Housing,Bramhope Show,31/05/2013,20131400180,250,0,Horticultural grant,Supplies & Services
Leeds City Council,http://opendatacommunities.org/id/metropolitan-district-council/leeds,12/11/2014,Strategic & Central,Bramley And Rodley In Bloom,18/06/2013,20131400181,300,0,Locality grant,Supplies & Services
Leeds City Council,http://opendatacommunities.org/id/metropolitan-district-council/leeds,12/11/2014,Citizens & Communities,Bramley Carnival,26/06/2013,20131400182,"3,854.50",0,Neighbourhood grant,Supplies & Services
Leeds City Council,http://opendatacommunities.org/id/metropolitan-district-council/leeds,12/11/2014,Adult Social Care,BRAMLEY COMMUNITY CENTRE LUNCHEON CLUB,17/04/2013,20131400183,"3,088.00",0,Luncheon Club grant,Supplies & Services
Leeds City Council,http://opendatacommunities.org/id/metropolitan-district-council/leeds,12/11/2014,Strategic & Central,Bramley Community Foodbank,14/01/2014,20131400184,300,0,Locality grant,Supplies & Services
Leeds City Council,http://opendatacommunities.org/id/metropolitan-district-council/leeds,12/11/2014,Citizens & Communities,Bramley Community Foodbank,06/02/2014,20131400185,"1,000.00",0,Foodbank Funding,Supplies & Services
Leeds City Council,http://opendatacommunities.org/id/metropolitan-district-council/leeds,12/11/2014,Strategic & Central,BRAMLEY ELDERLY ACTION,10/09/2013,20131400186,300,0,Locality grant,Supplies & Services
Leeds City Council,http://opendatacommunities.org/id/metropolitan-district-council/leeds,12/11/2014,Strategic & Central,Bramley Lights Project,26/11/2013,20131400187,400,0,Locality grant,Supplies & Services
Leeds City Council,http://opendatacommunities.org/id/metropolitan-district-council/leeds,12/11/2014,Citizens & Communities,Bramley Lights Project,06/11/2013,20131400188,"1,684.00",0,Neighbourhood grant,Supplies & Services
Leeds City Council,http://opendatacommunities.org/id/metropolitan-district-council/leeds,12/11/2014,Strategic & Central,Bramley Music Festival,04/06/2013,20131400189,500,0,Locality grant,Supplies & Services
Leeds City Council,http://opendatacommunities.org/id/metropolitan-district-council/leeds,12/11/2014,Citizens & Communities,Bramley Music Festival,28/05/2013,20131400190,"2,500.00",0,Neighbourhood grant,Supplies & Services
Leeds City Council,http://opendatacommunities.org/id/metropolitan-district-council/leeds,12/11/2014,Citizens & Communities,Bramley St Peters PCC Halls Account,09/01/2014,20131400191,48,0,Neighbourhood grant,Supplies & Services
Leeds City Council,http://opendatacommunities.org/id/metropolitan-district-council/leeds,12/11/2014,Citizens & Communities,Bramley Villager Sports & Social Club,29/07/2013,20131400192,"2,500.00",0,Neighbourhood grant,Supplies & Services
Leeds City Council,http://opendatacommunities.org/id/metropolitan-district-council/leeds,12/11/2014,Strategic & Central,Burley Mill Allotments Association,30/07/2013,20131400193,210,0,Locality grant,Supplies & Services
Leeds City Council,http://opendatacommunities.org/id/metropolitan-district-council/leeds,12/11/2014,Strategic & Central,Burley Top Community Network,03/12/2013,20131400194,210,0,Locality grant,Supplies & Services
Leeds City Council,http://opendatacommunities.org/id/metropolitan-district-council/leeds,12/11/2014,Children's Services,BURMANTOFTS COMMUNITY NURSERY,01/11/2013,20131400195,"14,000.00",0,Early Years Start Up Grant,Third Party Payments
Leeds City Council,http://opendatacommunities.org/id/metropolitan-district-council/leeds,12/11/2014,Environment & Housing,BURMANTOFTS COMMUNITY NURSERY,23/01/2014,20131400196,816.9,0,Regeneration capital grant,Capital Expenditure
Leeds City Council,http://opendatacommunities.org/id/metropolitan-district-council/leeds,12/11/2014,Strategic & Central,BURMANTOFTS SENIOR ACTION,21/05/2013,20131400197,300,0,Locality grant,Supplies & Services
Leeds City Council,http://opendatacommunities.org/id/metropolitan-district-council/leeds,12/11/2014,Citizens & Communities,BURMANTOFTS SENIOR ACTION,11/11/2013,20131400198,250,0,Proceeds of Crime grant,Supplies & Services
Leeds City Council,http://opendatacommunities.org/id/metropolitan-district-council/leeds,12/11/2014,Strategic & Central,Burmantofts Warriors,16/07/2013,20131400199,300,0,Locality grant,Supplies & Services
Leeds City Council,http://opendatacommunities.org/id/metropolitan-district-council/leeds,12/11/2014,Strategic & Central,Burnsall Court Activity Group,16/04/2013,20131400200,300,0,Locality grant,Supplies & Services
Leeds City Council,http://opendatacommunities.org/id/metropolitan-district-council/leeds,12/11/2014,Strategic & Central,Burnsall Court Tenants Group,24/05/2013,20131400201,285,0,Locality grant,Supplies & Services
Leeds City Council,http://opendatacommunities.org/id/metropolitan-district-council/leeds,12/11/2014,West North West ALMO,Burnsall Court Tenants Group,21/06/2013,20131400202,100,0,Support Grant,Supplies & Services
Leeds City Council,http://opendatacommunities.org/id/metropolitan-district-council/leeds,12/11/2014,West North West ALMO,Burnsall Croft Tenants Association,26/06/2013,20131400203,100,0,Support Grant,Supplies & Services
Leeds City Council,http://opendatacommunities.org/id/metropolitan-district-council/leeds,12/11/2014,Strategic & Central,Button Hill Residents Association,29/10/2013,20131400204,50,0,Locality grant,Supplies & Services
Leeds City Council,http://opendatacommunities.org/id/metropolitan-district-council/leeds,12/11/2014,Citizens & Communities,Button Hill Residents Association,23/07/2013,20131400205,400,0,Neighbourhood grant,Supplies & Services
Leeds City Council,http://opendatacommunities.org/id/metropolitan-district-council/leeds,12/11/2014,Strategic & Central,Calverley Cricket Club,02/07/2013,20131400206,27.18,0,Locality grant,Supplies & Services
Leeds City Council,http://opendatacommunities.org/id/metropolitan-district-council/leeds,12/11/2014,Citizens & Communities,Calverley Horticultural Society,07/03/2014,20131400207,500,0,Neighbourhood grant,Supplies & Services
Leeds City Council,http://opendatacommunities.org/id/metropolitan-district-council/leeds,12/11/2014,Environment & Housing,CALVERLEY IN BLOOM,15/05/2013,20131400208,500,0,Horticultural grant,Supplies & Services
Leeds City Council,http://opendatacommunities.org/id/metropolitan-district-council/leeds,12/11/2014,Strategic & Central,Calverley Parish Church,06/08/2013,20131400209,193.08,0,Locality grant,Supplies & Services
Leeds City Council,http://opendatacommunities.org/id/metropolitan-district-council/leeds,12/11/2014,Strategic & Central,Calverley St. Wilfrids Cricket Club,19/08/2013,20131400210,200,0,Locality grant,Supplies & Services
Leeds City Council,http://opendatacommunities.org/id/metropolitan-district-council/leeds,12/11/2014,Strategic & Central,Calverley St. Wilfrids Cricket Club,18/06/2013,20131400211,200,0,Locality grant,Supplies & Services
Leeds City Council,http://opendatacommunities.org/id/metropolitan-district-council/leeds,12/11/2014,Citizens & Communities,Calverley St. Wilfrids Cricket Club,13/06/2013,20131400212,500,0,Neighbourhood grant,Supplies & Services
Leeds City Council,http://opendatacommunities.org/id/metropolitan-district-council/leeds,12/11/2014,Adult Social Care,Calverley Wednesday Lunch Club,12/04/2013,20131400213,761,0,Luncheon Club grant,Supplies & Services
Leeds City Council,http://opendatacommunities.org/id/metropolitan-district-council/leeds,12/11/2014,Adult Social Care,Calverley Wednesday Lunch Club,02/12/2013,20131400214,761,0,Luncheon Club grant,Supplies & Services
Leeds City Council,http://opendatacommunities.org/id/metropolitan-district-council/leeds,12/11/2014,Strategic & Central,CARA,11/03/2014,20131400215,100,0,Locality grant,Supplies & Services
Leeds City Council,http://opendatacommunities.org/id/metropolitan-district-council/leeds,12/11/2014,Citizens & Communities,CARA,17/09/2013,20131400216,210,0,Proceeds of Crime grant,Supplies & Services
Leeds City Council,http://opendatacommunities.org/id/metropolitan-district-council/leeds,12/11/2014,Strategic & Central,"Cardinal Court Tenants Fund,",25/03/2014,20131400217,100,0,Locality grant,Supplies & Services
Leeds City Council,http://opendatacommunities.org/id/metropolitan-district-council/leeds,12/11/2014,Adult Social Care,CARE & REPAIR (LEEDS) LTD,11/11/2013,20131400218,"7,240.00",0,Older Persons Grant,Supplies & Services
Leeds City Council,http://opendatacommunities.org/id/metropolitan-district-council/leeds,12/11/2014,Environment & Housing,CARE & REPAIR (LEEDS) LTD,16/07/2013,20131400219,"5,000.00",0,Support grant,Supplies & Services
Leeds City Council,http://opendatacommunities.org/id/metropolitan-district-council/leeds,12/11/2014,Environment & Housing,CARE & REPAIR (LEEDS) LTD,18/03/2014,20131400220,"5,000.00",0,Support grant,Supplies & Services
Leeds City Council,http://opendatacommunities.org/id/metropolitan-district-council/leeds,12/11/2014,Environment & Housing,CARE & REPAIR (LEEDS) LTD,17/10/2013,20131400221,"5,000.00",0,Support grant,Supplies & Services
Leeds City Council,http://opendatacommunities.org/id/metropolitan-district-council/leeds,12/11/2014,Adult Social Care,CARE & REPAIR (LEEDS) LTD,21/03/2013,20131400222,"39,621.00",0,Adult Social Care grant,Third Party Payments
Leeds City Council,http://opendatacommunities.org/id/metropolitan-district-council/leeds,12/11/2014,Adult Social Care,CARE & REPAIR (LEEDS) LTD,21/03/2013,20131400223,"8,817.00",0,Outreach grant,Third Party Payments
Leeds City Council,http://opendatacommunities.org/id/metropolitan-district-council/leeds,12/11/2014,Adult Social Care,CARE & REPAIR (LEEDS) LTD,24/09/2013,20131400224,"8,817.00",0,Outreach grant,Third Party Payments
Leeds City Council,http://opendatacommunities.org/id/metropolitan-district-council/leeds,12/11/2014,Adult Social Care,CARE & REPAIR (LEEDS) LTD,10/12/2013,20131400225,"8,817.00",0,Outreach grant,Third Party Payments
Leeds City Council,http://opendatacommunities.org/id/metropolitan-district-council/leeds,12/11/2014,Adult Social Care,CARE & REPAIR (LEEDS) LTD,10/06/2013,20131400226,"8,817.00",0,Outreach grant,Third Party Payments
Leeds City Council,http://opendatacommunities.org/id/metropolitan-district-council/leeds,12/11/2014,Adult Social Care,CARE & REPAIR (LEEDS) LTD,10/12/2013,20131400227,"39,621.00",0,Adult Social Care grant,Third Party Payments
Leeds City Council,http://opendatacommunities.org/id/metropolitan-district-council/leeds,12/11/2014,Adult Social Care,CARE & REPAIR (LEEDS) LTD,24/09/2013,20131400228,"39,621.00",0,Adult Social Care grant,Third Party Payments
Leeds City Council,http://opendatacommunities.org/id/metropolitan-district-council/leeds,12/11/2014,Adult Social Care,CARE & REPAIR (LEEDS) LTD,10/06/2013,20131400229,"39,621.00",0,Adult Social Care grant,Third Party Payments
Leeds City Council,http://opendatacommunities.org/id/metropolitan-district-council/leeds,12/11/2014,Adult Social Care,CARERS LEEDS MALE CARERS GROUP,15/01/2014,20131400230,300,0,Carers Small Group Grant,Supplies & Services
Leeds City Council,http://opendatacommunities.org/id/metropolitan-district-council/leeds,12/11/2014,Strategic & Central,Caring Together in Woodhouse & Little London,29/10/2013,20131400231,300,0,Locality grant,Supplies & Services
Leeds City Council,http://opendatacommunities.org/id/metropolitan-district-council/leeds,12/11/2014,Citizens & Communities,Caring Together in Woodhouse & Little London,18/06/2013,20131400232,725.65,0,Neighbourhood grant,Supplies & Services
Leeds City Council,http://opendatacommunities.org/id/metropolitan-district-council/leeds,12/11/2014,Citizens & Communities,Caring Together in Woodhouse & Little London,18/06/2013,20131400233,268.75,0,Neighbourhood grant,Supplies & Services
Leeds City Council,http://opendatacommunities.org/id/metropolitan-district-council/leeds,12/11/2014,Citizens & Communities,Caring Together in Woodhouse & Little London,30/10/2013,20131400234,35.58,0,Neighbourhood grant,Supplies & Services
Leeds City Council,http://opendatacommunities.org/id/metropolitan-district-council/leeds,12/11/2014,Citizens & Communities,Caring Together in Woodhouse & Little London,30/10/2013,20131400235,394.63,0,Neighbourhood grant,Supplies & Services
Leeds City Council,http://opendatacommunities.org/id/metropolitan-district-council/leeds,12/11/2014,Citizens & Communities,Caring Together in Woodhouse & Little London,30/10/2013,20131400236,397.33,0,Neighbourhood grant,Supplies & Services
Leeds City Council,http://opendatacommunities.org/id/metropolitan-district-council/leeds,12/11/2014,Adult Social Care,CARING TOGETHER IN WOODHOUSE AND LITTLE,30/08/2013,20131400237,200,0,Carers Small Group Grant,Supplies & Services
Leeds City Council,http://opendatacommunities.org/id/metropolitan-district-council/leeds,12/11/2014,Citizens & Communities,Carlton Village Residents Association,17/01/2014,20131400238,500,0,Neighbourhood grant,Supplies & Services
Leeds City Council,http://opendatacommunities.org/id/metropolitan-district-council/leeds,12/11/2014,Citizens & Communities,CASAC LEEDS LIMITED,07/06/2013,20131400239,500,0,Neighbourhood grant,Supplies & Services
Leeds City Council,http://opendatacommunities.org/id/metropolitan-district-council/leeds,12/11/2014,Citizens & Communities,CASAC LEEDS LIMITED,26/04/2013,20131400240,"1,357.00",0,Neighbourhood grant,Supplies & Services
Leeds City Council,http://opendatacommunities.org/id/metropolitan-district-council/leeds,12/11/2014,Citizens & Communities,CASAC LEEDS LIMITED,26/04/2013,20131400241,"13,634.00",0,Neighbourhood grant,Supplies & Services
Leeds City Council,http://opendatacommunities.org/id/metropolitan-district-council/leeds,12/11/2014,Citizens & Communities,CASAC LEEDS LIMITED,18/02/2014,20131400242,"1,200.00",0,Neighbourhood grant,Supplies & Services
Leeds City Council,http://opendatacommunities.org/id/metropolitan-district-council/leeds,12/11/2014,Citizens & Communities,CASAC LEEDS LIMITED,23/12/2013,20131400243,825,0,Neighbourhood grant,Supplies & Services
Leeds City Council,http://opendatacommunities.org/id/metropolitan-district-council/leeds,12/11/2014,Citizens & Communities,CASAC LEEDS LIMITED,11/11/2013,20131400244,"1,650.00",0,Neighbourhood grant,Supplies & Services
Leeds City Council,http://opendatacommunities.org/id/metropolitan-district-council/leeds,12/11/2014,Citizens & Communities,CASAC LEEDS LIMITED,26/04/2013,20131400245,"4,163.00",0,Neighbourhood grant,Supplies & Services
Leeds City Council,http://opendatacommunities.org/id/metropolitan-district-council/leeds,12/11/2014,Citizens & Communities,CASAC LEEDS LIMITED,02/05/2013,20131400246,9,0,Neighbourhood grant,Supplies & Services
Leeds City Council,http://opendatacommunities.org/id/metropolitan-district-council/leeds,12/11/2014,City Development,Casey Orr (photograhy artist),17/05/2013,20131400247,"7,700.00",0,Leeds Inspired grant,Supplies & Services
Leeds City Council,http://opendatacommunities.org/id/metropolitan-district-council/leeds,12/11/2014,Citizens & Communities,CATCH,04/11/2013,20131400248,"1,268.00",0,Neighbourhood grant,Supplies & Services
Leeds City Council,http://opendatacommunities.org/id/metropolitan-district-council/leeds,12/11/2014,Environment & Housing,CATCH,12/08/2013,20131400249,"6,995.00",0,Regeneration capital grant,Capital Expenditure
Leeds City Council,http://opendatacommunities.org/id/metropolitan-district-council/leeds,12/11/2014,Strategic & Central,Central Park Residents Group,07/01/2014,20131400250,100,0,Locality grant,Supplies & Services
Leeds City Council,http://opendatacommunities.org/id/metropolitan-district-council/leeds,12/11/2014,Strategic & Central,CFYDC (Chance),25/03/2014,20131400251,100,0,Locality grant,Supplies & Services
Leeds City Council,http://opendatacommunities.org/id/metropolitan-district-council/leeds,12/11/2014,Citizens & Communities,CFYDC (Chance),08/10/2013,20131400252,"3,506.00",0,Neighbourhood grant,Supplies & Services
Leeds City Council,http://opendatacommunities.org/id/metropolitan-district-council/leeds,12/11/2014,Citizens & Communities,CFYDC (Chance),14/01/2014,20131400253,"4,000.00",0,Neighbourhood grant,Supplies & Services
Leeds City Council,http://opendatacommunities.org/id/metropolitan-district-council/leeds,12/11/2014,Citizens & Communities,CFYDC (Chance),29/04/2013,20131400254,250,0,Proceeds of Crime grant,Supplies & Services
Leeds City Council,http://opendatacommunities.org/id/metropolitan-district-council/leeds,12/11/2014,Citizens & Communities,CFYDC (Chance),13/03/2014,20131400255,250,0,Proceeds of Crime grant,Supplies & Services
Leeds City Council,http://opendatacommunities.org/id/metropolitan-district-council/leeds,12/11/2014,Strategic & Central,Chapel Allerton Arts Festival,04/06/2013,20131400256,300,0,Locality grant,Supplies & Services
Leeds City Council,http://opendatacommunities.org/id/metropolitan-district-council/leeds,12/11/2014,Citizens & Communities,Chapel Allerton Arts Festival,04/12/2013,20131400257,"2,875.00",0,Neighbourhood grant,Supplies & Services
Leeds City Council,http://opendatacommunities.org/id/metropolitan-district-council/leeds,12/11/2014,Strategic & Central,Chapel Allerton Park Amateur Bowling,04/06/2013,20131400258,100,0,Locality grant,Supplies & Services
Leeds City Council,http://opendatacommunities.org/id/metropolitan-district-council/leeds,12/11/2014,Environment & Housing,CHAPELTOWN CITIZENS ADVICE BUREAU,18/04/2013,20131400259,"83,515.50",0,Advice agencies grant funding,Supplies & Services
Leeds City Council,http://opendatacommunities.org/id/metropolitan-district-council/leeds,12/11/2014,Environment & Housing,CHAPELTOWN CITIZENS ADVICE BUREAU,17/12/2013,20131400260,"83,515.50",0,Advice agencies grant funding,Supplies & Services
Leeds City Council,http://opendatacommunities.org/id/metropolitan-district-council/leeds,12/11/2014,Environment & Housing,CHAPELTOWN CITIZENS ADVICE BUREAU,18/09/2013,20131400261,"83,515.50",0,Advice agencies grant funding,Supplies & Services
Leeds City Council,http://opendatacommunities.org/id/metropolitan-district-council/leeds,12/11/2014,Environment & Housing,CHAPELTOWN CITIZENS ADVICE BUREAU,01/07/2013,20131400262,"83,515.50",0,Advice agencies grant funding,Supplies & Services
Leeds City Council,http://opendatacommunities.org/id/metropolitan-district-council/leeds,12/11/2014,Adult Social Care,CHAPELTOWN CITIZENS ADVICE BUREAU,02/04/2013,20131400263,"9,383.75",0,Learning Disabilities grant,Supplies & Services
Leeds City Council,http://opendatacommunities.org/id/metropolitan-district-council/leeds,12/11/2014,Adult Social Care,CHAPELTOWN CITIZENS ADVICE BUREAU,10/01/2014,20131400264,"9,383.75",0,Learning Disabilities grant,Supplies & Services
Leeds City Council,http://opendatacommunities.org/id/metropolitan-district-council/leeds,12/11/2014,Adult Social Care,CHAPELTOWN CITIZENS ADVICE BUREAU,26/09/2013,20131400265,"9,383.75",0,Learning Disabilities grant,Supplies & Services
Leeds City Council,http://opendatacommunities.org/id/metropolitan-district-council/leeds,12/11/2014,Adult Social Care,CHAPELTOWN CITIZENS ADVICE BUREAU,25/06/2013,20131400266,"9,383.75",0,Learning Disabilities grant,Supplies & Services
Leeds City Council,http://opendatacommunities.org/id/metropolitan-district-council/leeds,12/11/2014,Citizens & Communities,CHAPELTOWN CITIZENS ADVICE BUREAU,09/07/2013,20131400267,"38,812.00",0,Social Fund grant,Supplies & Services
Leeds City Council,http://opendatacommunities.org/id/metropolitan-district-council/leeds,12/11/2014,Citizens & Communities,CHAPELTOWN CITIZENS ADVICE BUREAU,20/12/2013,20131400268,100,0,Social Fund grant,Supplies & Services
Leeds City Council,http://opendatacommunities.org/id/metropolitan-district-council/leeds,12/11/2014,Citizens & Communities,CHAPELTOWN COMMUNITY CENTRE,08/10/2013,20131400269,"3,000.00",0,Neighbourhood grant,Supplies & Services
Leeds City Council,http://opendatacommunities.org/id/metropolitan-district-council/leeds,12/11/2014,Citizens & Communities,Chapeltown Community Netball Club,29/04/2013,20131400270,500,0,Neighbourhood grant,Supplies & Services
Leeds City Council,http://opendatacommunities.org/id/metropolitan-district-council/leeds,12/11/2014,Citizens & Communities,Chapeltown Community Netball Club,22/04/2013,20131400271,250,0,Proceeds of Crime grant,Supplies & Services
Leeds City Council,http://opendatacommunities.org/id/metropolitan-district-council/leeds,12/11/2014,Citizens & Communities,Chapeltown Football Youth Development Centre,11/02/2014,20131400272,250,0,Proceeds of Crime grant,Supplies & Services
Leeds City Council,http://opendatacommunities.org/id/metropolitan-district-council/leeds,12/11/2014,Strategic & Central,Charlton Grove Association,17/09/2013,20131400273,300,0,Locality grant,Supplies & Services
Leeds City Council,http://opendatacommunities.org/id/metropolitan-district-council/leeds,12/11/2014,Citizens & Communities,Christ Church Armley Community Projects,02/04/2014,20131400274,"2,680.99",0,Neighbourhood grant,Supplies & Services
Leeds City Council,http://opendatacommunities.org/id/metropolitan-district-council/leeds,12/11/2014,Citizens & Communities,Christ Church Armley Community Projects,21/01/2014,20131400275,"1,089.33",0,Neighbourhood grant,Supplies & Services
Leeds City Council,http://opendatacommunities.org/id/metropolitan-district-council/leeds,12/11/2014,Strategic & Central,CHRIST CHURCH HALTON,28/01/2014,20131400276,300,0,Locality grant,Supplies & Services
Leeds City Council,http://opendatacommunities.org/id/metropolitan-district-council/leeds,12/11/2014,Citizens & Communities,CHRIST CHURCH HALTON,04/11/2013,20131400277,50,0,Neighbourhood grant,Supplies & Services
Leeds City Council,http://opendatacommunities.org/id/metropolitan-district-council/leeds,12/11/2014,Strategic & Central,Christ Church Lofthouse Mother's Union,05/11/2013,20131400278,100,0,Locality grant,Supplies & Services
Leeds City Council,http://opendatacommunities.org/id/metropolitan-district-council/leeds,12/11/2014,Adult Social Care,Christ Church Lunch Club,12/04/2013,20131400279,"2,551.00",0,Luncheon Club grant,Supplies & Services
Leeds City Council,http://opendatacommunities.org/id/metropolitan-district-council/leeds,12/11/2014,Citizens & Communities,Christ Church Lunch Club,28/03/2014,20131400280,"3,231.78",0,Neighbourhood grant,Supplies & Services
Leeds City Council,http://opendatacommunities.org/id/metropolitan-district-council/leeds,12/11/2014,Citizens & Communities,Christ Church Upper Armley Pcc,13/01/2014,20131400281,"1,089.33",0,Neighbourhood grant,Supplies & Services
Leeds City Council,http://opendatacommunities.org/id/metropolitan-district-council/leeds,12/11/2014,Strategic & Central,Christ The Saviour Church,04/03/2014,20131400282,300,0,Locality grant,Supplies & Services
Leeds City Council,http://opendatacommunities.org/id/metropolitan-district-council/leeds,12/11/2014,Strategic & Central,Christ The Saviour Church,16/04/2013,20131400283,300,0,Locality grant,Supplies & Services
Leeds City Council,http://opendatacommunities.org/id/metropolitan-district-council/leeds,12/11/2014,Strategic & Central,Christmas Day Project,22/10/2013,20131400284,200,0,Locality grant,Supplies & Services
Leeds City Council,http://opendatacommunities.org/id/metropolitan-district-council/leeds,12/11/2014,Strategic & Central,Church Gardens Coffee Club,02/07/2013,20131400285,200,0,Locality grant,Supplies & Services
Leeds City Council,http://opendatacommunities.org/id/metropolitan-district-council/leeds,12/11/2014,Strategic & Central,Church In Cottingley,25/03/2014,20131400286,50,0,Locality grant,Supplies & Services
Leeds City Council,http://opendatacommunities.org/id/metropolitan-district-council/leeds,12/11/2014,Strategic & Central,Church Lane Allotments Association,25/02/2014,20131400287,402,0,Locality grant,Supplies & Services
Leeds City Council,http://opendatacommunities.org/id/metropolitan-district-council/leeds,12/11/2014,Environment & Housing,Church of St Luke,17/01/2014,20131400288,857.2,0,Disabled Facilities Grant,Capital Expenditure
Leeds City Council,http://opendatacommunities.org/id/metropolitan-district-council/leeds,12/11/2014,Strategic & Central,"Church of The Ascension, Seacroft",28/01/2014,20131400289,100,0,Locality grant,Supplies & Services
Leeds City Council,http://opendatacommunities.org/id/metropolitan-district-council/leeds,12/11/2014,Strategic & Central,Churchwood & Drummonds Residents Assoc,03/04/2014,20131400290,100,0,Locality grant,Supplies & Services
Leeds City Council,http://opendatacommunities.org/id/metropolitan-district-council/leeds,12/11/2014,Strategic & Central,Churchwood & Drummonds Residents Assoc,07/01/2014,20131400291,100,0,Locality grant,Supplies & Services
Leeds City Council,http://opendatacommunities.org/id/metropolitan-district-council/leeds,12/11/2014,Strategic & Central,Churwell Action Group Environmental Volunteers,21/01/2014,20131400292,200,0,Locality grant,Supplies & Services
Leeds City Council,http://opendatacommunities.org/id/metropolitan-district-council/leeds,12/11/2014,Strategic & Central,Churwell Action Group Environmental Volunteers,07/01/2014,20131400293,200,0,Locality grant,Supplies & Services
Leeds City Council,http://opendatacommunities.org/id/metropolitan-district-council/leeds,12/11/2014,Strategic & Central,Churwell Action Group Environmental Volunteers,17/12/2013,20131400294,136,0,Locality grant,Supplies & Services
Leeds City Council,http://opendatacommunities.org/id/metropolitan-district-council/leeds,12/11/2014,Strategic & Central,Churwell Action Group Environmental Volunteers,16/07/2013,20131400295,"1,000.00",0,Locality grant,Supplies & Services
Leeds City Council,http://opendatacommunities.org/id/metropolitan-district-council/leeds,12/11/2014,Strategic & Central,Churwell Action Group Environmental Volunteers,04/06/2013,20131400296,53,0,Locality grant,Supplies & Services
Leeds City Council,http://opendatacommunities.org/id/metropolitan-district-council/leeds,12/11/2014,Citizens & Communities,Churwell Action Group Environmental Volunteers,07/03/2014,20131400297,500,0,Neighbourhood grant,Supplies & Services
Leeds City Council,http://opendatacommunities.org/id/metropolitan-district-council/leeds,12/11/2014,Strategic & Central,Churwell Community Association,30/04/2013,20131400298,189.98,0,Locality grant,Supplies & Services
Leeds City Council,http://opendatacommunities.org/id/metropolitan-district-council/leeds,12/11/2014,Strategic & Central,Churwell Community Association,28/01/2014,20131400299,37.8,0,Locality grant,Supplies & Services
Leeds City Council,http://opendatacommunities.org/id/metropolitan-district-council/leeds,12/11/2014,Strategic & Central,Churwell Community Association,06/08/2013,20131400300,210,0,Locality grant,Supplies & Services
Leeds City Council,http://opendatacommunities.org/id/metropolitan-district-council/leeds,12/11/2014,Strategic & Central,Churwell Junior Youth Club,22/10/2013,20131400301,90,0,Locality grant,Supplies & Services
Leeds City Council,http://opendatacommunities.org/id/metropolitan-district-council/leeds,12/11/2014,Strategic & Central,Ciaran Bingham Foundation Trust,13/05/2013,20131400302,300,0,Locality grant,Supplies & Services
Leeds City Council,http://opendatacommunities.org/id/metropolitan-district-council/leeds,12/11/2014,Strategic & Central,CITY EVANGELICAL CHURCH,25/03/2014,20131400303,50,0,Locality grant,Supplies & Services
Leeds City Council,http://opendatacommunities.org/id/metropolitan-district-council/leeds,12/11/2014,City Development,City Of Leeds Gymnastics Club C I C,15/07/2013,20131400304,"60,000.00",0,Sports grant,Supplies & Services
Leeds City Council,http://opendatacommunities.org/id/metropolitan-district-council/leeds,12/11/2014,City Development,City Of Leeds Gymnastics Club C I C,24/06/2013,20131400305,"15,000.00",0,Sports grant,Supplies & Services
Leeds City Council,http://opendatacommunities.org/id/metropolitan-district-council/leeds,12/11/2014,Citizens & Communities,City Of Leeds Gymnastics Club C I C,20/08/2013,20131400306,"1,260.25",0,Neighbourhood grant,Supplies & Services
Leeds City Council,http://opendatacommunities.org/id/metropolitan-district-council/leeds,12/11/2014,Citizens & Communities,CITY OF LEEDS YMCA,06/09/2013,20131400307,"3,760.00",0,Neighbourhood grant,Supplies & Services
Leeds City Council,http://opendatacommunities.org/id/metropolitan-district-council/leeds,12/11/2014,Strategic & Central,CITY VARIETIES  LEEDS,26/11/2013,20131400308,100,0,Locality grant,Supplies & Services
Leeds City Council,http://opendatacommunities.org/id/metropolitan-district-council/leeds,12/11/2014,Strategic & Central,Clarkes Field Allotments,25/03/2014,20131400309,50,0,Locality grant,Supplies & Services
Leeds City Council,http://opendatacommunities.org/id/metropolitan-district-council/leeds,12/11/2014,Strategic & Central,CLEVELEYS COURT SOCIAL FUND,25/03/2014,20131400310,50,0,Locality grant,Supplies & Services
Leeds City Council,http://opendatacommunities.org/id/metropolitan-district-council/leeds,12/11/2014,Strategic & Central,Cliff Top Park Residents Association,08/10/2013,20131400311,300,0,Locality grant,Supplies & Services
Leeds City Council,http://opendatacommunities.org/id/metropolitan-district-council/leeds,12/11/2014,City Development,CLOTH CAT STUDIOS LTD,06/08/2013,20131400312,500,0,Leeds Inspired grant,Supplies & Services
Leeds City Council,http://opendatacommunities.org/id/metropolitan-district-council/leeds,12/11/2014,Citizens & Communities,Cloverleaf Christian Center,06/02/2014,20131400313,"1,500.00",0,Foodbank Funding,Supplies & Services
Leeds City Council,http://opendatacommunities.org/id/metropolitan-district-council/leeds,12/11/2014,Citizens & Communities,Collingham Music Association,20/02/2014,20131400314,250,0,Proceeds of Crime grant,Supplies & Services
Leeds City Council,http://opendatacommunities.org/id/metropolitan-district-council/leeds,12/11/2014,Citizens & Communities,Colton Institute,28/10/2013,20131400315,490,0,Neighbourhood grant,Supplies & Services
Leeds City Council,http://opendatacommunities.org/id/metropolitan-district-council/leeds,12/11/2014,Strategic & Central,Colton Juniors FC,18/03/2014,20131400316,300,0,Locality grant,Supplies & Services
Leeds City Council,http://opendatacommunities.org/id/metropolitan-district-council/leeds,12/11/2014,Strategic & Central,Colton Juniors FC,12/11/2013,20131400317,300,0,Locality grant,Supplies & Services
Leeds City Council,http://opendatacommunities.org/id/metropolitan-district-council/leeds,12/11/2014,Citizens & Communities,COMMUNITY ACTION LITTLE LONDON & SERVIAS,23/01/2014,20131400318,"1,725.59",0,Neighbourhood grant,Supplies & Services
Leeds City Council,http://opendatacommunities.org/id/metropolitan-district-council/leeds,12/11/2014,Citizens & Communities,COMMUNITY ACTION LITTLE LONDON & SERVIAS,30/09/2013,20131400319,"1,170.00",0,Neighbourhood grant,Supplies & Services
Leeds City Council,http://opendatacommunities.org/id/metropolitan-district-council/leeds,12/11/2014,Citizens & Communities,COMMUNITY ACTION LITTLE LONDON & SERVIAS,19/07/2013,20131400320,"1,451.00",0,Neighbourhood grant,Supplies & Services
Leeds City Council,http://opendatacommunities.org/id/metropolitan-district-council/leeds,12/11/2014,Strategic & Central,Community Archives,10/12/2013,20131400321,200,0,Locality grant,Supplies & Services
Leeds City Council,http://opendatacommunities.org/id/metropolitan-district-council/leeds,12/11/2014,Citizens & Communities,Community Highlights,02/04/2014,20131400322,500,0,Neighbourhood grant,Supplies & Services
Leeds City Council,http://opendatacommunities.org/id/metropolitan-district-council/leeds,12/11/2014,Children's Services,Community Leeds After School,12/11/2013,20131400323,"1,440.00",0,Education grant,Supplies & Services
Leeds City Council,http://opendatacommunities.org/id/metropolitan-district-council/leeds,12/11/2014,Strategic & Central,Community Unity,15/10/2013,20131400324,200,0,Locality grant,Supplies & Services
Leeds City Council,http://opendatacommunities.org/id/metropolitan-district-council/leeds,12/11/2014,Citizens & Communities,Community Unity,09/04/2014,20131400325,"1,500.00",0,Neighbourhood grant,Supplies & Services
Leeds City Council,http://opendatacommunities.org/id/metropolitan-district-council/leeds,12/11/2014,Citizens & Communities,Community Unity,04/12/2013,20131400326,"2,285.54",0,Neighbourhood grant,Supplies & Services
Leeds City Council,http://opendatacommunities.org/id/metropolitan-district-council/leeds,12/11/2014,Strategic & Central,Concord,04/03/2014,20131400327,300,0,Locality grant,Supplies & Services
Leeds City Council,http://opendatacommunities.org/id/metropolitan-district-council/leeds,12/11/2014,Strategic & Central,Concord,20/11/2013,20131400328,100,0,Locality grant,Supplies & Services
Leeds City Council,http://opendatacommunities.org/id/metropolitan-district-council/leeds,12/11/2014,Strategic & Central,Congregational Church,28/01/2014,20131400329,100,0,Locality grant,Supplies & Services
Leeds City Council,http://opendatacommunities.org/id/metropolitan-district-council/leeds,12/11/2014,Adult Social Care,CONVENT OF MERCY,12/04/2013,20131400330,"1,656.00",0,Luncheon Club grant,Supplies & Services
Leeds City Council,http://opendatacommunities.org/id/metropolitan-district-council/leeds,12/11/2014,Adult Social Care,COOKRIDGE LUNCHEON CLUB,12/04/2013,20131400331,"2,551.00",0,Luncheon Club grant,Supplies & Services
Leeds City Council,http://opendatacommunities.org/id/metropolitan-district-council/leeds,12/11/2014,Adult Social Care,Cottingley Brunch Club,24/05/2013,20131400332,"2,551.00",0,Luncheon Club grant,Supplies & Services
Leeds City Council,http://opendatacommunities.org/id/metropolitan-district-council/leeds,12/11/2014,Strategic & Central,Cottingley Community Centre,25/03/2014,20131400333,50,0,Locality grant,Supplies & Services
Leeds City Council,http://opendatacommunities.org/id/metropolitan-district-council/leeds,12/11/2014,Citizens & Communities,Cottingley Community Centre,11/04/2014,20131400334,37.5,0,Neighbourhood grant,Supplies & Services
Leeds City Council,http://opendatacommunities.org/id/metropolitan-district-council/leeds,12/11/2014,Strategic & Central,Cottingley In Bloom,25/03/2014,20131400335,150,0,Locality grant,Supplies & Services
Leeds City Council,http://opendatacommunities.org/id/metropolitan-district-council/leeds,12/11/2014,Citizens & Communities,Cottingley In Bloom,13/05/2013,20131400336,495,0,Neighbourhood grant,Supplies & Services
Leeds City Council,http://opendatacommunities.org/id/metropolitan-district-council/leeds,12/11/2014,Citizens & Communities,Council of Christians and Jews,02/08/2013,20131400337,350,0,Neighbourhood grant,Supplies & Services
Leeds City Council,http://opendatacommunities.org/id/metropolitan-district-council/leeds,12/11/2014,Citizens & Communities,Council of Christians and Jews,07/08/2013,20131400338,250,0,Neighbourhood grant,Supplies & Services
Leeds City Council,http://opendatacommunities.org/id/metropolitan-district-council/leeds,12/11/2014,Citizens & Communities,Council of Christians and Jews,26/06/2013,20131400339,250,0,Proceeds of Crime grant,Supplies & Services
Leeds City Council,http://opendatacommunities.org/id/metropolitan-district-council/leeds,12/11/2014,Strategic & Central,Coupland Road Residents Association,02/07/2013,20131400340,200,0,Locality grant,Supplies & Services
Leeds City Council,http://opendatacommunities.org/id/metropolitan-district-council/leeds,12/11/2014,City Development,COURTHOUSE PROJECT (OTLEY) LTD,11/04/2013,20131400341,"5,500.00",0,Arts grant,Supplies & Services
Leeds City Council,http://opendatacommunities.org/id/metropolitan-district-council/leeds,12/11/2014,Citizens & Communities,Cow Close Community Corner,10/12/2013,20131400342,820.1,0,Neighbourhood grant,Supplies & Services
Leeds City Council,http://opendatacommunities.org/id/metropolitan-district-council/leeds,12/11/2014,Citizens & Communities,Cow Close Community Corner,17/09/2013,20131400343,324.27,0,Neighbourhood grant,Supplies & Services
Leeds City Council,http://opendatacommunities.org/id/metropolitan-district-council/leeds,12/11/2014,Strategic & Central,Cow Close Community Corner,15/10/2013,20131400344,479.99,0,Locality grant,Supplies & Services
Leeds City Council,http://opendatacommunities.org/id/metropolitan-district-council/leeds,12/11/2014,Strategic & Central,Cragg Hill And Woodside Residents Group,11/03/2014,20131400345,169,0,Locality grant,Supplies & Services
Leeds City Council,http://opendatacommunities.org/id/metropolitan-district-council/leeds,12/11/2014,Strategic & Central,CRANMER CALL TENANTS AND RESIDENTS,25/06/2013,20131400346,600,0,Locality grant,Supplies & Services
Leeds City Council,http://opendatacommunities.org/id/metropolitan-district-council/leeds,12/11/2014,Strategic & Central,CRANMER CALL TENANTS AND RESIDENTS,20/02/2014,20131400347,150,0,Locality grant,Supplies & Services
Leeds City Council,http://opendatacommunities.org/id/metropolitan-district-council/leeds,12/11/2014,Strategic & Central,CRANMER CALL TENANTS AND RESIDENTS,11/02/2014,20131400348,150,0,Locality grant,Supplies & Services
Leeds City Council,http://opendatacommunities.org/id/metropolitan-district-council/leeds,12/11/2014,Environment & Housing,CRI,17/01/2014,20131400349,"25,000.00",0,Homelessness grant,Supplies & Services
Leeds City Council,http://opendatacommunities.org/id/metropolitan-district-council/leeds,12/11/2014,Environment & Housing,CRI,14/10/2013,20131400350,"25,000.00",0,Homelessness grant,Supplies & Services
Leeds City Council,http://opendatacommunities.org/id/metropolitan-district-council/leeds,12/11/2014,Environment & Housing,CRI,05/07/2013,20131400351,"25,000.00",0,Homelessness grant,Supplies & Services
Leeds City Council,http://opendatacommunities.org/id/metropolitan-district-council/leeds,12/11/2014,Environment & Housing,CRI,28/05/2013,20131400352,"25,000.00",0,Homelessness grant,Supplies & Services
Leeds City Council,http://opendatacommunities.org/id/metropolitan-district-council/leeds,12/11/2014,Strategic & Central,Crimbles Community Group,10/12/2013,20131400353,400,0,Locality grant,Supplies & Services
Leeds City Council,http://opendatacommunities.org/id/metropolitan-district-council/leeds,12/11/2014,Strategic & Central,Crimbles Community Group,24/09/2013,20131400354,150,0,Locality grant,Supplies & Services
Leeds City Council,http://opendatacommunities.org/id/metropolitan-district-council/leeds,12/11/2014,Strategic & Central,Cross Flatts Park Bandstand Appeal,25/03/2014,20131400355,500,0,Locality grant,Supplies & Services
Leeds City Council,http://opendatacommunities.org/id/metropolitan-district-council/leeds,12/11/2014,Strategic & Central,Cross Gates Youth Opportunities,16/07/2013,20131400356,300,0,Locality grant,Supplies & Services
Leeds City Council,http://opendatacommunities.org/id/metropolitan-district-council/leeds,12/11/2014,Citizens & Communities,Cross Gates Youth Opportunities,07/08/2013,20131400357,500,0,Neighbourhood grant,Supplies & Services
Leeds City Council,http://opendatacommunities.org/id/metropolitan-district-council/leeds,12/11/2014,Strategic & Central,CROSS INGRAMS AREA RESIDENTS ASSOCIATION,25/03/2014,20131400358,50,0,Locality grant,Supplies & Services
Leeds City Council,http://opendatacommunities.org/id/metropolitan-district-council/leeds,12/11/2014,Strategic & Central,Crossgates And District Angling Club,11/03/2014,20131400359,300,0,Locality grant,Supplies & Services
Leeds City Council,http://opendatacommunities.org/id/metropolitan-district-council/leeds,12/11/2014,Adult Social Care,CROSSGATES AND DISTRICT GOOD NEIGHBOURS,29/04/2013,20131400360,250,0,Dementia Grant ,Supplies & Services
Leeds City Council,http://opendatacommunities.org/id/metropolitan-district-council/leeds,12/11/2014,Strategic & Central,CROSSGATES AND DISTRICT GOOD NEIGHBOURS,28/01/2014,20131400361,200,0,Locality grant,Supplies & Services
Leeds City Council,http://opendatacommunities.org/id/metropolitan-district-council/leeds,12/11/2014,Strategic & Central,CROSSGATES AND DISTRICT GOOD NEIGHBOURS,17/09/2013,20131400362,300,0,Locality grant,Supplies & Services
Leeds City Council,http://opendatacommunities.org/id/metropolitan-district-council/leeds,12/11/2014,Citizens & Communities,CROSSGATES AND DISTRICT GOOD NEIGHBOURS,21/11/2013,20131400363,487.5,0,Neighbourhood grant,Supplies & Services
Leeds City Council,http://opendatacommunities.org/id/metropolitan-district-council/leeds,12/11/2014,Citizens & Communities,CROSSGATES AND DISTRICT GOOD NEIGHBOURS,27/03/2014,20131400364,"3,000.00",0,Neighbourhood grant,Supplies & Services
Leeds City Council,http://opendatacommunities.org/id/metropolitan-district-council/leeds,12/11/2014,Adult Social Care,CROSSGATES CARERS GROUP,30/09/2013,20131400365,300,0,Carers Small Group Grant,Supplies & Services
Leeds City Council,http://opendatacommunities.org/id/metropolitan-district-council/leeds,12/11/2014,City Development,Crossgates Drop In,12/12/2013,20131400366,810,0,Leeds Inspired grant,Supplies & Services
Leeds City Council,http://opendatacommunities.org/id/metropolitan-district-council/leeds,12/11/2014,Strategic & Central,Crossgates Methodist Church,17/09/2013,20131400367,300,0,Locality grant,Supplies & Services
Leeds City Council,http://opendatacommunities.org/id/metropolitan-district-council/leeds,12/11/2014,Strategic & Central,Crossgates Over 60s Club,28/01/2014,20131400368,150,0,Locality grant,Supplies & Services
Leeds City Council,http://opendatacommunities.org/id/metropolitan-district-council/leeds,12/11/2014,Strategic & Central,Crowtrees Court,22/10/2013,20131400369,175,0,Locality grant,Supplies & Services
Leeds City Council,http://opendatacommunities.org/id/metropolitan-district-council/leeds,12/11/2014,Strategic & Central,Danby Rovers,06/08/2013,20131400370,200,0,Locality grant,Supplies & Services
Leeds City Council,http://opendatacommunities.org/id/metropolitan-district-council/leeds,12/11/2014,Strategic & Central,Darul Huda Association,04/03/2014,20131400371,500,0,Locality grant,Supplies & Services
Leeds City Council,http://opendatacommunities.org/id/metropolitan-district-council/leeds,12/11/2014,Strategic & Central,Darul Huda Association,04/06/2013,20131400372,150,0,Locality grant,Supplies & Services
Leeds City Council,http://opendatacommunities.org/id/metropolitan-district-council/leeds,12/11/2014,City Development,David Bridges (artist),12/09/2013,20131400373,"1,000.00",0,Leeds Inspired grant,Supplies & Services
Leeds City Council,http://opendatacommunities.org/id/metropolitan-district-council/leeds,12/11/2014,Environment & Housing,DAWSONS CORNER TENANTS ASSOCIATION,17/02/2014,20131400374,100,0,Housing grant,Supplies & Services
Leeds City Council,http://opendatacommunities.org/id/metropolitan-district-council/leeds,12/11/2014,City Development,DAZL,11/04/2013,20131400375,"6,500.00",0,Arts grant,Supplies & Services
Leeds City Council,http://opendatacommunities.org/id/metropolitan-district-council/leeds,12/11/2014,Citizens & Communities,DAZL,06/12/2013,20131400376,"4,658.77",0,Neighbourhood grant,Supplies & Services
Leeds City Council,http://opendatacommunities.org/id/metropolitan-district-council/leeds,12/11/2014,Citizens & Communities,DAZL,06/02/2014,20131400377,"2,855.04",0,Neighbourhood grant,Supplies & Services
Leeds City Council,http://opendatacommunities.org/id/metropolitan-district-council/leeds,12/11/2014,Citizens & Communities,DAZL,03/04/2014,20131400378,716.33,0,Neighbourhood grant,Supplies & Services
Leeds City Council,http://opendatacommunities.org/id/metropolitan-district-council/leeds,12/11/2014,Citizens & Communities,DAZL,12/08/2013,20131400379,"1,144.86",0,Neighbourhood grant,Supplies & Services
Leeds City Council,http://opendatacommunities.org/id/metropolitan-district-council/leeds,12/11/2014,Strategic & Central,Deen Enterprises Community Forum,15/10/2013,20131400380,200,0,Locality grant,Supplies & Services
Leeds City Council,http://opendatacommunities.org/id/metropolitan-district-council/leeds,12/11/2014,Strategic & Central,Deen Enterprises Community Forum,08/10/2013,20131400381,200,0,Locality grant,Supplies & Services
Leeds City Council,http://opendatacommunities.org/id/metropolitan-district-council/leeds,12/11/2014,Strategic & Central,Deen Enterprises Community Forum,24/09/2013,20131400382,100,0,Locality grant,Supplies & Services
Leeds City Council,http://opendatacommunities.org/id/metropolitan-district-council/leeds,12/11/2014,Citizens & Communities,Deen Enterprises Community Forum,28/11/2013,20131400383,250,0,Proceeds of Crime grant,Supplies & Services
Leeds City Council,http://opendatacommunities.org/id/metropolitan-district-council/leeds,12/11/2014,Strategic & Central,Denshaws Newlands and Rydals Residents,19/11/2013,20131400384,120,0,Locality grant,Supplies & Services
Leeds City Council,http://opendatacommunities.org/id/metropolitan-district-council/leeds,12/11/2014,Strategic & Central,Diamond Jubilee Committee,10/12/2013,20131400385,300,0,Locality grant,Supplies & Services
Leeds City Council,http://opendatacommunities.org/id/metropolitan-district-council/leeds,12/11/2014,Strategic & Central,Different Strokes Leeds Central,09/07/2013,20131400386,50,0,Locality grant,Supplies & Services
Leeds City Council,http://opendatacommunities.org/id/metropolitan-district-council/leeds,12/11/2014,Citizens & Communities,Dosti Asian Womens Support Service,24/02/2014,20131400387,625,0,Equalities grant,Supplies & Services
Leeds City Council,http://opendatacommunities.org/id/metropolitan-district-council/leeds,12/11/2014,Strategic & Central,DRIGHLINGTON BRASS BAND,25/06/2013,20131400388,600,0,Locality grant,Supplies & Services
Leeds City Council,http://opendatacommunities.org/id/metropolitan-district-council/leeds,12/11/2014,Strategic & Central,Drighlington Old Folks Outing,14/01/2014,20131400389,60,0,Locality grant,Supplies & Services
Leeds City Council,http://opendatacommunities.org/id/metropolitan-district-council/leeds,12/11/2014,Citizens & Communities,Drighlington Scout & Guide Hut Committee,29/11/2013,20131400390,500,0,Neighbourhood grant,Supplies & Services
Leeds City Council,http://opendatacommunities.org/id/metropolitan-district-council/leeds,12/11/2014,Strategic & Central,Duke Of Edinburgh,16/07/2013,20131400391,300,0,Locality grant,Supplies & Services
Leeds City Council,http://opendatacommunities.org/id/metropolitan-district-council/leeds,12/11/2014,Strategic & Central,Dulverton Court,25/03/2014,20131400392,50,0,Locality grant,Supplies & Services
Leeds City Council,http://opendatacommunities.org/id/metropolitan-district-council/leeds,12/11/2014,Environment & Housing,East Ardsley In Bloom,22/05/2013,20131400393,500,0,Horticultural grant,Supplies & Services
Leeds City Council,http://opendatacommunities.org/id/metropolitan-district-council/leeds,12/11/2014,Adult Social Care,EAST ARDSLEY LUNCHEON CLUB,12/04/2013,20131400394,"1,656.00",0,Luncheon Club grant,Supplies & Services
Leeds City Council,http://opendatacommunities.org/id/metropolitan-district-council/leeds,12/11/2014,Citizens & Communities,East Ardsley United Cricket Club,13/09/2013,20131400395,500,0,Neighbourhood grant,Supplies & Services
Leeds City Council,http://opendatacommunities.org/id/metropolitan-district-council/leeds,12/11/2014,Strategic & Central,East Leeds Garforth Tenants And,29/10/2013,20131400396,100,0,Locality grant,Supplies & Services
Leeds City Council,http://opendatacommunities.org/id/metropolitan-district-council/leeds,12/11/2014,Strategic & Central,EAST LEEDS HISTORY & ARCHAEOLOGY SOCIETY,18/03/2014,20131400397,300,0,Locality grant,Supplies & Services
Leeds City Council,http://opendatacommunities.org/id/metropolitan-district-council/leeds,12/11/2014,Strategic & Central,EAST LEEDS HISTORY AND ARCHEOLOGY,11/04/2013,20131400398,"1,471.00",0,Locality grant,Supplies & Services
Leeds City Council,http://opendatacommunities.org/id/metropolitan-district-council/leeds,12/11/2014,Strategic & Central,East Leigh Senior Citizens Club Tingley,05/11/2013,20131400399,200,0,Locality grant,Supplies & Services
Leeds City Council,http://opendatacommunities.org/id/metropolitan-district-council/leeds,12/11/2014,City Development,EAST STREET ARTS,02/04/2013,20131400400,"19,000.00",0,Arts grant,Supplies & Services
Leeds City Council,http://opendatacommunities.org/id/metropolitan-district-council/leeds,12/11/2014,Adult Social Care,EBENEZER METHODIST CHURCH LUNCHEON CLUB,12/04/2013,20131400401,"2,551.00",0,Luncheon Club grant,Supplies & Services
Leeds City Council,http://opendatacommunities.org/id/metropolitan-district-council/leeds,12/11/2014,Strategic & Central,Ebor Gardens Primary School Volunteors,07/01/2014,20131400402,100,0,Locality grant,Supplies & Services
Leeds City Council,http://opendatacommunities.org/id/metropolitan-district-council/leeds,12/11/2014,Adult Social Care,Elmet Carers Group,30/09/2013,20131400403,300,0,Carers Small Group Grant,Supplies & Services
Leeds City Council,http://opendatacommunities.org/id/metropolitan-district-council/leeds,12/11/2014,City Development,Emma Bolland (artist/writer),13/06/2013,20131400404,"2,500.00",0,Leeds Inspired grant,Supplies & Services
Leeds City Council,http://opendatacommunities.org/id/metropolitan-district-council/leeds,12/11/2014,Citizens & Communities,Enabled Works,05/11/2013,20131400405,"1,500.00",0,Neighbourhood grant,Supplies & Services
Leeds City Council,http://opendatacommunities.org/id/metropolitan-district-council/leeds,12/11/2014,Environment & Housing,Equality Leeds,18/04/2013,20131400406,"3,734.87",0,Support grant,Supplies & Services
Leeds City Council,http://opendatacommunities.org/id/metropolitan-district-council/leeds,12/11/2014,Citizens & Communities,Equality Leeds,06/01/2014,20131400407,"8,039.85",0,Equalities grant,Supplies & Services
Leeds City Council,http://opendatacommunities.org/id/metropolitan-district-council/leeds,12/11/2014,Citizens & Communities,Equality Leeds,23/09/2013,20131400408,"8,039.85",0,Equalities grant,Supplies & Services
Leeds City Council,http://opendatacommunities.org/id/metropolitan-district-council/leeds,12/11/2014,Citizens & Communities,Equality Leeds,17/06/2013,20131400409,"8,039.85",0,Equalities grant,Supplies & Services
Leeds City Council,http://opendatacommunities.org/id/metropolitan-district-council/leeds,12/11/2014,Citizens & Communities,Equality Leeds,03/03/2014,20131400410,"8,039.85",0,Equalities grant,Supplies & Services
Leeds City Council,http://opendatacommunities.org/id/metropolitan-district-council/leeds,12/11/2014,Strategic & Central,Fairfield Community Centre Partnership,29/10/2013,20131400411,300,0,Locality grant,Supplies & Services
Leeds City Council,http://opendatacommunities.org/id/metropolitan-district-council/leeds,12/11/2014,Citizens & Communities,Fairfield Community Centre Partnership,16/08/2013,20131400412,200,0,Neighbourhood grant,Supplies & Services
Leeds City Council,http://opendatacommunities.org/id/metropolitan-district-council/leeds,12/11/2014,Adult Social Care,Fairfield Community Centre Partnership,12/04/2013,20131400413,"2,551.00",0,Luncheon Club grant,Supplies & Services
Leeds City Council,http://opendatacommunities.org/id/metropolitan-district-council/leeds,12/11/2014,Citizens & Communities,Fairfield Community Centre Partnership,18/07/2013,20131400414,"1,205.00",0,Neighbourhood grant,Supplies & Services
Leeds City Council,http://opendatacommunities.org/id/metropolitan-district-council/leeds,12/11/2014,Citizens & Communities,Fairfield Community Centre Partnership,18/12/2013,20131400415,"2,410.00",0,Neighbourhood grant,Supplies & Services
Leeds City Council,http://opendatacommunities.org/id/metropolitan-district-council/leeds,12/11/2014,Citizens & Communities,Fairfield Community Centre Partnership,13/12/2013,20131400416,"1,205.00",0,Neighbourhood grant,Supplies & Services
Leeds City Council,http://opendatacommunities.org/id/metropolitan-district-council/leeds,12/11/2014,Strategic & Central,Far Headingley Village Society,07/01/2014,20131400417,350,0,Locality grant,Supplies & Services
Leeds City Council,http://opendatacommunities.org/id/metropolitan-district-council/leeds,12/11/2014,Citizens & Communities,Far Headingley Village Society,10/01/2014,20131400418,478.27,0,Neighbourhood grant,Supplies & Services
Leeds City Council,http://opendatacommunities.org/id/metropolitan-district-council/leeds,12/11/2014,Strategic & Central,Farnley Falcons Arlfc,03/04/2014,20131400419,500,0,Locality grant,Supplies & Services
Leeds City Council,http://opendatacommunities.org/id/metropolitan-district-council/leeds,12/11/2014,Adult Social Care,FARNLEY LUNCHEON CLUB,12/04/2013,20131400420,"2,551.00",0,Luncheon Club grant,Supplies & Services
Leeds City Council,http://opendatacommunities.org/id/metropolitan-district-council/leeds,12/11/2014,Citizens & Communities,Farsley Christmas Lights,25/11/2013,20131400421,"1,000.00",0,Neighbourhood grant,Supplies & Services
Leeds City Council,http://opendatacommunities.org/id/metropolitan-district-council/leeds,12/11/2014,Citizens & Communities,Farsley Christmas Lights,25/11/2013,20131400422,293.5,0,Neighbourhood grant,Supplies & Services
Leeds City Council,http://opendatacommunities.org/id/metropolitan-district-council/leeds,12/11/2014,Citizens & Communities,Farsley Christmas Lights,05/02/2014,20131400423,"1,000.00",0,Neighbourhood grant,Supplies & Services
Leeds City Council,http://opendatacommunities.org/id/metropolitan-district-council/leeds,12/11/2014,Citizens & Communities,Farsley Christmas Lights,29/05/2013,20131400424,"2,500.00",0,Neighbourhood grant,Supplies & Services
Leeds City Council,http://opendatacommunities.org/id/metropolitan-district-council/leeds,12/11/2014,Adult Social Care,FARSLEY HELPING HANDS,17/04/2013,20131400425,"1,656.00",0,Luncheon Club grant,Supplies & Services
Leeds City Council,http://opendatacommunities.org/id/metropolitan-district-council/leeds,12/11/2014,Adult Social Care,FARSLEY LIVE AT HOME LUNCH CLUB,12/04/2013,20131400426,"2,551.00",0,Luncheon Club grant,Supplies & Services
Leeds City Council,http://opendatacommunities.org/id/metropolitan-district-council/leeds,12/11/2014,Citizens & Communities,Farsley Live At Home Scheme,07/03/2014,20131400427,500,0,Neighbourhood grant,Supplies & Services
Leeds City Council,http://opendatacommunities.org/id/metropolitan-district-council/leeds,12/11/2014,Environment & Housing,Fayre Care For Christmas,28/10/2013,20131400428,"1,000.00",0,Housing grant,Supplies & Services
Leeds City Council,http://opendatacommunities.org/id/metropolitan-district-council/leeds,12/11/2014,Strategic & Central,FDM Bus,12/11/2013,20131400429,100,0,Locality grant,Supplies & Services
Leeds City Council,http://opendatacommunities.org/id/metropolitan-district-council/leeds,12/11/2014,Strategic & Central,FDM Bus,05/11/2013,20131400430,250,0,Locality grant,Supplies & Services
Leeds City Council,http://opendatacommunities.org/id/metropolitan-district-council/leeds,12/11/2014,Strategic & Central,FEEL GOOD FACTOR,10/09/2013,20131400431,250,0,Locality grant,Supplies & Services
Leeds City Council,http://opendatacommunities.org/id/metropolitan-district-council/leeds,12/11/2014,Citizens & Communities,FEEL GOOD FACTOR,05/03/2014,20131400432,438,0,Neighbourhood grant,Supplies & Services
Leeds City Council,http://opendatacommunities.org/id/metropolitan-district-council/leeds,12/11/2014,Citizens & Communities,FEEL GOOD FACTOR,05/03/2014,20131400433,52,0,Neighbourhood grant,Supplies & Services
Leeds City Council,http://opendatacommunities.org/id/metropolitan-district-council/leeds,12/11/2014,Citizens & Communities,FEEL GOOD FACTOR,02/04/2014,20131400434,"3,000.00",0,Neighbourhood grant,Supplies & Services
Leeds City Council,http://opendatacommunities.org/id/metropolitan-district-council/leeds,12/11/2014,Citizens & Communities,FEEL GOOD FACTOR,11/12/2013,20131400435,"2,500.00",0,Neighbourhood grant,Supplies & Services
Leeds City Council,http://opendatacommunities.org/id/metropolitan-district-council/leeds,12/11/2014,Citizens & Communities,FEEL GOOD FACTOR,09/04/2014,20131400436,"3,000.00",0,Neighbourhood grant,Supplies & Services
Leeds City Council,http://opendatacommunities.org/id/metropolitan-district-council/leeds,12/11/2014,Citizens & Communities,FEELING GOOD THEATRE COMPANY,07/08/2013,20131400437,60,0,Neighbourhood grant,Supplies & Services
Leeds City Council,http://opendatacommunities.org/id/metropolitan-district-council/leeds,12/11/2014,Citizens & Communities,FEELING GOOD THEATRE COMPANY,07/10/2013,20131400438,60,0,Neighbourhood grant,Supplies & Services
Leeds City Council,http://opendatacommunities.org/id/metropolitan-district-council/leeds,12/11/2014,Citizens & Communities,FEELING GOOD THEATRE COMPANY,12/02/2014,20131400439,60,0,Neighbourhood grant,Supplies & Services
Leeds City Council,http://opendatacommunities.org/id/metropolitan-district-council/leeds,12/11/2014,Strategic & Central,First Manston Guides,03/12/2013,20131400440,200,0,Locality grant,Supplies & Services
Leeds City Council,http://opendatacommunities.org/id/metropolitan-district-council/leeds,12/11/2014,Strategic & Central,Firthfields Community Association,10/09/2013,20131400441,50,0,Locality grant,Supplies & Services
Leeds City Council,http://opendatacommunities.org/id/metropolitan-district-council/leeds,12/11/2014,Citizens & Communities,Foodcycle,06/02/2014,20131400442,"2,000.00",0,Foodbank Funding,Supplies & Services
Leeds City Council,http://opendatacommunities.org/id/metropolitan-district-council/leeds,12/11/2014,Strategic & Central,Friends of Allerton Grange,11/03/2014,20131400443,50,0,Locality grant,Supplies & Services
Leeds City Council,http://opendatacommunities.org/id/metropolitan-district-council/leeds,12/11/2014,Strategic & Central,Friends Of Barwick School,28/01/2014,20131400444,"1,500.00",0,Locality grant,Supplies & Services
Leeds City Council,http://opendatacommunities.org/id/metropolitan-district-council/leeds,12/11/2014,Strategic & Central,Friends of Bramley Primary School,21/01/2014,20131400445,300,0,Locality grant,Supplies & Services
Leeds City Council,http://opendatacommunities.org/id/metropolitan-district-council/leeds,12/11/2014,Strategic & Central,FRIENDS OF CROSS FLATTS PARK,25/03/2014,20131400446,150,0,Locality grant,Supplies & Services
Leeds City Council,http://opendatacommunities.org/id/metropolitan-district-council/leeds,12/11/2014,Citizens & Communities,FRIENDS OF CROSS FLATTS PARK,30/10/2013,20131400447,"2,300.00",0,Neighbourhood grant,Supplies & Services
Leeds City Council,http://opendatacommunities.org/id/metropolitan-district-council/leeds,12/11/2014,Strategic & Central,Friends of Dartmouth Park,11/03/2014,20131400448,150,0,Locality grant,Supplies & Services
Leeds City Council,http://opendatacommunities.org/id/metropolitan-district-council/leeds,12/11/2014,Strategic & Central,Friends of Dartmouth Park,24/09/2013,20131400449,250,0,Locality grant,Supplies & Services
Leeds City Council,http://opendatacommunities.org/id/metropolitan-district-council/leeds,12/11/2014,Strategic & Central,Friends of Dartmouth Park,02/07/2013,20131400450,200,0,Locality grant,Supplies & Services
Leeds City Council,http://opendatacommunities.org/id/metropolitan-district-council/leeds,12/11/2014,Strategic & Central,Friends Of Drighlington Community,22/10/2013,20131400451,60,0,Locality grant,Supplies & Services
Leeds City Council,http://opendatacommunities.org/id/metropolitan-district-council/leeds,12/11/2014,Strategic & Central,Friends Of Drighlington Community,04/06/2013,20131400452,270,0,Locality grant,Supplies & Services
Leeds City Council,http://opendatacommunities.org/id/metropolitan-district-council/leeds,12/11/2014,Citizens & Communities,Friends Of East End Park,17/09/2013,20131400453,"1,000.00",0,Neighbourhood grant,Supplies & Services
Leeds City Council,http://opendatacommunities.org/id/metropolitan-district-council/leeds,12/11/2014,Environment & Housing,FRIENDS OF GLEDHOW VALLEY WOODS,11/06/2013,20131400454,500,0,Horticultural grant,Supplies & Services
Leeds City Council,http://opendatacommunities.org/id/metropolitan-district-council/leeds,12/11/2014,Citizens & Communities,FRIENDS OF GLEDHOW VALLEY WOODS,17/09/2013,20131400455,238,0,Proceeds of Crime grant,Supplies & Services
Leeds City Council,http://opendatacommunities.org/id/metropolitan-district-council/leeds,12/11/2014,Strategic & Central,FRIENDS OF HOLBECK CEMETERY,25/03/2014,20131400456,100,0,Locality grant,Supplies & Services
Leeds City Council,http://opendatacommunities.org/id/metropolitan-district-council/leeds,12/11/2014,Strategic & Central,Friends of Holbeck Moor,25/03/2014,20131400457,150,0,Locality grant,Supplies & Services
Leeds City Council,http://opendatacommunities.org/id/metropolitan-district-council/leeds,12/11/2014,Strategic & Central,Friends Of Hunger Hills Woods,09/07/2013,20131400458,500,0,Locality grant,Supplies & Services
Leeds City Council,http://opendatacommunities.org/id/metropolitan-district-council/leeds,12/11/2014,Strategic & Central,Friends Of Lofthouse Childrens Centre,04/03/2014,20131400459,500,0,Locality grant,Supplies & Services
Leeds City Council,http://opendatacommunities.org/id/metropolitan-district-council/leeds,12/11/2014,Strategic & Central,Friends Of Micklefield,21/05/2013,20131400460,300,0,Locality grant,Supplies & Services
Leeds City Council,http://opendatacommunities.org/id/metropolitan-district-council/leeds,12/11/2014,Strategic & Central,Friends of Middleton Park,18/03/2014,20131400461,50,0,Locality grant,Supplies & Services
Leeds City Council,http://opendatacommunities.org/id/metropolitan-district-council/leeds,12/11/2014,Citizens & Communities,Friends of Middleton Park,08/01/2014,20131400462,"2,475.00",0,Neighbourhood grant,Supplies & Services
Leeds City Council,http://opendatacommunities.org/id/metropolitan-district-council/leeds,12/11/2014,Strategic & Central,Friends Of New Forest Community Group,04/03/2014,20131400463,150,0,Locality grant,Supplies & Services
Leeds City Council,http://opendatacommunities.org/id/metropolitan-district-council/leeds,12/11/2014,Strategic & Central,Friends of New Forest Village,09/07/2013,20131400464,150,0,Locality grant,Supplies & Services
Leeds City Council,http://opendatacommunities.org/id/metropolitan-district-council/leeds,12/11/2014,Strategic & Central,Friends Of Ninelands,10/12/2013,20131400465,240,0,Locality grant,Supplies & Services
Leeds City Council,http://opendatacommunities.org/id/metropolitan-district-council/leeds,12/11/2014,Environment & Housing,Friends Of Parkinson Park,31/05/2013,20131400466,500,0,Horticultural grant,Supplies & Services
Leeds City Council,http://opendatacommunities.org/id/metropolitan-district-council/leeds,12/11/2014,Citizens & Communities,Friends Of Parkinson Park,26/04/2013,20131400467,500,0,Neighbourhood grant,Supplies & Services
Leeds City Council,http://opendatacommunities.org/id/metropolitan-district-council/leeds,12/11/2014,Strategic & Central,Friends of PHAB,02/07/2013,20131400468,50,0,Locality grant,Supplies & Services
Leeds City Council,http://opendatacommunities.org/id/metropolitan-district-council/leeds,12/11/2014,Strategic & Central,Friends of PHAB,18/06/2013,20131400469,50,0,Locality grant,Supplies & Services
Leeds City Council,http://opendatacommunities.org/id/metropolitan-district-council/leeds,12/11/2014,Citizens & Communities,Friends of PHAB,06/02/2014,20131400470,500,0,Neighbourhood grant,Supplies & Services
Leeds City Council,http://opendatacommunities.org/id/metropolitan-district-council/leeds,12/11/2014,Strategic & Central,FRIENDS OF ROUNDHAY PARK,03/09/2013,20131400471,200,0,Locality grant,Supplies & Services
Leeds City Council,http://opendatacommunities.org/id/metropolitan-district-council/leeds,12/11/2014,Citizens & Communities,Friends Of Skelton Grange,23/10/2013,20131400472,500,0,Neighbourhood grant,Supplies & Services
Leeds City Council,http://opendatacommunities.org/id/metropolitan-district-council/leeds,12/11/2014,Strategic & Central,Friends Of Wigton Moor Woods,03/04/2014,20131400473,125,0,Locality grant,Supplies & Services
Leeds City Council,http://opendatacommunities.org/id/metropolitan-district-council/leeds,12/11/2014,Citizens & Communities,Friends of Woodlands,17/09/2013,20131400474,205,0,Proceeds of Crime grant,Supplies & Services
Leeds City Council,http://opendatacommunities.org/id/metropolitan-district-council/leeds,12/11/2014,Strategic & Central,Full Circle Leeds,04/02/2014,20131400475,150,0,Locality grant,Supplies & Services
Leeds City Council,http://opendatacommunities.org/id/metropolitan-district-council/leeds,12/11/2014,City Development,Fusebox,07/05/2013,20131400476,"1,000.00",0,Leeds Inspired grant,Supplies & Services
Leeds City Council,http://opendatacommunities.org/id/metropolitan-district-council/leeds,12/11/2014,Citizens & Communities,Gala Current,22/04/2013,20131400477,250,0,Proceeds of Crime grant,Supplies & Services
Leeds City Council,http://opendatacommunities.org/id/metropolitan-district-council/leeds,12/11/2014,Strategic & Central,GAMBLE HILL RESIDENTS ASSOCIATION,01/10/2013,20131400478,400,0,Locality grant,Supplies & Services
Leeds City Council,http://opendatacommunities.org/id/metropolitan-district-council/leeds,12/11/2014,West North West ALMO,GAMBLE HILL RESIDENTS ASSOCIATION,28/05/2013,20131400479,275,0,Support Grant,Supplies & Services
Leeds City Council,http://opendatacommunities.org/id/metropolitan-district-council/leeds,12/11/2014,Strategic & Central,Ganners Rise,24/09/2013,20131400480,300,0,Locality grant,Supplies & Services
Leeds City Council,http://opendatacommunities.org/id/metropolitan-district-council/leeds,12/11/2014,Strategic & Central,Ganners Rise,23/04/2013,20131400481,300,0,Locality grant,Supplies & Services
Leeds City Council,http://opendatacommunities.org/id/metropolitan-district-council/leeds,12/11/2014,Citizens & Communities,Garforth & District Lions Club,31/07/2013,20131400482,"1,000.00",0,Neighbourhood grant,Supplies & Services
Leeds City Council,http://opendatacommunities.org/id/metropolitan-district-council/leeds,12/11/2014,Strategic & Central,Garforth Allotment Association,03/09/2013,20131400483,100,0,Locality grant,Supplies & Services
Leeds City Council,http://opendatacommunities.org/id/metropolitan-district-council/leeds,12/11/2014,Citizens & Communities,Garforth and District Crime Prevention,20/02/2014,20131400484,250,0,Proceeds of Crime grant,Supplies & Services
Leeds City Council,http://opendatacommunities.org/id/metropolitan-district-council/leeds,12/11/2014,Strategic & Central,Garforth And District Lions,16/07/2013,20131400485,150,0,Locality grant,Supplies & Services
Leeds City Council,http://opendatacommunities.org/id/metropolitan-district-council/leeds,12/11/2014,Strategic & Central,Garforth Bowls League,12/11/2013,20131400486,100,0,Locality grant,Supplies & Services
Leeds City Council,http://opendatacommunities.org/id/metropolitan-district-council/leeds,12/11/2014,Strategic & Central,Garforth Churches Together,25/02/2014,20131400487,300,0,Locality grant,Supplies & Services
Leeds City Council,http://opendatacommunities.org/id/metropolitan-district-council/leeds,12/11/2014,Citizens & Communities,GARFORTH COMMUNITY ASSOCIATION,27/03/2014,20131400488,14,0,Neighbourhood grant,Supplies & Services
Leeds City Council,http://opendatacommunities.org/id/metropolitan-district-council/leeds,12/11/2014,Citizens & Communities,GARFORTH COMMUNITY ASSOCIATION,06/02/2014,20131400489,14,0,Neighbourhood grant,Supplies & Services
Leeds City Council,http://opendatacommunities.org/id/metropolitan-district-council/leeds,12/11/2014,Strategic & Central,Garforth Flood Support Group,19/11/2013,20131400490,28,0,Locality grant,Supplies & Services
Leeds City Council,http://opendatacommunities.org/id/metropolitan-district-council/leeds,12/11/2014,Strategic & Central,Garforth Flood Support Group,30/07/2013,20131400491,100,0,Locality grant,Supplies & Services
Leeds City Council,http://opendatacommunities.org/id/metropolitan-district-council/leeds,12/11/2014,Strategic & Central,Garforth Historical Society,16/07/2013,20131400492,100,0,Locality grant,Supplies & Services
Leeds City Council,http://opendatacommunities.org/id/metropolitan-district-council/leeds,12/11/2014,Citizens & Communities,Garforth Historical Society,31/01/2014,20131400493,280,0,Neighbourhood grant,Supplies & Services
Leeds City Council,http://opendatacommunities.org/id/metropolitan-district-council/leeds,12/11/2014,Environment & Housing,Garforth In Bloom,10/12/2013,20131400494,196,0,Horticultural grant,Supplies & Services
Leeds City Council,http://opendatacommunities.org/id/metropolitan-district-council/leeds,12/11/2014,Citizens & Communities,Garforth In Bloom,23/12/2013,20131400495,227.5,0,Neighbourhood grant,Supplies & Services
Leeds City Council,http://opendatacommunities.org/id/metropolitan-district-council/leeds,12/11/2014,Environment & Housing,Garforth In Bloom,18/12/2013,20131400496,70,0,Neighbourhood capital grant,Capital Expenditure
Leeds City Council,http://opendatacommunities.org/id/metropolitan-district-council/leeds,12/11/2014,Strategic & Central,GARFORTH JUBILEE BRASS,07/01/2014,20131400497,300,0,Locality grant,Supplies & Services
Leeds City Council,http://opendatacommunities.org/id/metropolitan-district-council/leeds,12/11/2014,Strategic & Central,Garforth Musical Society,09/07/2013,20131400498,100,0,Locality grant,Supplies & Services
Leeds City Council,http://opendatacommunities.org/id/metropolitan-district-council/leeds,12/11/2014,Strategic & Central,GARFORTH PRE-SCHOOL PLAYGROUP,15/10/2013,20131400499,100,0,Locality grant,Supplies & Services
Leeds City Council,http://opendatacommunities.org/id/metropolitan-district-council/leeds,12/11/2014,Strategic & Central,GARFORTH PRE-SCHOOL PLAYGROUP,08/10/2013,20131400500,200,0,Locality grant,Supplies & Services
Leeds City Council,http://opendatacommunities.org/id/metropolitan-district-council/leeds,12/11/2014,Strategic & Central,Garforth Tigers,09/04/2013,20131400501,100,0,Locality grant,Supplies & Services
Leeds City Council,http://opendatacommunities.org/id/metropolitan-district-council/leeds,12/11/2014,Strategic & Central,Garforth Villa AFC,17/09/2013,20131400502,50,0,Locality grant,Supplies & Services
Leeds City Council,http://opendatacommunities.org/id/metropolitan-district-council/leeds,12/11/2014,Strategic & Central,Gary Chappelow Memorial Fund,13/05/2013,20131400503,300,0,Locality grant,Supplies & Services
Leeds City Council,http://opendatacommunities.org/id/metropolitan-district-council/leeds,12/11/2014,Strategic & Central,Gary Chappelow Memorial Fund,24/05/2013,20131400504,300,0,Locality grant,Supplies & Services
Leeds City Council,http://opendatacommunities.org/id/metropolitan-district-council/leeds,12/11/2014,Environment & Housing,Genesis,15/04/2013,20131400505,"4,190.00",0,Support grant,Supplies & Services
Leeds City Council,http://opendatacommunities.org/id/metropolitan-district-council/leeds,12/11/2014,Citizens & Communities,Gesipr Grassroots Enterprise,29/11/2013,20131400506,500,0,Neighbourhood grant,Supplies & Services
Leeds City Council,http://opendatacommunities.org/id/metropolitan-district-council/leeds,12/11/2014,Citizens & Communities,Get Cooking!,02/04/2014,20131400507,350,0,Neighbourhood grant,Supplies & Services
Leeds City Council,http://opendatacommunities.org/id/metropolitan-district-council/leeds,12/11/2014,Environment & Housing,GETAWAY GIRLS,20/05/2013,20131400508,"3,987.25",0,Support grant,Supplies & Services
Leeds City Council,http://opendatacommunities.org/id/metropolitan-district-council/leeds,12/11/2014,Citizens & Communities,GETAWAY GIRLS,28/11/2013,20131400509,"1,710.77",0,Neighbourhood grant,Supplies & Services
Leeds City Council,http://opendatacommunities.org/id/metropolitan-district-council/leeds,12/11/2014,Citizens & Communities,GETAWAY GIRLS,06/03/2014,20131400510,"2,311.00",0,Neighbourhood grant,Supplies & Services
Leeds City Council,http://opendatacommunities.org/id/metropolitan-district-council/leeds,12/11/2014,Strategic & Central,Gilbert & Sandord Residents Association,30/04/2013,20131400511,200,0,Locality grant,Supplies & Services
Leeds City Council,http://opendatacommunities.org/id/metropolitan-district-council/leeds,12/11/2014,West North West ALMO,Gilbert & Sandord Residents Association,26/07/2013,20131400512,175,0,Support Grant,Supplies & Services
Leeds City Council,http://opendatacommunities.org/id/metropolitan-district-council/leeds,12/11/2014,West North West ALMO,Gilbert & Sandord Residents Association,28/05/2013,20131400513,175,0,Support Grant,Supplies & Services
Leeds City Council,http://opendatacommunities.org/id/metropolitan-district-council/leeds,12/11/2014,Strategic & Central,Gilbert And Sandford Residents Assoc,08/10/2013,20131400514,210,0,Locality grant,Supplies & Services
Leeds City Council,http://opendatacommunities.org/id/metropolitan-district-council/leeds,12/11/2014,Strategic & Central,Gildersome Community Choir,07/01/2014,20131400515,100,0,Locality grant,Supplies & Services
Leeds City Council,http://opendatacommunities.org/id/metropolitan-district-council/leeds,12/11/2014,Citizens & Communities,GIPSIL,03/04/2014,20131400516,"6,082.50",0,Neighbourhood grant,Supplies & Services
Leeds City Council,http://opendatacommunities.org/id/metropolitan-district-council/leeds,12/11/2014,Citizens & Communities,GIPSIL,08/10/2013,20131400517,"1,011.87",0,Neighbourhood grant,Supplies & Services
Leeds City Council,http://opendatacommunities.org/id/metropolitan-district-council/leeds,12/11/2014,Citizens & Communities,GIPSIL,20/02/2014,20131400518,"12,165.00",0,Neighbourhood grant,Supplies & Services
Leeds City Council,http://opendatacommunities.org/id/metropolitan-district-council/leeds,12/11/2014,Citizens & Communities,GIPSIL,07/08/2013,20131400519,"6,082.50",0,Neighbourhood grant,Supplies & Services
Leeds City Council,http://opendatacommunities.org/id/metropolitan-district-council/leeds,12/11/2014,Citizens & Communities,GIPSIL,09/07/2013,20131400520,"51,749.00",0,Social Fund grant,Supplies & Services
Leeds City Council,http://opendatacommunities.org/id/metropolitan-district-council/leeds,12/11/2014,Citizens & Communities,GIPTON TOGETHER,08/10/2013,20131400521,"4,000.00",0,Neighbourhood grant,Supplies & Services
Leeds City Council,http://opendatacommunities.org/id/metropolitan-district-council/leeds,12/11/2014,Citizens & Communities,GIPTON TOGETHER,27/01/2014,20131400522,"1,000.00",0,Neighbourhood grant,Supplies & Services
Leeds City Council,http://opendatacommunities.org/id/metropolitan-district-council/leeds,12/11/2014,Citizens & Communities,Gledhow Cricket Club,21/05/2013,20131400523,"10,000.00",0,Neighbourhood grant,Supplies & Services
Leeds City Council,http://opendatacommunities.org/id/metropolitan-district-council/leeds,12/11/2014,Strategic & Central,Gledhow Lane Residents Association,06/08/2013,20131400524,450,0,Locality grant,Supplies & Services
Leeds City Council,http://opendatacommunities.org/id/metropolitan-district-council/leeds,12/11/2014,Citizens & Communities,Gledhow Lane Residents Association,20/01/2014,20131400525,"5,750.00",0,Neighbourhood grant,Supplies & Services
Leeds City Council,http://opendatacommunities.org/id/metropolitan-district-council/leeds,12/11/2014,Citizens & Communities,Globe Peoples Community Account,06/02/2014,20131400526,250,0,Proceeds of Crime grant,Supplies & Services
Leeds City Council,http://opendatacommunities.org/id/metropolitan-district-council/leeds,12/11/2014,Strategic & Central,Good Companions Monday Club,04/03/2014,20131400527,325,0,Locality grant,Supplies & Services
Leeds City Council,http://opendatacommunities.org/id/metropolitan-district-council/leeds,12/11/2014,Adult Social Care,GREAT & LITTLE PRESTON LUNCHEON CLUB,12/04/2013,20131400528,"2,551.00",0,Luncheon Club grant,Supplies & Services
Leeds City Council,http://opendatacommunities.org/id/metropolitan-district-council/leeds,12/11/2014,Environment & Housing,Great And Little Preston In Bloom,14/05/2013,20131400529,500,0,Horticultural grant,Supplies & Services
Leeds City Council,http://opendatacommunities.org/id/metropolitan-district-council/leeds,12/11/2014,Citizens & Communities,Great And Little Preston In Bloom,20/11/2013,20131400530,472,0,Neighbourhood grant,Supplies & Services
Leeds City Council,http://opendatacommunities.org/id/metropolitan-district-council/leeds,12/11/2014,Citizens & Communities,Great And Little Preston In Bloom,04/12/2013,20131400531,250,0,Proceeds of Crime grant,Supplies & Services
Leeds City Council,http://opendatacommunities.org/id/metropolitan-district-council/leeds,12/11/2014,Strategic & Central,Great Preston Cricket Club,13/05/2013,20131400532,500,0,Locality grant,Supplies & Services
Leeds City Council,http://opendatacommunities.org/id/metropolitan-district-council/leeds,12/11/2014,Strategic & Central,Green Team at St Chad's Church,11/02/2014,20131400533,295,0,Locality grant,Supplies & Services
Leeds City Council,http://opendatacommunities.org/id/metropolitan-district-council/leeds,12/11/2014,Strategic & Central,Greenside Community Centre,23/07/2013,20131400534,100,0,Locality grant,Supplies & Services
Leeds City Council,http://opendatacommunities.org/id/metropolitan-district-council/leeds,12/11/2014,Citizens & Communities,Greenthorpe Allotments Association,20/12/2013,20131400535,300,0,Neighbourhood grant,Supplies & Services
Leeds City Council,http://opendatacommunities.org/id/metropolitan-district-council/leeds,12/11/2014,City Development,GROUNDWORK LEEDS,26/03/2014,20131400536,"2,537.87",0,Green Space improvement grant,Supplies & Services
Leeds City Council,http://opendatacommunities.org/id/metropolitan-district-council/leeds,12/11/2014,City Development,GROUNDWORK LEEDS,05/03/2014,20131400537,"17,962.13",0,Green Space improvement grant,Supplies & Services
Leeds City Council,http://opendatacommunities.org/id/metropolitan-district-council/leeds,12/11/2014,Environment & Housing,GROUNDWORK LEEDS,29/01/2014,20131400538,"17,500.00",0,Horticultural project support grant,Supplies & Services
Leeds City Council,http://opendatacommunities.org/id/metropolitan-district-council/leeds,12/11/2014,Environment & Housing,GROUNDWORK LEEDS,06/11/2013,20131400539,"17,500.00",0,Horticultural project support grant,Supplies & Services
Leeds City Council,http://opendatacommunities.org/id/metropolitan-district-council/leeds,12/11/2014,Environment & Housing,GROUNDWORK LEEDS,07/10/2013,20131400540,"17,500.00",0,Horticultural project support grant,Supplies & Services
Leeds City Council,http://opendatacommunities.org/id/metropolitan-district-council/leeds,12/11/2014,Environment & Housing,GROUNDWORK LEEDS,18/07/2013,20131400541,"17,500.00",0,Horticultural project support grant,Supplies & Services
Leeds City Council,http://opendatacommunities.org/id/metropolitan-district-council/leeds,12/11/2014,Environment & Housing,GROUNDWORK LEEDS,10/04/2014,20131400542,"13,670.00",0,Horticultural core post support grant,Supplies & Services
Leeds City Council,http://opendatacommunities.org/id/metropolitan-district-council/leeds,12/11/2014,Environment & Housing,GROUNDWORK LEEDS,17/12/2013,20131400543,"13,670.00",0,Horticultural core post support grant,Supplies & Services
Leeds City Council,http://opendatacommunities.org/id/metropolitan-district-council/leeds,12/11/2014,Environment & Housing,GROUNDWORK LEEDS,18/10/2013,20131400544,"13,670.00",0,Horticultural core post support grant,Supplies & Services
Leeds City Council,http://opendatacommunities.org/id/metropolitan-district-council/leeds,12/11/2014,Environment & Housing,GROUNDWORK LEEDS,25/09/2013,20131400545,"13,670.00",0,Horticultural core post support grant,Supplies & Services
Leeds City Council,http://opendatacommunities.org/id/metropolitan-district-council/leeds,12/11/2014,Strategic & Central,GROUNDWORK LEEDS,17/02/2014,20131400546,924,0,Locality grant,Supplies & Services
Leeds City Council,http://opendatacommunities.org/id/metropolitan-district-council/leeds,12/11/2014,Citizens & Communities,GROUNDWORK LEEDS,24/03/2014,20131400547,"3,438.00",0,Neighbourhood grant,Supplies & Services
Leeds City Council,http://opendatacommunities.org/id/metropolitan-district-council/leeds,12/11/2014,Citizens & Communities,GROUNDWORK LEEDS,02/04/2014,20131400548,"7,000.00",0,Neighbourhood grant,Supplies & Services
Leeds City Council,http://opendatacommunities.org/id/metropolitan-district-council/leeds,12/11/2014,Citizens & Communities,GROUNDWORK LEEDS,24/12/2013,20131400549,"3,500.00",0,Neighbourhood grant,Supplies & Services
Leeds City Council,http://opendatacommunities.org/id/metropolitan-district-council/leeds,12/11/2014,Citizens & Communities,GROUNDWORK LEEDS,02/04/2014,20131400550,"1,550.80",0,Neighbourhood grant,Supplies & Services
Leeds City Council,http://opendatacommunities.org/id/metropolitan-district-council/leeds,12/11/2014,Citizens & Communities,GROUNDWORK LEEDS,02/04/2014,20131400551,353.2,0,Neighbourhood grant,Supplies & Services
Leeds City Council,http://opendatacommunities.org/id/metropolitan-district-council/leeds,12/11/2014,Citizens & Communities,GROUNDWORK LEEDS,13/06/2013,20131400552,325,0,Neighbourhood grant,Supplies & Services
Leeds City Council,http://opendatacommunities.org/id/metropolitan-district-council/leeds,12/11/2014,Environment & Housing,GROUNDWORK LEEDS,21/10/2013,20131400553,"29,579.31",0,Access to Nature grant,Supplies & Services
Leeds City Council,http://opendatacommunities.org/id/metropolitan-district-council/leeds,12/11/2014,Environment & Housing,GROUNDWORK LEEDS,31/07/2013,20131400554,"14,907.74",0,Access to Nature grant,Supplies & Services
Leeds City Council,http://opendatacommunities.org/id/metropolitan-district-council/leeds,12/11/2014,Environment & Housing,GROUNDWORK LEEDS,18/04/2013,20131400555,"44,462.83",0,Access to Nature grant,Supplies & Services
Leeds City Council,http://opendatacommunities.org/id/metropolitan-district-council/leeds,12/11/2014,Environment & Housing,GROUNDWORK LEEDS,14/01/2014,20131400556,"15,006.57",0,Access to Nature grant,Supplies & Services
Leeds City Council,http://opendatacommunities.org/id/metropolitan-district-council/leeds,12/11/2014,Environment & Housing,GROUNDWORK LEEDS,18/07/2013,20131400557,"38,695.55",0,Access to Nature grant,Supplies & Services
Leeds City Council,http://opendatacommunities.org/id/metropolitan-district-council/leeds,12/11/2014,Environment & Housing,GROUNDWORK LEEDS,24/03/2014,20131400558,"6,666.68",0,Support grant,Supplies & Services
Leeds City Council,http://opendatacommunities.org/id/metropolitan-district-council/leeds,12/11/2014,Environment & Housing,GROUNDWORK LEEDS,23/01/2014,20131400559,"6,666.66",0,Support grant,Supplies & Services
Leeds City Council,http://opendatacommunities.org/id/metropolitan-district-council/leeds,12/11/2014,Environment & Housing,GROUNDWORK LEEDS,09/12/2013,20131400560,"6,666.66",0,Support grant,Supplies & Services
Leeds City Council,http://opendatacommunities.org/id/metropolitan-district-council/leeds,12/11/2014,Environment & Housing,GROUNDWORK LEEDS,26/09/2013,20131400561,"10,000.00",0,Support grant,Supplies & Services
Leeds City Council,http://opendatacommunities.org/id/metropolitan-district-council/leeds,12/11/2014,Environment & Housing,GROUNDWORK LEEDS,02/07/2013,20131400562,"10,000.00",0,Support grant,Supplies & Services
Leeds City Council,http://opendatacommunities.org/id/metropolitan-district-council/leeds,12/11/2014,Environment & Housing,GROUNDWORK LEEDS,18/10/2013,20131400563,"2,620.00",0,Regeneration capital grant,Capital Expenditure
Leeds City Council,http://opendatacommunities.org/id/metropolitan-district-council/leeds,12/11/2014,Environment & Housing,GROUNDWORK LEEDS,22/01/2014,20131400564,"3,000.00",0,Regeneration capital grant,Capital Expenditure
Leeds City Council,http://opendatacommunities.org/id/metropolitan-district-council/leeds,12/11/2014,Environment & Housing,GROUNDWORK LEEDS,20/03/2014,20131400565,"16,676.08",0,Neighbourhood capital grant,Capital Expenditure
Leeds City Council,http://opendatacommunities.org/id/metropolitan-district-council/leeds,12/11/2014,Environment & Housing,GROUNDWORK LEEDS,25/03/2014,20131400566,"4,134.80",0,Neighbourhood capital grant,Capital Expenditure
Leeds City Council,http://opendatacommunities.org/id/metropolitan-district-council/leeds,12/11/2014,Environment & Housing,GROUNDWORK LEEDS,25/03/2014,20131400567,"4,083.80",0,Neighbourhood capital grant,Capital Expenditure
Leeds City Council,http://opendatacommunities.org/id/metropolitan-district-council/leeds,12/11/2014,Environment & Housing,GROUNDWORK LEEDS,25/03/2014,20131400568,"1,936.40",0,Neighbourhood capital grant,Capital Expenditure
Leeds City Council,http://opendatacommunities.org/id/metropolitan-district-council/leeds,12/11/2014,Environment & Housing,GROUNDWORK LEEDS,25/03/2014,20131400569,956.8,0,Neighbourhood capital grant,Capital Expenditure
Leeds City Council,http://opendatacommunities.org/id/metropolitan-district-council/leeds,12/11/2014,Environment & Housing,GROUNDWORK LEEDS,07/03/2014,20131400570,"2,750.00",0,Capital grant contribution,Capital Expenditure
Leeds City Council,http://opendatacommunities.org/id/metropolitan-district-council/leeds,12/11/2014,Environment & Housing,GROUNDWORK LEEDS,14/03/2014,20131400571,"4,010.80",0,Capital grant contribution,Capital Expenditure
Leeds City Council,http://opendatacommunities.org/id/metropolitan-district-council/leeds,12/11/2014,Environment & Housing,GROUNDWORK LEEDS,14/03/2014,20131400572,"4,000.00",0,Capital grant contribution,Capital Expenditure
Leeds City Council,http://opendatacommunities.org/id/metropolitan-district-council/leeds,12/11/2014,Environment & Housing,GROUNDWORK LEEDS,14/03/2014,20131400573,"22,000.00",0,Capital grant contribution,Capital Expenditure
Leeds City Council,http://opendatacommunities.org/id/metropolitan-district-council/leeds,12/11/2014,Environment & Housing,GROUNDWORK LEEDS,20/03/2014,20131400574,"14,500.00",0,Capital grant contribution,Capital Expenditure
Leeds City Council,http://opendatacommunities.org/id/metropolitan-district-council/leeds,12/11/2014,Environment & Housing,GROUNDWORK LEEDS,20/03/2014,20131400575,"6,000.00",0,Capital grant contribution,Capital Expenditure
Leeds City Council,http://opendatacommunities.org/id/metropolitan-district-council/leeds,12/11/2014,Environment & Housing,GROUNDWORK LEEDS,20/03/2014,20131400576,"5,739.20",0,Capital grant contribution,Capital Expenditure
Leeds City Council,http://opendatacommunities.org/id/metropolitan-district-council/leeds,12/11/2014,Citizens & Communities,GROUNDWORK LEEDS,24/03/2014,20131400577,"1,957.00",0,Neighbourhood capital grant,Capital Expenditure
Leeds City Council,http://opendatacommunities.org/id/metropolitan-district-council/leeds,12/11/2014,Strategic & Central,Guiseley In Bloom,01/10/2013,20131400578,320,0,Locality grant,Supplies & Services
Leeds City Council,http://opendatacommunities.org/id/metropolitan-district-council/leeds,12/11/2014,Citizens & Communities,Guiseley In Bloom,21/03/2014,20131400579,"1,650.77",0,Neighbourhood grant,Supplies & Services
Leeds City Council,http://opendatacommunities.org/id/metropolitan-district-council/leeds,12/11/2014,Citizens & Communities,Guiseley In Bloom,20/05/2013,20131400580,"3,442.00",0,Neighbourhood grant,Supplies & Services
Leeds City Council,http://opendatacommunities.org/id/metropolitan-district-council/leeds,12/11/2014,Strategic & Central,GUISELEY SENIOR CITIZENS ASSOCIATION,09/07/2013,20131400581,450,0,Locality grant,Supplies & Services
Leeds City Council,http://opendatacommunities.org/id/metropolitan-district-council/leeds,12/11/2014,Strategic & Central,Haleysfield Allotment Association,21/01/2014,20131400582,300,0,Locality grant,Supplies & Services
Leeds City Council,http://opendatacommunities.org/id/metropolitan-district-council/leeds,12/11/2014,Adult Social Care,HALLIDAY COURT LUNCHEON CLUB,24/05/2013,20131400583,"1,656.00",0,Luncheon Club grant,Supplies & Services
Leeds City Council,http://opendatacommunities.org/id/metropolitan-district-council/leeds,12/11/2014,Environment & Housing,Halton In Bloom,14/05/2013,20131400584,500,0,Horticultural grant,Supplies & Services
Leeds City Council,http://opendatacommunities.org/id/metropolitan-district-council/leeds,12/11/2014,Strategic & Central,Halton In Bloom,21/05/2013,20131400585,500,0,Locality grant,Supplies & Services
Leeds City Council,http://opendatacommunities.org/id/metropolitan-district-council/leeds,12/11/2014,Strategic & Central,Halton In Bloom,07/05/2013,20131400586,500,0,Locality grant,Supplies & Services
Leeds City Council,http://opendatacommunities.org/id/metropolitan-district-council/leeds,12/11/2014,Citizens & Communities,Halton In Bloom,10/06/2013,20131400587,500,0,Neighbourhood grant,Supplies & Services
Leeds City Council,http://opendatacommunities.org/id/metropolitan-district-council/leeds,12/11/2014,Strategic & Central,Halton Moor & Osmondthorpe Project,11/06/2013,20131400588,300,0,Locality grant,Supplies & Services
Leeds City Council,http://opendatacommunities.org/id/metropolitan-district-council/leeds,12/11/2014,Children's Services,HAMARA (HLC),22/08/2013,20131400589,"3,800.00",0,Short Breaks Capital Funding,Capital Expenditure
Leeds City Council,http://opendatacommunities.org/id/metropolitan-district-council/leeds,12/11/2014,Children's Services,HAMARA (HLC),22/08/2013,20131400590,"2,950.00",0,Short Breaks Capital Funding,Capital Expenditure
Leeds City Council,http://opendatacommunities.org/id/metropolitan-district-council/leeds,12/11/2014,City Development,Hamara Healthy Living Centre,17/05/2013,20131400591,"6,000.00",0,Leeds Inspired grant,Supplies & Services
Leeds City Council,http://opendatacommunities.org/id/metropolitan-district-council/leeds,12/11/2014,Children's Services,Hamara Healthy Living Centre,17/03/2014,20131400592,250,0,Education grant,Supplies & Services
Leeds City Council,http://opendatacommunities.org/id/metropolitan-district-council/leeds,12/11/2014,Children's Services,Hamara Healthy Living Centre,14/11/2013,20131400593,"3,500.00",0,Education grant,Supplies & Services
Leeds City Council,http://opendatacommunities.org/id/metropolitan-district-council/leeds,12/11/2014,Children's Services,Hamara Healthy Living Centre,06/03/2014,20131400594,"2,557.50",0,Education grant,Supplies & Services
Leeds City Council,http://opendatacommunities.org/id/metropolitan-district-council/leeds,12/11/2014,Adult Social Care,Hamara Healthy Living Centre,02/04/2013,20131400595,"37,726.75",0,Learning Disabilities grant,Supplies & Services
Leeds City Council,http://opendatacommunities.org/id/metropolitan-district-council/leeds,12/11/2014,Citizens & Communities,Hamara Healthy Living Centre,26/09/2013,20131400596,500,0,Neighbourhood grant,Supplies & Services
Leeds City Council,http://opendatacommunities.org/id/metropolitan-district-council/leeds,12/11/2014,Adult Social Care,Hamara Healthy Living Centre,30/08/2013,20131400597,300,0,Carers Small Group Grant,Supplies & Services
Leeds City Council,http://opendatacommunities.org/id/metropolitan-district-council/leeds,12/11/2014,Adult Social Care,Hamara Healthy Living Centre,10/01/2014,20131400598,"37,726.75",0,Learning Disabilities grant,Supplies & Services
Leeds City Council,http://opendatacommunities.org/id/metropolitan-district-council/leeds,12/11/2014,Adult Social Care,Hamara Healthy Living Centre,26/09/2013,20131400599,"37,726.75",0,Learning Disabilities grant,Supplies & Services
Leeds City Council,http://opendatacommunities.org/id/metropolitan-district-council/leeds,12/11/2014,Adult Social Care,Hamara Healthy Living Centre,25/06/2013,20131400600,"37,726.75",0,Learning Disabilities grant,Supplies & Services
Leeds City Council,http://opendatacommunities.org/id/metropolitan-district-council/leeds,12/11/2014,Adult Social Care,Hamara Healthy Living Luncheon Club,08/05/2013,20131400601,"1,656.00",0,Luncheon Club grant,Supplies & Services
Leeds City Council,http://opendatacommunities.org/id/metropolitan-district-council/leeds,12/11/2014,Adult Social Care,Hamwattan Centre Luncheon Club,22/04/2013,20131400602,"4,475.00",0,Luncheon Club grant,Supplies & Services
Leeds City Council,http://opendatacommunities.org/id/metropolitan-district-council/leeds,12/11/2014,Citizens & Communities,Hamwattan Elderly Centre,11/11/2013,20131400603,250,0,Proceeds of Crime grant,Supplies & Services
Leeds City Council,http://opendatacommunities.org/id/metropolitan-district-council/leeds,12/11/2014,Strategic & Central,Hanover House Social Club,22/10/2013,20131400604,150,0,Locality grant,Supplies & Services
Leeds City Council,http://opendatacommunities.org/id/metropolitan-district-council/leeds,12/11/2014,Environment & Housing,HAREHILLS & CHAPELTOWN LAW CENTRE,18/09/2013,20131400605,"41,246.00",0,Advice agencies grant funding,Supplies & Services
Leeds City Council,http://opendatacommunities.org/id/metropolitan-district-council/leeds,12/11/2014,Environment & Housing,HAREHILLS & CHAPELTOWN LAW CENTRE,18/04/2013,20131400606,"41,247.00",0,Advice agencies grant funding,Supplies & Services
Leeds City Council,http://opendatacommunities.org/id/metropolitan-district-council/leeds,12/11/2014,Environment & Housing,HAREHILLS & CHAPELTOWN LAW CENTRE,01/07/2013,20131400607,"39,551.72",0,Advice agencies grant funding,Supplies & Services
Leeds City Council,http://opendatacommunities.org/id/metropolitan-district-council/leeds,12/11/2014,Citizens & Communities,Harehills CIC,02/04/2014,20131400608,504,0,Neighbourhood grant,Supplies & Services
Leeds City Council,http://opendatacommunities.org/id/metropolitan-district-council/leeds,12/11/2014,Citizens & Communities,HAREHILLS LANE BAPTIST CHURCH,29/08/2013,20131400609,"8,500.00",0,Neighbourhood grant,Supplies & Services
Leeds City Council,http://opendatacommunities.org/id/metropolitan-district-council/leeds,12/11/2014,Citizens & Communities,Harewood In Bloom Association,27/01/2014,20131400610,378,0,Neighbourhood grant,Supplies & Services
Leeds City Council,http://opendatacommunities.org/id/metropolitan-district-council/leeds,12/11/2014,Citizens & Communities,Harmony Community Choir,29/08/2013,20131400611,100,0,Neighbourhood grant,Supplies & Services
Leeds City Council,http://opendatacommunities.org/id/metropolitan-district-council/leeds,12/11/2014,Adult Social Care,Hawksworth Oldies Lunch Club,12/04/2013,20131400612,"2,551.00",0,Luncheon Club grant,Supplies & Services
Leeds City Council,http://opendatacommunities.org/id/metropolitan-district-council/leeds,12/11/2014,Adult Social Care,Hawksworth Tuesday Luncheon Club,12/04/2013,20131400613,"2,551.00",0,Luncheon Club grant,Supplies & Services
Leeds City Council,http://opendatacommunities.org/id/metropolitan-district-council/leeds,12/11/2014,Strategic & Central,Hawksworth Wood Community Association,11/02/2014,20131400614,330,0,Locality grant,Supplies & Services
Leeds City Council,http://opendatacommunities.org/id/metropolitan-district-council/leeds,12/11/2014,Citizens & Communities,Hawksworth Wood Community Association,16/08/2013,20131400615,500,0,Neighbourhood grant,Supplies & Services
Leeds City Council,http://opendatacommunities.org/id/metropolitan-district-council/leeds,12/11/2014,Environment & Housing,Hawksworth Wood Community Association,14/03/2014,20131400616,400,0,Housing grant,Supplies & Services
Leeds City Council,http://opendatacommunities.org/id/metropolitan-district-council/leeds,12/11/2014,Strategic & Central,Hawthorn Mill Tenants Association,11/06/2013,20131400617,125,0,Locality grant,Supplies & Services
Leeds City Council,http://opendatacommunities.org/id/metropolitan-district-council/leeds,12/11/2014,Strategic & Central,Hawthorn Mill Tenants Association,11/06/2013,20131400618,100,0,Locality grant,Supplies & Services
Leeds City Council,http://opendatacommunities.org/id/metropolitan-district-council/leeds,12/11/2014,West North West ALMO,Hawthorn Rd & St Andrews Residents Group,26/09/2013,20131400619,100,0,Support Grant,Supplies & Services
Leeds City Council,http://opendatacommunities.org/id/metropolitan-district-council/leeds,12/11/2014,Environment & Housing,HCF Events,05/12/2013,20131400620,"1,000.00",0,Housing grant,Supplies & Services
Leeds City Council,http://opendatacommunities.org/id/metropolitan-district-council/leeds,12/11/2014,Strategic & Central,HEADINGLEY DEVELOPMENT TRUST LTD,20/03/2014,20131400621,300,0,Locality grant,Supplies & Services
Leeds City Council,http://opendatacommunities.org/id/metropolitan-district-council/leeds,12/11/2014,Strategic & Central,Headingley Enterprise And Arts Centre,11/02/2014,20131400622,800,0,Locality grant,Supplies & Services
Leeds City Council,http://opendatacommunities.org/id/metropolitan-district-council/leeds,12/11/2014,Strategic & Central,Headingley Enterprise And Arts Centre,01/10/2013,20131400623,20,0,Locality grant,Supplies & Services
Leeds City Council,http://opendatacommunities.org/id/metropolitan-district-council/leeds,12/11/2014,City Development,Headingley Litfest,10/04/2013,20131400624,"1,000.00",0,Arts grant,Supplies & Services
Leeds City Council,http://opendatacommunities.org/id/metropolitan-district-council/leeds,12/11/2014,Strategic & Central,Headingley LitFest,07/01/2014,20131400625,200,0,Locality grant,Supplies & Services
Leeds City Council,http://opendatacommunities.org/id/metropolitan-district-council/leeds,12/11/2014,Strategic & Central,Headingley LitFest,17/12/2013,20131400626,300,0,Locality grant,Supplies & Services
Leeds City Council,http://opendatacommunities.org/id/metropolitan-district-council/leeds,12/11/2014,Strategic & Central,Headingley LitFest,29/10/2013,20131400627,100,0,Locality grant,Supplies & Services
Leeds City Council,http://opendatacommunities.org/id/metropolitan-district-council/leeds,12/11/2014,Strategic & Central,Headingley Litfest,28/01/2014,20131400628,200,0,Locality grant,Supplies & Services
Leeds City Council,http://opendatacommunities.org/id/metropolitan-district-council/leeds,12/11/2014,Citizens & Communities,Headingley Litfest,13/12/2013,20131400629,500,0,Neighbourhood grant,Supplies & Services
Leeds City Council,http://opendatacommunities.org/id/metropolitan-district-council/leeds,12/11/2014,Citizens & Communities,Headingley Litfest,25/03/2014,20131400630,"2,100.00",0,Neighbourhood grant,Supplies & Services
Leeds City Council,http://opendatacommunities.org/id/metropolitan-district-council/leeds,12/11/2014,Citizens & Communities,Headingley Litfest,25/03/2014,20131400631,900,0,Neighbourhood grant,Supplies & Services
Leeds City Council,http://opendatacommunities.org/id/metropolitan-district-council/leeds,12/11/2014,Adult Social Care,HEADINGLEY METHODIST CHURCH,12/04/2013,20131400632,"2,551.00",0,Luncheon Club grant,Supplies & Services
Leeds City Council,http://opendatacommunities.org/id/metropolitan-district-council/leeds,12/11/2014,Strategic & Central,Headingley Station Allotments,27/08/2013,20131400633,210,0,Locality grant,Supplies & Services
Leeds City Council,http://opendatacommunities.org/id/metropolitan-district-council/leeds,12/11/2014,Strategic & Central,Headingley Veterans Social Fund,29/10/2013,20131400634,200,0,Locality grant,Supplies & Services
Leeds City Council,http://opendatacommunities.org/id/metropolitan-district-council/leeds,12/11/2014,Citizens & Communities,HEADS TOGETHER PRODUCTIONS LTD,09/04/2014,20131400635,"2,060.00",0,Neighbourhood grant,Supplies & Services
Leeds City Council,http://opendatacommunities.org/id/metropolitan-district-council/leeds,12/11/2014,Citizens & Communities,HEADS TOGETHER PRODUCTIONS LTD,24/12/2013,20131400636,"2,000.00",0,Neighbourhood grant,Supplies & Services
Leeds City Council,http://opendatacommunities.org/id/metropolitan-district-council/leeds,12/11/2014,Citizens & Communities,HEADS TOGETHER PRODUCTIONS LTD,31/03/2014,20131400637,"7,000.00",0,Neighbourhood capital grant,Capital Expenditure
Leeds City Council,http://opendatacommunities.org/id/metropolitan-district-council/leeds,12/11/2014,Adult Social Care,Health For All (Leeds),02/04/2013,20131400638,"46,058.88",0,Learning Disabilities grant,Supplies & Services
Leeds City Council,http://opendatacommunities.org/id/metropolitan-district-council/leeds,12/11/2014,Citizens & Communities,Health For All (Leeds),27/09/2013,20131400639,340,0,Neighbourhood grant,Supplies & Services
Leeds City Council,http://opendatacommunities.org/id/metropolitan-district-council/leeds,12/11/2014,Strategic & Central,Health For All (Leeds),18/06/2013,20131400640,450,0,Locality grant,Supplies & Services
Leeds City Council,http://opendatacommunities.org/id/metropolitan-district-council/leeds,12/11/2014,Strategic & Central,Health For All (Leeds),19/11/2013,20131400641,300,0,Locality grant,Supplies & Services
Leeds City Council,http://opendatacommunities.org/id/metropolitan-district-council/leeds,12/11/2014,Adult Social Care,Health For All (Leeds),10/01/2014,20131400642,"46,058.88",0,Learning Disabilities grant,Supplies & Services
Leeds City Council,http://opendatacommunities.org/id/metropolitan-district-council/leeds,12/11/2014,Adult Social Care,Health For All (Leeds),26/09/2013,20131400643,"46,058.88",0,Learning Disabilities grant,Supplies & Services
Leeds City Council,http://opendatacommunities.org/id/metropolitan-district-council/leeds,12/11/2014,Adult Social Care,Health For All (Leeds),25/06/2013,20131400644,"46,058.88",0,Learning Disabilities grant,Supplies & Services
Leeds City Council,http://opendatacommunities.org/id/metropolitan-district-council/leeds,12/11/2014,Citizens & Communities,Health For All (Leeds),28/06/2013,20131400645,"2,250.00",0,Neighbourhood grant,Supplies & Services
Leeds City Council,http://opendatacommunities.org/id/metropolitan-district-council/leeds,12/11/2014,Citizens & Communities,Health For All (Leeds),04/03/2014,20131400646,300,0,Neighbourhood grant,Supplies & Services
Leeds City Council,http://opendatacommunities.org/id/metropolitan-district-council/leeds,12/11/2014,Citizens & Communities,Health For All (Leeds),12/02/2014,20131400647,172,0,Neighbourhood grant,Supplies & Services
Leeds City Council,http://opendatacommunities.org/id/metropolitan-district-council/leeds,12/11/2014,Citizens & Communities,Health For All (Leeds),06/02/2014,20131400648,"1,117.10",0,Neighbourhood grant,Supplies & Services
Leeds City Council,http://opendatacommunities.org/id/metropolitan-district-council/leeds,12/11/2014,Citizens & Communities,Health For All (Leeds),16/01/2014,20131400649,"1,187.50",0,Neighbourhood grant,Supplies & Services
Leeds City Council,http://opendatacommunities.org/id/metropolitan-district-council/leeds,12/11/2014,Citizens & Communities,Health For All (Leeds),23/10/2013,20131400650,"1,717.21",0,Neighbourhood grant,Supplies & Services
Leeds City Council,http://opendatacommunities.org/id/metropolitan-district-council/leeds,12/11/2014,Citizens & Communities,Health For All (Leeds),23/10/2013,20131400651,"1,717.20",0,Neighbourhood grant,Supplies & Services
Leeds City Council,http://opendatacommunities.org/id/metropolitan-district-council/leeds,12/11/2014,Citizens & Communities,Health For All (Leeds),25/10/2013,20131400652,"1,945.00",0,Neighbourhood grant,Supplies & Services
Leeds City Council,http://opendatacommunities.org/id/metropolitan-district-council/leeds,12/11/2014,Citizens & Communities,Health For All (Leeds),21/10/2013,20131400653,345,0,Neighbourhood grant,Supplies & Services
Leeds City Council,http://opendatacommunities.org/id/metropolitan-district-council/leeds,12/11/2014,Citizens & Communities,Health For All (Leeds),03/04/2014,20131400654,25.84,0,Neighbourhood grant,Supplies & Services
Leeds City Council,http://opendatacommunities.org/id/metropolitan-district-council/leeds,12/11/2014,Citizens & Communities,Health For All (Leeds),03/04/2014,20131400655,"1,048.51",0,Neighbourhood grant,Supplies & Services
Leeds City Council,http://opendatacommunities.org/id/metropolitan-district-council/leeds,12/11/2014,Citizens & Communities,Health For All (Leeds),03/04/2014,20131400656,"2,726.25",0,Neighbourhood grant,Supplies & Services
Leeds City Council,http://opendatacommunities.org/id/metropolitan-district-council/leeds,12/11/2014,Citizens & Communities,Health For All (Leeds),13/03/2014,20131400657,"1,048.51",0,Neighbourhood grant,Supplies & Services
Leeds City Council,http://opendatacommunities.org/id/metropolitan-district-council/leeds,12/11/2014,Citizens & Communities,Health For All (Leeds),13/03/2014,20131400658,"2,726.25",0,Neighbourhood grant,Supplies & Services
Leeds City Council,http://opendatacommunities.org/id/metropolitan-district-council/leeds,12/11/2014,Citizens & Communities,Health For All (Leeds),03/03/2014,20131400659,"1,048.51",0,Neighbourhood grant,Supplies & Services
Leeds City Council,http://opendatacommunities.org/id/metropolitan-district-council/leeds,12/11/2014,Citizens & Communities,Health For All (Leeds),04/03/2014,20131400660,"2,726.25",0,Neighbourhood grant,Supplies & Services
Leeds City Council,http://opendatacommunities.org/id/metropolitan-district-council/leeds,12/11/2014,Citizens & Communities,Health For All (Leeds),07/01/2014,20131400661,"1,064.51",0,Neighbourhood grant,Supplies & Services
Leeds City Council,http://opendatacommunities.org/id/metropolitan-district-council/leeds,12/11/2014,Citizens & Communities,Health For All (Leeds),17/01/2014,20131400662,119.92,0,Neighbourhood grant,Supplies & Services
Leeds City Council,http://opendatacommunities.org/id/metropolitan-district-council/leeds,12/11/2014,Citizens & Communities,Health For All (Leeds),17/01/2014,20131400663,"2,726.25",0,Neighbourhood grant,Supplies & Services
Leeds City Council,http://opendatacommunities.org/id/metropolitan-district-council/leeds,12/11/2014,Citizens & Communities,Health For All (Leeds),05/12/2013,20131400664,"1,048.51",0,Neighbourhood grant,Supplies & Services
Leeds City Council,http://opendatacommunities.org/id/metropolitan-district-council/leeds,12/11/2014,Citizens & Communities,Health For All (Leeds),05/12/2013,20131400665,"2,626.85",0,Neighbourhood grant,Supplies & Services
Leeds City Council,http://opendatacommunities.org/id/metropolitan-district-council/leeds,12/11/2014,Citizens & Communities,Health For All (Leeds),05/11/2013,20131400666,"1,635.75",0,Neighbourhood grant,Supplies & Services
Leeds City Council,http://opendatacommunities.org/id/metropolitan-district-council/leeds,12/11/2014,Citizens & Communities,Health For All (Leeds),07/01/2014,20131400667,"1,277.01",0,Neighbourhood grant,Supplies & Services
Leeds City Council,http://opendatacommunities.org/id/metropolitan-district-council/leeds,12/11/2014,Citizens & Communities,Health For All (Leeds),05/11/2013,20131400668,44,0,Neighbourhood grant,Supplies & Services
Leeds City Council,http://opendatacommunities.org/id/metropolitan-district-council/leeds,12/11/2014,Citizens & Communities,Health For All (Leeds),05/11/2013,20131400669,"2,726.25",0,Neighbourhood grant,Supplies & Services
Leeds City Council,http://opendatacommunities.org/id/metropolitan-district-council/leeds,12/11/2014,Citizens & Communities,Health For All (Leeds),08/10/2013,20131400670,"2,726.25",0,Neighbourhood grant,Supplies & Services
Leeds City Council,http://opendatacommunities.org/id/metropolitan-district-council/leeds,12/11/2014,Citizens & Communities,Health For All (Leeds),07/10/2013,20131400671,"1,048.51",0,Neighbourhood grant,Supplies & Services
Leeds City Council,http://opendatacommunities.org/id/metropolitan-district-council/leeds,12/11/2014,Citizens & Communities,Health For All (Leeds),29/08/2013,20131400672,"1,048.51",0,Neighbourhood grant,Supplies & Services
Leeds City Council,http://opendatacommunities.org/id/metropolitan-district-council/leeds,12/11/2014,Citizens & Communities,Health For All (Leeds),28/08/2013,20131400673,"2,726.25",0,Neighbourhood grant,Supplies & Services
Leeds City Council,http://opendatacommunities.org/id/metropolitan-district-council/leeds,12/11/2014,Citizens & Communities,Health For All (Leeds),09/08/2013,20131400674,"1,048.51",0,Neighbourhood grant,Supplies & Services
Leeds City Council,http://opendatacommunities.org/id/metropolitan-district-council/leeds,12/11/2014,Citizens & Communities,Health For All (Leeds),25/06/2013,20131400675,"1,048.51",0,Neighbourhood grant,Supplies & Services
Leeds City Council,http://opendatacommunities.org/id/metropolitan-district-council/leeds,12/11/2014,Citizens & Communities,Health For All (Leeds),20/06/2013,20131400676,"1,048.51",0,Neighbourhood grant,Supplies & Services
Leeds City Council,http://opendatacommunities.org/id/metropolitan-district-council/leeds,12/11/2014,Citizens & Communities,Health For All (Leeds),05/08/2013,20131400677,"1,048.51",0,Neighbourhood grant,Supplies & Services
Leeds City Council,http://opendatacommunities.org/id/metropolitan-district-council/leeds,12/11/2014,Citizens & Communities,Health For All (Leeds),17/09/2013,20131400678,800,0,Neighbourhood grant,Supplies & Services
Leeds City Council,http://opendatacommunities.org/id/metropolitan-district-council/leeds,12/11/2014,Citizens & Communities,Health For All (Leeds),17/09/2013,20131400679,800,0,Neighbourhood grant,Supplies & Services
Leeds City Council,http://opendatacommunities.org/id/metropolitan-district-council/leeds,12/11/2014,Citizens & Communities,Health For All (Leeds),17/09/2013,20131400680,800,0,Neighbourhood grant,Supplies & Services
Leeds City Council,http://opendatacommunities.org/id/metropolitan-district-council/leeds,12/11/2014,Citizens & Communities,Health For All (Leeds),03/04/2014,20131400681,38.76,0,Neighbourhood grant,Supplies & Services
Leeds City Council,http://opendatacommunities.org/id/metropolitan-district-council/leeds,12/11/2014,Citizens & Communities,Health For All (Leeds),03/04/2014,20131400682,"1,572.76",0,Neighbourhood grant,Supplies & Services
Leeds City Council,http://opendatacommunities.org/id/metropolitan-district-council/leeds,12/11/2014,Citizens & Communities,Health For All (Leeds),13/03/2014,20131400683,"1,572.76",0,Neighbourhood grant,Supplies & Services
Leeds City Council,http://opendatacommunities.org/id/metropolitan-district-council/leeds,12/11/2014,Citizens & Communities,Health For All (Leeds),03/03/2014,20131400684,"1,572.76",0,Neighbourhood grant,Supplies & Services
Leeds City Council,http://opendatacommunities.org/id/metropolitan-district-council/leeds,12/11/2014,Citizens & Communities,Health For All (Leeds),07/01/2014,20131400685,"1,572.76",0,Neighbourhood grant,Supplies & Services
Leeds City Council,http://opendatacommunities.org/id/metropolitan-district-council/leeds,12/11/2014,Citizens & Communities,Health For All (Leeds),07/01/2014,20131400686,24,0,Neighbourhood grant,Supplies & Services
Leeds City Council,http://opendatacommunities.org/id/metropolitan-district-council/leeds,12/11/2014,Citizens & Communities,Health For All (Leeds),09/12/2013,20131400687,"1,572.76",0,Neighbourhood grant,Supplies & Services
Leeds City Council,http://opendatacommunities.org/id/metropolitan-district-council/leeds,12/11/2014,Citizens & Communities,Health For All (Leeds),07/01/2014,20131400688,"1,840.90",0,Neighbourhood grant,Supplies & Services
Leeds City Council,http://opendatacommunities.org/id/metropolitan-district-council/leeds,12/11/2014,Citizens & Communities,Health For All (Leeds),20/12/2013,20131400689,84,0,Neighbourhood grant,Supplies & Services
Leeds City Council,http://opendatacommunities.org/id/metropolitan-district-council/leeds,12/11/2014,Citizens & Communities,Health For All (Leeds),27/09/2013,20131400690,"1,572.76",0,Neighbourhood grant,Supplies & Services
Leeds City Council,http://opendatacommunities.org/id/metropolitan-district-council/leeds,12/11/2014,Citizens & Communities,Health For All (Leeds),29/08/2013,20131400691,"1,572.76",0,Neighbourhood grant,Supplies & Services
Leeds City Council,http://opendatacommunities.org/id/metropolitan-district-council/leeds,12/11/2014,Citizens & Communities,Health For All (Leeds),06/08/2013,20131400692,"1,597.76",0,Neighbourhood grant,Supplies & Services
Leeds City Council,http://opendatacommunities.org/id/metropolitan-district-council/leeds,12/11/2014,Citizens & Communities,Health For All (Leeds),05/08/2013,20131400693,"1,572.76",0,Neighbourhood grant,Supplies & Services
Leeds City Council,http://opendatacommunities.org/id/metropolitan-district-council/leeds,12/11/2014,Citizens & Communities,Health For All (Leeds),25/06/2013,20131400694,"1,572.76",0,Neighbourhood grant,Supplies & Services
Leeds City Council,http://opendatacommunities.org/id/metropolitan-district-council/leeds,12/11/2014,Citizens & Communities,Health For All (Leeds),20/06/2013,20131400695,"1,572.76",0,Neighbourhood grant,Supplies & Services
Leeds City Council,http://opendatacommunities.org/id/metropolitan-district-council/leeds,12/11/2014,Citizens & Communities,Health For All (Leeds),12/02/2014,20131400696,23,0,Neighbourhood grant,Supplies & Services
Leeds City Council,http://opendatacommunities.org/id/metropolitan-district-council/leeds,12/11/2014,Citizens & Communities,Health For All (Leeds),12/02/2014,20131400697,23,0,Neighbourhood grant,Supplies & Services
Leeds City Council,http://opendatacommunities.org/id/metropolitan-district-council/leeds,12/11/2014,Public Health,Health For All (Leeds),19/08/2013,20131400698,"1,164.78",0,Public Health grant,Supplies & Services
Leeds City Council,http://opendatacommunities.org/id/metropolitan-district-council/leeds,12/11/2014,Children's Services,Health For All (Leeds),21/06/2013,20131400699,"48,000.00",0,Short Breaks Capital Funding,Capital Expenditure
Leeds City Council,http://opendatacommunities.org/id/metropolitan-district-council/leeds,12/11/2014,City Development,HEALTHY LIVING NETWORK - LEEDS,09/04/2013,20131400700,"10,000.00",0,Regeneration grant,Supplies & Services
Leeds City Council,http://opendatacommunities.org/id/metropolitan-district-council/leeds,12/11/2014,Environment & Housing,HEALTHY LIVING NETWORK - LEEDS,18/04/2013,20131400701,"9,600.00",0,Support grant,Supplies & Services
Leeds City Council,http://opendatacommunities.org/id/metropolitan-district-council/leeds,12/11/2014,Citizens & Communities,HEALTHY LIVING NETWORK - LEEDS,19/04/2013,20131400702,203,0,Neighbourhood grant,Supplies & Services
Leeds City Council,http://opendatacommunities.org/id/metropolitan-district-council/leeds,12/11/2014,Citizens & Communities,HEALTHY LIVING NETWORK - LEEDS,07/04/2014,20131400703,"2,350.00",0,Neighbourhood grant,Supplies & Services
Leeds City Council,http://opendatacommunities.org/id/metropolitan-district-council/leeds,12/11/2014,Citizens & Communities,HEALTHY LIVING NETWORK - LEEDS,18/02/2014,20131400704,"2,350.00",0,Neighbourhood grant,Supplies & Services
Leeds City Council,http://opendatacommunities.org/id/metropolitan-district-council/leeds,12/11/2014,Citizens & Communities,HEALTHY LIVING NETWORK - LEEDS,13/01/2014,20131400705,"2,350.00",0,Neighbourhood grant,Supplies & Services
Leeds City Council,http://opendatacommunities.org/id/metropolitan-district-council/leeds,12/11/2014,Citizens & Communities,HEALTHY LIVING NETWORK - LEEDS,13/01/2014,20131400706,"2,350.00",0,Neighbourhood grant,Supplies & Services
Leeds City Council,http://opendatacommunities.org/id/metropolitan-district-council/leeds,12/11/2014,Citizens & Communities,HEALTHY LIVING NETWORK - LEEDS,21/11/2013,20131400707,"2,980.96",0,Neighbourhood grant,Supplies & Services
Leeds City Council,http://opendatacommunities.org/id/metropolitan-district-council/leeds,12/11/2014,Citizens & Communities,HEALTHY LIVING NETWORK - LEEDS,28/01/2014,20131400708,"2,500.00",0,Neighbourhood grant,Supplies & Services
Leeds City Council,http://opendatacommunities.org/id/metropolitan-district-council/leeds,12/11/2014,Citizens & Communities,HEALTHY LIVING NETWORK - LEEDS,18/10/2013,20131400709,"2,500.00",0,Neighbourhood grant,Supplies & Services
Leeds City Council,http://opendatacommunities.org/id/metropolitan-district-council/leeds,12/11/2014,Citizens & Communities,HEALTHY LIVING NETWORK - LEEDS,24/09/2013,20131400710,"2,500.00",0,Neighbourhood grant,Supplies & Services
Leeds City Council,http://opendatacommunities.org/id/metropolitan-district-council/leeds,12/11/2014,Strategic & Central,Henry Barran Craft Club,19/11/2013,20131400711,150,0,Locality grant,Supplies & Services
Leeds City Council,http://opendatacommunities.org/id/metropolitan-district-council/leeds,12/11/2014,Strategic & Central,Henry Barran Youth Club,29/10/2013,20131400712,500,0,Locality grant,Supplies & Services
Leeds City Council,http://opendatacommunities.org/id/metropolitan-district-council/leeds,12/11/2014,Strategic & Central,Henry Barran Youth Club,13/08/2013,20131400713,500,0,Locality grant,Supplies & Services
Leeds City Council,http://opendatacommunities.org/id/metropolitan-district-council/leeds,12/11/2014,Adult Social Care,HFT Ltd,02/04/2013,20131400714,"27,779.50",0,Learning Disabilities grant,Supplies & Services
Leeds City Council,http://opendatacommunities.org/id/metropolitan-district-council/leeds,12/11/2014,Adult Social Care,HFT Ltd,10/01/2014,20131400715,"27,779.50",0,Learning Disabilities grant,Supplies & Services
Leeds City Council,http://opendatacommunities.org/id/metropolitan-district-council/leeds,12/11/2014,Adult Social Care,HFT Ltd,26/09/2013,20131400716,"27,779.50",0,Learning Disabilities grant,Supplies & Services
Leeds City Council,http://opendatacommunities.org/id/metropolitan-district-council/leeds,12/11/2014,Adult Social Care,HFT Ltd,25/06/2013,20131400717,"27,779.50",0,Learning Disabilities grant,Supplies & Services
Leeds City Council,http://opendatacommunities.org/id/metropolitan-district-council/leeds,12/11/2014,Strategic & Central,Highfield Methodist Church,03/04/2014,20131400718,315.45,0,Locality grant,Supplies & Services
Leeds City Council,http://opendatacommunities.org/id/metropolitan-district-council/leeds,12/11/2014,Strategic & Central,Hill Top Good Companions Club,10/12/2013,20131400719,200,0,Locality grant,Supplies & Services
Leeds City Council,http://opendatacommunities.org/id/metropolitan-district-council/leeds,12/11/2014,Strategic & Central,Hillcrest Primary PTA,28/11/2013,20131400720,25,0,Locality grant,Supplies & Services
Leeds City Council,http://opendatacommunities.org/id/metropolitan-district-council/leeds,12/11/2014,Adult Social Care,Himmat Asian Women Carers Group,30/08/2013,20131400721,300,0,Carers Small Group Grant,Supplies & Services
Leeds City Council,http://opendatacommunities.org/id/metropolitan-district-council/leeds,12/11/2014,Citizens & Communities,Hindu Charitable Trust,24/12/2013,20131400722,"2,000.00",0,Neighbourhood grant,Supplies & Services
Leeds City Council,http://opendatacommunities.org/id/metropolitan-district-council/leeds,12/11/2014,West North West ALMO,Hindu Charitable Trust,22/08/2013,20131400723,65,0,Diverse community grant,Supplies & Services
Leeds City Council,http://opendatacommunities.org/id/metropolitan-district-council/leeds,12/11/2014,Strategic & Central,Holbeck Area Residents Association,25/03/2014,20131400724,50,0,Locality grant,Supplies & Services
Leeds City Council,http://opendatacommunities.org/id/metropolitan-district-council/leeds,12/11/2014,Strategic & Central,HOLBECK ELDERLY AID,25/03/2014,20131400725,100,0,Locality grant,Supplies & Services
Leeds City Council,http://opendatacommunities.org/id/metropolitan-district-council/leeds,12/11/2014,Adult Social Care,HOLBECK ELDERLY AID,17/04/2013,20131400726,"2,801.00",0,Luncheon Club grant,Supplies & Services
Leeds City Council,http://opendatacommunities.org/id/metropolitan-district-council/leeds,12/11/2014,Adult Social Care,Holbeck Elderly Aid (Carers Group),08/01/2014,20131400727,300,0,Carers Small Group Grant,Supplies & Services
Leeds City Council,http://opendatacommunities.org/id/metropolitan-district-council/leeds,12/11/2014,Environment & Housing,Holbeck Food Bank,05/12/2013,20131400728,"1,000.00",0,Housing grant,Supplies & Services
Leeds City Council,http://opendatacommunities.org/id/metropolitan-district-council/leeds,12/11/2014,Citizens & Communities,Holbeck Foodbank,17/02/2014,20131400729,"2,000.00",0,Foodbank Funding,Supplies & Services
Leeds City Council,http://opendatacommunities.org/id/metropolitan-district-council/leeds,12/11/2014,Strategic & Central,Holbeck Gala,25/03/2014,20131400730,750,0,Locality grant,Supplies & Services
Leeds City Council,http://opendatacommunities.org/id/metropolitan-district-council/leeds,12/11/2014,Citizens & Communities,Holbeck Gala,13/05/2013,20131400731,900,0,Neighbourhood grant,Supplies & Services
Leeds City Council,http://opendatacommunities.org/id/metropolitan-district-council/leeds,12/11/2014,Citizens & Communities,Holbeck Gala,03/03/2014,20131400732,"3,500.00",0,Neighbourhood grant,Supplies & Services
Leeds City Council,http://opendatacommunities.org/id/metropolitan-district-council/leeds,12/11/2014,Strategic & Central,Holbeck In Bloom,25/03/2014,20131400733,200,0,Locality grant,Supplies & Services
Leeds City Council,http://opendatacommunities.org/id/metropolitan-district-council/leeds,12/11/2014,Strategic & Central,Holbeck Lunch Club,25/03/2014,20131400734,100,0,Locality grant,Supplies & Services
Leeds City Council,http://opendatacommunities.org/id/metropolitan-district-council/leeds,12/11/2014,Strategic & Central,Holbeck Youth Club,23/07/2013,20131400735,300,0,Locality grant,Supplies & Services
Leeds City Council,http://opendatacommunities.org/id/metropolitan-district-council/leeds,12/11/2014,Adult Social Care,HOLLINS GROVE LUNCH CLUB,12/04/2013,20131400736,"2,551.00",0,Luncheon Club grant,Supplies & Services
Leeds City Council,http://opendatacommunities.org/id/metropolitan-district-council/leeds,12/11/2014,Citizens & Communities,Holt Park Over 60 Club,28/05/2013,20131400737,195,0,Neighbourhood grant,Supplies & Services
Leeds City Council,http://opendatacommunities.org/id/metropolitan-district-council/leeds,12/11/2014,Citizens & Communities,Holt Park Over 60 Club,28/05/2013,20131400738,200,0,Neighbourhood grant,Supplies & Services
Leeds City Council,http://opendatacommunities.org/id/metropolitan-district-council/leeds,12/11/2014,West North West ALMO,Holt Park Residents Association,17/09/2013,20131400739,350,0,Support Grant,Supplies & Services
Leeds City Council,http://opendatacommunities.org/id/metropolitan-district-council/leeds,12/11/2014,Environment & Housing,HOONER KELAH,18/04/2013,20131400740,"4,350.00",0,Support grant,Supplies & Services
Leeds City Council,http://opendatacommunities.org/id/metropolitan-district-council/leeds,12/11/2014,Adult Social Care,HOPE,30/08/2013,20131400741,300,0,Carers Small Group Grant,Supplies & Services
Leeds City Council,http://opendatacommunities.org/id/metropolitan-district-council/leeds,12/11/2014,Citizens & Communities,HOPE,15/10/2013,20131400742,250,0,Proceeds of Crime grant,Supplies & Services
Leeds City Council,http://opendatacommunities.org/id/metropolitan-district-council/leeds,12/11/2014,Citizens & Communities,HOPE,08/10/2013,20131400743,250,0,Proceeds of Crime grant,Supplies & Services
Leeds City Council,http://opendatacommunities.org/id/metropolitan-district-council/leeds,12/11/2014,Citizens & Communities,HOPS,09/04/2014,20131400744,"2,720.00",0,Neighbourhood grant,Supplies & Services
Leeds City Council,http://opendatacommunities.org/id/metropolitan-district-council/leeds,12/11/2014,Citizens & Communities,HOPS,18/11/2013,20131400745,"3,829.68",0,Neighbourhood grant,Supplies & Services
Leeds City Council,http://opendatacommunities.org/id/metropolitan-district-council/leeds,12/11/2014,Citizens & Communities,HOPS,07/04/2014,20131400746,"2,451.34",0,Neighbourhood grant,Supplies & Services
Leeds City Council,http://opendatacommunities.org/id/metropolitan-district-council/leeds,12/11/2014,Citizens & Communities,HOPS,23/08/2013,20131400747,"3,615.60",0,Neighbourhood capital grant,Capital Expenditure
Leeds City Council,http://opendatacommunities.org/id/metropolitan-district-council/leeds,12/11/2014,Environment & Housing,HORSFORTH CENTRAL METHODIST CHURCH,22/05/2013,20131400748,250,0,Horticultural grant,Supplies & Services
Leeds City Council,http://opendatacommunities.org/id/metropolitan-district-council/leeds,12/11/2014,Strategic & Central,Horsforth Childrens Centre,03/12/2013,20131400749,50,0,Locality grant,Supplies & Services
Leeds City Council,http://opendatacommunities.org/id/metropolitan-district-council/leeds,12/11/2014,Adult Social Care,Horsforth Live @ Home Luncheon Club,12/04/2013,20131400750,"4,475.00",0,Luncheon Club grant,Supplies & Services
Leeds City Council,http://opendatacommunities.org/id/metropolitan-district-council/leeds,12/11/2014,Strategic & Central,Horsforth Minibus Fund,13/08/2013,20131400751,500,0,Locality grant,Supplies & Services
Leeds City Council,http://opendatacommunities.org/id/metropolitan-district-council/leeds,12/11/2014,Strategic & Central,HORSFORTH VILLAGE MUSEUM,09/04/2013,20131400752,319,0,Locality grant,Supplies & Services
Leeds City Council,http://opendatacommunities.org/id/metropolitan-district-council/leeds,12/11/2014,Strategic & Central,Housing 21,08/10/2013,20131400753,300,0,Locality grant,Supplies & Services
Leeds City Council,http://opendatacommunities.org/id/metropolitan-district-council/leeds,12/11/2014,City Development,Hughbon Condor,22/08/2013,20131400754,500,0,Leeds Inspired grant,Supplies & Services
Leeds City Council,http://opendatacommunities.org/id/metropolitan-district-council/leeds,12/11/2014,Citizens & Communities,Hunslet Club,09/10/2013,20131400755,"7,745.00",0,Neighbourhood grant,Supplies & Services
Leeds City Council,http://opendatacommunities.org/id/metropolitan-district-council/leeds,12/11/2014,Strategic & Central,Hunslet Independent Supporters Trust,22/10/2013,20131400756,150,0,Locality grant,Supplies & Services
Leeds City Council,http://opendatacommunities.org/id/metropolitan-district-council/leeds,12/11/2014,Strategic & Central,Hunslet Independent Supporters Trust,19/11/2013,20131400757,75,0,Locality grant,Supplies & Services
Leeds City Council,http://opendatacommunities.org/id/metropolitan-district-council/leeds,12/11/2014,Strategic & Central,Hunslet Independent Supporters Trust,17/09/2013,20131400758,75,0,Locality grant,Supplies & Services
Leeds City Council,http://opendatacommunities.org/id/metropolitan-district-council/leeds,12/11/2014,Strategic & Central,HYDE PARK SOURCE,10/09/2013,20131400759,200,0,Locality grant,Supplies & Services
Leeds City Council,http://opendatacommunities.org/id/metropolitan-district-council/leeds,12/11/2014,City Development,HYDE PARK UNITY DAY,27/06/2013,20131400760,500,0,Leeds Inspired grant,Supplies & Services
Leeds City Council,http://opendatacommunities.org/id/metropolitan-district-council/leeds,12/11/2014,City Development,HYDE PARK UNITY DAY,10/04/2013,20131400761,"2,000.00",0,Arts grant,Supplies & Services
Leeds City Council,http://opendatacommunities.org/id/metropolitan-district-council/leeds,12/11/2014,Strategic & Central,HYDE PARK UNITY DAY,19/08/2013,20131400762,600,0,Locality grant,Supplies & Services
Leeds City Council,http://opendatacommunities.org/id/metropolitan-district-council/leeds,12/11/2014,Strategic & Central,HYDE PARK UNITY DAY,09/07/2013,20131400763,400,0,Locality grant,Supplies & Services
Leeds City Council,http://opendatacommunities.org/id/metropolitan-district-council/leeds,12/11/2014,Strategic & Central,HYDE PARK UNITY DAY,02/07/2013,20131400764,500,0,Locality grant,Supplies & Services
Leeds City Council,http://opendatacommunities.org/id/metropolitan-district-council/leeds,12/11/2014,Citizens & Communities,HYDE PARK UNITY DAY,14/06/2013,20131400765,"5,000.00",0,Neighbourhood grant,Supplies & Services
Leeds City Council,http://opendatacommunities.org/id/metropolitan-district-council/leeds,12/11/2014,City Development,I Love West Leeds Festival Ltd,10/04/2013,20131400766,"4,000.00",0,Arts grant,Supplies & Services
Leeds City Council,http://opendatacommunities.org/id/metropolitan-district-council/leeds,12/11/2014,Strategic & Central,Inglewood Residents Association,28/01/2014,20131400767,250,0,Locality grant,Supplies & Services
Leeds City Council,http://opendatacommunities.org/id/metropolitan-district-council/leeds,12/11/2014,Strategic & Central,Inside Outside Childcare,13/08/2013,20131400768,250,0,Locality grant,Supplies & Services
Leeds City Council,http://opendatacommunities.org/id/metropolitan-district-council/leeds,12/11/2014,Strategic & Central,InterACT Church & Community Partnership,27/08/2013,20131400769,500,0,Locality grant,Supplies & Services
Leeds City Council,http://opendatacommunities.org/id/metropolitan-district-council/leeds,12/11/2014,Strategic & Central,InterACT Church & Community Partnership,19/11/2013,20131400770,200,0,Locality grant,Supplies & Services
Leeds City Council,http://opendatacommunities.org/id/metropolitan-district-council/leeds,12/11/2014,Strategic & Central,InterACT Church & Community Partnership,19/11/2013,20131400771,100,0,Locality grant,Supplies & Services
Leeds City Council,http://opendatacommunities.org/id/metropolitan-district-council/leeds,12/11/2014,Strategic & Central,InterACT Church & Community Partnership,12/11/2013,20131400772,300,0,Locality grant,Supplies & Services
Leeds City Council,http://opendatacommunities.org/id/metropolitan-district-council/leeds,12/11/2014,Adult Social Care,International Caribbean Luncheon Club,12/04/2013,20131400773,"1,656.00",0,Luncheon Club grant,Supplies & Services
Leeds City Council,http://opendatacommunities.org/id/metropolitan-district-council/leeds,12/11/2014,City Development,INTERPLAY THEATRE TRUST,11/04/2013,20131400774,"16,000.00",0,Arts grant,Supplies & Services
Leeds City Council,http://opendatacommunities.org/id/metropolitan-district-council/leeds,12/11/2014,City Development,Invisble Flock,04/07/2013,20131400775,"9,850.00",0,Leeds Inspired grant,Supplies & Services
Leeds City Council,http://opendatacommunities.org/id/metropolitan-district-council/leeds,12/11/2014,City Development,Invisble Flock,10/04/2013,20131400776,"2,000.00",0,Arts grant,Supplies & Services
Leeds City Council,http://opendatacommunities.org/id/metropolitan-district-council/leeds,12/11/2014,Citizens & Communities,INVIZIBLE CIRCLE EDUCATION,23/07/2013,20131400777,630,0,Neighbourhood grant,Supplies & Services
Leeds City Council,http://opendatacommunities.org/id/metropolitan-district-council/leeds,12/11/2014,Citizens & Communities,INVIZIBLE CIRCLE EDUCATION,26/09/2013,20131400778,638,0,Neighbourhood grant,Supplies & Services
Leeds City Council,http://opendatacommunities.org/id/metropolitan-district-council/leeds,12/11/2014,Citizens & Communities,INVIZIBLE CIRCLE EDUCATION,17/01/2014,20131400779,"2,163.00",0,Neighbourhood grant,Supplies & Services
Leeds City Council,http://opendatacommunities.org/id/metropolitan-district-council/leeds,12/11/2014,Citizens & Communities,INVIZIBLE CIRCLE EDUCATION,07/08/2013,20131400780,"1,610.00",0,Neighbourhood grant,Supplies & Services
Leeds City Council,http://opendatacommunities.org/id/metropolitan-district-council/leeds,12/11/2014,Citizens & Communities,INVIZIBLE CIRCLE EDUCATION,26/09/2013,20131400781,"1,610.00",0,Neighbourhood grant,Supplies & Services
Leeds City Council,http://opendatacommunities.org/id/metropolitan-district-council/leeds,12/11/2014,Children's Services,IRELAND WOOD CHILDRENS CENTRE,31/01/2014,20131400782,"4,000.00",0,Early Years Start Up Grant,Third Party Payments
Leeds City Council,http://opendatacommunities.org/id/metropolitan-district-council/leeds,12/11/2014,Children's Services,IRELAND WOOD CHILDRENS CENTRE,16/01/2014,20131400783,"8,000.00",0,Early Years Start Up Grant,Third Party Payments
Leeds City Council,http://opendatacommunities.org/id/metropolitan-district-council/leeds,12/11/2014,Strategic & Central,Irish Arts Foundation,10/12/2013,20131400784,240,0,Locality grant,Supplies & Services
Leeds City Council,http://opendatacommunities.org/id/metropolitan-district-council/leeds,12/11/2014,Citizens & Communities,Irish Arts Foundation,25/07/2013,20131400785,500,0,Neighbourhood grant,Supplies & Services
Leeds City Council,http://opendatacommunities.org/id/metropolitan-district-council/leeds,12/11/2014,Citizens & Communities,Irish Arts Foundation,25/06/2013,20131400786,500,0,Neighbourhood grant,Supplies & Services
Leeds City Council,http://opendatacommunities.org/id/metropolitan-district-council/leeds,12/11/2014,Citizens & Communities,Irish Arts Foundation,23/07/2013,20131400787,500,0,Neighbourhood grant,Supplies & Services
Leeds City Council,http://opendatacommunities.org/id/metropolitan-district-council/leeds,12/11/2014,Citizens & Communities,Irish Arts Foundation,23/01/2014,20131400788,"1,330.35",0,Neighbourhood grant,Supplies & Services
Leeds City Council,http://opendatacommunities.org/id/metropolitan-district-council/leeds,12/11/2014,Citizens & Communities,IRISH HISTORY MONTH,15/10/2013,20131400789,500,0,Neighbourhood grant,Supplies & Services
Leeds City Council,http://opendatacommunities.org/id/metropolitan-district-council/leeds,12/11/2014,Strategic & Central,Islamic Centre Leeds,16/07/2013,20131400790,110,0,Locality grant,Supplies & Services
Leeds City Council,http://opendatacommunities.org/id/metropolitan-district-council/leeds,12/11/2014,Strategic & Central,JAMAICA SOCIETY LEEDS,10/12/2013,20131400791,100,0,Locality grant,Supplies & Services
Leeds City Council,http://opendatacommunities.org/id/metropolitan-district-council/leeds,12/11/2014,Strategic & Central,John O'Gaunts Community Centre,19/11/2013,20131400792,100,0,Locality grant,Supplies & Services
Leeds City Council,http://opendatacommunities.org/id/metropolitan-district-council/leeds,12/11/2014,Strategic & Central,John O'Gaunts Community Centre,09/07/2013,20131400793,820,0,Locality grant,Supplies & Services
Leeds City Council,http://opendatacommunities.org/id/metropolitan-district-council/leeds,12/11/2014,Citizens & Communities,John O'Gaunts Community Centre,04/11/2013,20131400794,500,0,Neighbourhood grant,Supplies & Services
Leeds City Council,http://opendatacommunities.org/id/metropolitan-district-council/leeds,12/11/2014,Citizens & Communities,John O'Gaunts Community Centre,29/11/2013,20131400795,500,0,Neighbourhood grant,Supplies & Services
Leeds City Council,http://opendatacommunities.org/id/metropolitan-district-council/leeds,12/11/2014,Strategic & Central,John O'Gaunts Gardening Group,13/08/2013,20131400796,820,0,Locality grant,Supplies & Services
Leeds City Council,http://opendatacommunities.org/id/metropolitan-district-council/leeds,12/11/2014,Strategic & Central,John O'Gaunts Gardening Group,25/06/2013,20131400797,100,0,Locality grant,Supplies & Services
Leeds City Council,http://opendatacommunities.org/id/metropolitan-district-council/leeds,12/11/2014,Strategic & Central,John O'Gaunts Gardening Group,25/06/2013,20131400798,200,0,Locality grant,Supplies & Services
Leeds City Council,http://opendatacommunities.org/id/metropolitan-district-council/leeds,12/11/2014,Environment & Housing,John O'Gaunts Gardening Group,02/07/2013,20131400799,"2,000.00",0,Neighbourhood capital grant,Capital Expenditure
Leeds City Council,http://opendatacommunities.org/id/metropolitan-district-council/leeds,12/11/2014,Citizens & Communities,John O'Gaunts Tenants And Residents Group,20/08/2013,20131400800,500,0,Neighbourhood grant,Supplies & Services
Leeds City Council,http://opendatacommunities.org/id/metropolitan-district-council/leeds,12/11/2014,Strategic & Central,KABA PC,17/12/2013,20131400801,200,0,Locality grant,Supplies & Services
Leeds City Council,http://opendatacommunities.org/id/metropolitan-district-council/leeds,12/11/2014,Children's Services,Kangaroo Kids,27/02/2014,20131400802,"12,000.00",0,Early Years Start Up Grant,Third Party Payments
Leeds City Council,http://opendatacommunities.org/id/metropolitan-district-council/leeds,12/11/2014,Strategic & Central,Karate for Inner City Kids (KICK),04/03/2014,20131400803,700,0,Locality grant,Supplies & Services
Leeds City Council,http://opendatacommunities.org/id/metropolitan-district-council/leeds,12/11/2014,Strategic & Central,Karate for Inner City Kids (KICK),25/02/2014,20131400804,200,0,Locality grant,Supplies & Services
Leeds City Council,http://opendatacommunities.org/id/metropolitan-district-council/leeds,12/11/2014,Strategic & Central,Karate for Inner City Kids (KICK),28/01/2014,20131400805,100,0,Locality grant,Supplies & Services
Leeds City Council,http://opendatacommunities.org/id/metropolitan-district-council/leeds,12/11/2014,Strategic & Central,Karate for Inner City Kids (KICK),11/06/2013,20131400806,150,0,Locality grant,Supplies & Services
Leeds City Council,http://opendatacommunities.org/id/metropolitan-district-council/leeds,12/11/2014,Citizens & Communities,Karate for Inner City Kids (KICK),20/08/2013,20131400807,500,0,Neighbourhood grant,Supplies & Services
Leeds City Council,http://opendatacommunities.org/id/metropolitan-district-council/leeds,12/11/2014,Citizens & Communities,Karate for Inner City Kids (KICK),11/02/2014,20131400808,"2,000.00",0,Neighbourhood grant,Supplies & Services
Leeds City Council,http://opendatacommunities.org/id/metropolitan-district-council/leeds,12/11/2014,Citizens & Communities,Karate for Inner City Kids (KICK),18/03/2014,20131400809,"1,500.00",0,Neighbourhood grant,Supplies & Services
Leeds City Council,http://opendatacommunities.org/id/metropolitan-district-council/leeds,12/11/2014,Strategic & Central,Kentmere Art and Library Group,28/01/2014,20131400810,150,0,Locality grant,Supplies & Services
Leeds City Council,http://opendatacommunities.org/id/metropolitan-district-council/leeds,12/11/2014,Strategic & Central,Kentmere Avenue Youth Group,28/01/2014,20131400811,200,0,Locality grant,Supplies & Services
Leeds City Council,http://opendatacommunities.org/id/metropolitan-district-council/leeds,12/11/2014,Strategic & Central,Kentmere Centre Bingo Club,28/01/2014,20131400812,100,0,Locality grant,Supplies & Services
Leeds City Council,http://opendatacommunities.org/id/metropolitan-district-council/leeds,12/11/2014,Strategic & Central,Kentmere Centre Luncheon Club,28/01/2014,20131400813,150,0,Locality grant,Supplies & Services
Leeds City Council,http://opendatacommunities.org/id/metropolitan-district-council/leeds,12/11/2014,Adult Social Care,Kentmere Centre Luncheon Club,12/04/2013,20131400814,"4,475.00",0,Luncheon Club grant,Supplies & Services
Leeds City Council,http://opendatacommunities.org/id/metropolitan-district-council/leeds,12/11/2014,Citizens & Communities,Kentmere Children Centre Amenity Fund,02/04/2014,20131400815,150,0,Neighbourhood grant,Supplies & Services
Leeds City Council,http://opendatacommunities.org/id/metropolitan-district-council/leeds,12/11/2014,Citizens & Communities,Kidz & Co,13/09/2013,20131400816,500,0,Neighbourhood grant,Supplies & Services
Leeds City Council,http://opendatacommunities.org/id/metropolitan-district-council/leeds,12/11/2014,Citizens & Communities,Kidz & Co,13/09/2013,20131400817,465.5,0,Neighbourhood grant,Supplies & Services
Leeds City Council,http://opendatacommunities.org/id/metropolitan-district-council/leeds,12/11/2014,Environment & Housing,Kidz Klub Leeds,15/04/2013,20131400818,"4,486.41",0,Support grant,Supplies & Services
Leeds City Council,http://opendatacommunities.org/id/metropolitan-district-council/leeds,12/11/2014,Strategic & Central,Kidz Klub Leeds,04/06/2013,20131400819,"1,250.00",0,Locality grant,Supplies & Services
Leeds City Council,http://opendatacommunities.org/id/metropolitan-district-council/leeds,12/11/2014,Strategic & Central,Kidz Klub Leeds,18/06/2013,20131400820,100,0,Locality grant,Supplies & Services
Leeds City Council,http://opendatacommunities.org/id/metropolitan-district-council/leeds,12/11/2014,Strategic & Central,Kidz Klub Leeds,21/05/2013,20131400821,100,0,Locality grant,Supplies & Services
Leeds City Council,http://opendatacommunities.org/id/metropolitan-district-council/leeds,12/11/2014,Strategic & Central,Kidz Klub Leeds,13/05/2013,20131400822,300,0,Locality grant,Supplies & Services
Leeds City Council,http://opendatacommunities.org/id/metropolitan-district-council/leeds,12/11/2014,Citizens & Communities,Killingbeck And Seacroft Gala,22/10/2013,20131400823,500,0,Neighbourhood grant,Supplies & Services
Leeds City Council,http://opendatacommunities.org/id/metropolitan-district-council/leeds,12/11/2014,Strategic & Central,Killingbeck Tenants Group,07/02/2014,20131400824,250,0,Locality grant,Supplies & Services
Leeds City Council,http://opendatacommunities.org/id/metropolitan-district-council/leeds,12/11/2014,Citizens & Communities,Kingdom Performance Ministries,06/02/2014,20131400825,250,0,Proceeds of Crime grant,Supplies & Services
Leeds City Council,http://opendatacommunities.org/id/metropolitan-district-council/leeds,12/11/2014,Strategic & Central,Kippax Amateur Operatic Society,26/11/2013,20131400826,200,0,Locality grant,Supplies & Services
Leeds City Council,http://opendatacommunities.org/id/metropolitan-district-council/leeds,12/11/2014,Strategic & Central,Kippax Athletic Junior Club,22/10/2013,20131400827,300,0,Locality grant,Supplies & Services
Leeds City Council,http://opendatacommunities.org/id/metropolitan-district-council/leeds,12/11/2014,Citizens & Communities,Kippax Community Association '82',28/11/2013,20131400828,250,0,Proceeds of Crime grant,Supplies & Services
Leeds City Council,http://opendatacommunities.org/id/metropolitan-district-council/leeds,12/11/2014,Citizens & Communities,Kippax United JFC,23/12/2013,20131400829,490,0,Neighbourhood grant,Supplies & Services
Leeds City Council,http://opendatacommunities.org/id/metropolitan-district-council/leeds,12/11/2014,Citizens & Communities,Kippax United JFC,07/11/2013,20131400830,250,0,Proceeds of Crime grant,Supplies & Services
Leeds City Council,http://opendatacommunities.org/id/metropolitan-district-council/leeds,12/11/2014,HRA,Kippax United JFC,06/01/2014,20131400831,527,0,OSEAP Funding,Third Party Payments
Leeds City Council,http://opendatacommunities.org/id/metropolitan-district-council/leeds,12/11/2014,Citizens & Communities,Kirk Deighton Cricket Club,05/03/2014,20131400832,500,0,Neighbourhood grant,Supplies & Services
Leeds City Council,http://opendatacommunities.org/id/metropolitan-district-council/leeds,12/11/2014,Strategic & Central,Kirkstall Educational Cricket Club,04/02/2014,20131400833,300,0,Locality grant,Supplies & Services
Leeds City Council,http://opendatacommunities.org/id/metropolitan-district-council/leeds,12/11/2014,City Development,KIRKSTALL FESTIVAL,10/04/2013,20131400834,"1,000.00",0,Arts grant,Supplies & Services
Leeds City Council,http://opendatacommunities.org/id/metropolitan-district-council/leeds,12/11/2014,Strategic & Central,KIRKSTALL FESTIVAL,29/10/2013,20131400835,360,0,Locality grant,Supplies & Services
Leeds City Council,http://opendatacommunities.org/id/metropolitan-district-council/leeds,12/11/2014,Citizens & Communities,KIRKSTALL FESTIVAL,10/10/2013,20131400836,"5,000.00",0,Neighbourhood grant,Supplies & Services
Leeds City Council,http://opendatacommunities.org/id/metropolitan-district-council/leeds,12/11/2014,Environment & Housing,Kirkstall In Bloom,05/07/2013,20131400837,500,0,Horticultural grant,Supplies & Services
Leeds City Council,http://opendatacommunities.org/id/metropolitan-district-council/leeds,12/11/2014,Strategic & Central,Kirkstall In Bloom,04/03/2014,20131400838,270,0,Locality grant,Supplies & Services
Leeds City Council,http://opendatacommunities.org/id/metropolitan-district-council/leeds,12/11/2014,Strategic & Central,Kirkstall In Bloom,28/01/2014,20131400839,270,0,Locality grant,Supplies & Services
Leeds City Council,http://opendatacommunities.org/id/metropolitan-district-council/leeds,12/11/2014,Strategic & Central,KMWA Community Centre,03/09/2013,20131400840,800,0,Locality grant,Supplies & Services
Leeds City Council,http://opendatacommunities.org/id/metropolitan-district-council/leeds,12/11/2014,Adult Social Care,L.I.H.H. Friday Club,12/04/2013,20131400841,"2,551.00",0,Luncheon Club grant,Supplies & Services
Leeds City Council,http://opendatacommunities.org/id/metropolitan-district-council/leeds,12/11/2014,Citizens & Communities,LCCT - Leeds Christian Community Trust,13/11/2013,20131400842,"2,344.34",0,Neighbourhood grant,Supplies & Services
Leeds City Council,http://opendatacommunities.org/id/metropolitan-district-council/leeds,12/11/2014,Citizens & Communities,LCCT - Leeds Christian Community Trust,08/10/2013,20131400843,674.25,0,Neighbourhood grant,Supplies & Services
Leeds City Council,http://opendatacommunities.org/id/metropolitan-district-council/leeds,12/11/2014,Environment & Housing,LCCT - Leeds Christian Community Trust,17/03/2014,20131400844,200,0,Housing grant,Supplies & Services
Leeds City Council,http://opendatacommunities.org/id/metropolitan-district-council/leeds,12/11/2014,Environment & Housing,LEARNING PARTNERSHIPS,20/01/2014,20131400845,"4,726.00",0,Housing grant,Supplies & Services
Leeds City Council,http://opendatacommunities.org/id/metropolitan-district-council/leeds,12/11/2014,Citizens & Communities,LEARNING PARTNERSHIPS,28/05/2013,20131400846,300,0,Neighbourhood grant,Supplies & Services
Leeds City Council,http://opendatacommunities.org/id/metropolitan-district-council/leeds,12/11/2014,Citizens & Communities,LEARNING PARTNERSHIPS,14/03/2014,20131400847,300,0,Neighbourhood grant,Supplies & Services
Leeds City Council,http://opendatacommunities.org/id/metropolitan-district-council/leeds,12/11/2014,Citizens & Communities,LEARNING PARTNERSHIPS,14/03/2014,20131400848,700,0,Neighbourhood grant,Supplies & Services
Leeds City Council,http://opendatacommunities.org/id/metropolitan-district-council/leeds,12/11/2014,Citizens & Communities,LEARNING PARTNERSHIPS,06/06/2013,20131400849,"1,000.00",0,Neighbourhood grant,Supplies & Services
Leeds City Council,http://opendatacommunities.org/id/metropolitan-district-council/leeds,12/11/2014,Citizens & Communities,LEARNING PARTNERSHIPS,30/04/2013,20131400850,"1,000.00",0,Neighbourhood grant,Supplies & Services
Leeds City Council,http://opendatacommunities.org/id/metropolitan-district-council/leeds,12/11/2014,Citizens & Communities,LEARNING PARTNERSHIPS,04/11/2013,20131400851,"2,000.00",0,Neighbourhood grant,Supplies & Services
Leeds City Council,http://opendatacommunities.org/id/metropolitan-district-council/leeds,12/11/2014,Citizens & Communities,Ledston In Bloom,11/07/2013,20131400852,500,0,Neighbourhood grant,Supplies & Services
Leeds City Council,http://opendatacommunities.org/id/metropolitan-district-council/leeds,12/11/2014,Environment & Housing,LEEDS & DISTRICT GARDENERS FEDERATION,31/07/2013,20131400853,750,0,Horticultural grant,Supplies & Services
Leeds City Council,http://opendatacommunities.org/id/metropolitan-district-council/leeds,12/11/2014,Environment & Housing,LEEDS & MOORTOWN FURNITURE STORE,14/05/2013,20131400854,"1,995.00",0,Qtr 1 Support grant,Supplies & Services
Leeds City Council,http://opendatacommunities.org/id/metropolitan-district-council/leeds,12/11/2014,Environment & Housing,LEEDS & MOORTOWN FURNITURE STORE,05/12/2013,20131400855,"5,985.00",0,"Qtrs 2,3 & 4 Support grant",Supplies & Services
Leeds City Council,http://opendatacommunities.org/id/metropolitan-district-council/leeds,12/11/2014,Environment & Housing,LEEDS & MOORTOWN FURNITURE STORE,14/05/2013,20131400856,"18,000.00",0,Qtr 1 Support grant,Supplies & Services
Leeds City Council,http://opendatacommunities.org/id/metropolitan-district-council/leeds,12/11/2014,Environment & Housing,LEEDS & MOORTOWN FURNITURE STORE,05/12/2013,20131400857,"18,000.00",0,Qtr 4 Support grant,Supplies & Services
Leeds City Council,http://opendatacommunities.org/id/metropolitan-district-council/leeds,12/11/2014,Environment & Housing,LEEDS & MOORTOWN FURNITURE STORE,05/12/2013,20131400858,"18,000.00",0,Qtr 3 Support grant,Supplies & Services
Leeds City Council,http://opendatacommunities.org/id/metropolitan-district-council/leeds,12/11/2014,Environment & Housing,LEEDS & MOORTOWN FURNITURE STORE,29/07/2013,20131400859,"18,000.00",0,Qtr 2 Support grant,Supplies & Services
Leeds City Council,http://opendatacommunities.org/id/metropolitan-district-council/leeds,12/11/2014,Strategic & Central,LEEDS & MOORTOWN FURNITURE STORE,27/08/2013,20131400860,100,0,Locality grant,Supplies & Services
Leeds City Council,http://opendatacommunities.org/id/metropolitan-district-council/leeds,12/11/2014,Strategic & Central,LEEDS & MOORTOWN FURNITURE STORE,04/06/2013,20131400861,340,0,Locality grant,Supplies & Services
Leeds City Council,http://opendatacommunities.org/id/metropolitan-district-council/leeds,12/11/2014,Strategic & Central,LEEDS & MOORTOWN FURNITURE STORE,03/04/2014,20131400862,100,0,Locality grant,Supplies & Services
Leeds City Council,http://opendatacommunities.org/id/metropolitan-district-council/leeds,12/11/2014,Strategic & Central,LEEDS & MOORTOWN FURNITURE STORE,18/03/2014,20131400863,100,0,Locality grant,Supplies & Services
Leeds City Council,http://opendatacommunities.org/id/metropolitan-district-council/leeds,12/11/2014,Strategic & Central,LEEDS & MOORTOWN FURNITURE STORE,07/01/2014,20131400864,240,0,Locality grant,Supplies & Services
Leeds City Council,http://opendatacommunities.org/id/metropolitan-district-council/leeds,12/11/2014,Strategic & Central,LEEDS & MOORTOWN FURNITURE STORE,11/06/2013,20131400865,100,0,Locality grant,Supplies & Services
Leeds City Council,http://opendatacommunities.org/id/metropolitan-district-council/leeds,12/11/2014,Citizens & Communities,Leeds 2 Success,03/04/2014,20131400866,"2,557.88",0,Neighbourhood grant,Supplies & Services
Leeds City Council,http://opendatacommunities.org/id/metropolitan-district-council/leeds,12/11/2014,Citizens & Communities,Leeds 2 Success,12/02/2014,20131400867,"2,412.68",0,Neighbourhood grant,Supplies & Services
Leeds City Council,http://opendatacommunities.org/id/metropolitan-district-council/leeds,12/11/2014,Citizens & Communities,Leeds 2 Success,03/10/2013,20131400868,"2,115.79",0,Neighbourhood grant,Supplies & Services
Leeds City Council,http://opendatacommunities.org/id/metropolitan-district-council/leeds,12/11/2014,Strategic & Central,Leeds 4th Girls Brigade,19/11/2013,20131400869,300,0,Locality grant,Supplies & Services
Leeds City Council,http://opendatacommunities.org/id/metropolitan-district-council/leeds,12/11/2014,Environment & Housing,LEEDS ACTION TO CREATE HOMES LTD,18/04/2013,20131400870,"5,000.00",0,Support grant,Supplies & Services
Leeds City Council,http://opendatacommunities.org/id/metropolitan-district-council/leeds,12/11/2014,Citizens & Communities,Leeds AJEX,04/06/2013,20131400871,500,0,Neighbourhood grant,Supplies & Services
Leeds City Council,http://opendatacommunities.org/id/metropolitan-district-council/leeds,12/11/2014,Strategic & Central,Leeds Asylum Seeker Support Network,16/07/2013,20131400872,50,0,Locality grant,Supplies & Services
Leeds City Council,http://opendatacommunities.org/id/metropolitan-district-council/leeds,12/11/2014,Environment & Housing,LEEDS CARERS CENTRE,15/05/2013,20131400873,"8,036.00",0,Support grant,Supplies & Services
Leeds City Council,http://opendatacommunities.org/id/metropolitan-district-council/leeds,12/11/2014,Adult Social Care,LEEDS CARERS CENTRE,05/06/2013,20131400874,"15,000.00",0,Dementia Grant ,Supplies & Services
Leeds City Council,http://opendatacommunities.org/id/metropolitan-district-council/leeds,12/11/2014,Adult Social Care,LEEDS CARERS CENTRE,05/06/2013,20131400875,"12,500.00",0,Dementia Grant ,Supplies & Services
Leeds City Council,http://opendatacommunities.org/id/metropolitan-district-council/leeds,12/11/2014,Environment & Housing,LEEDS CARERS CENTRE,02/12/2013,20131400876,"12,257.67",0,Support grant,Third Party Payments
Leeds City Council,http://opendatacommunities.org/id/metropolitan-district-council/leeds,12/11/2014,Environment & Housing,LEEDS CARERS CENTRE,01/10/2013,20131400877,"12,257.67",0,Support grant,Third Party Payments
Leeds City Council,http://opendatacommunities.org/id/metropolitan-district-council/leeds,12/11/2014,Environment & Housing,LEEDS CARERS CENTRE,10/06/2013,20131400878,"12,257.67",0,Support grant,Third Party Payments
Leeds City Council,http://opendatacommunities.org/id/metropolitan-district-council/leeds,12/11/2014,Environment & Housing,LEEDS CARERS CENTRE,10/06/2013,20131400879,"12,257.67",0,Support grant,Third Party Payments
Leeds City Council,http://opendatacommunities.org/id/metropolitan-district-council/leeds,12/11/2014,Adult Social Care,Leeds Chinese Community Elderley,22/04/2013,20131400880,"4,475.00",0,Luncheon Club grant,Supplies & Services
Leeds City Council,http://opendatacommunities.org/id/metropolitan-district-council/leeds,12/11/2014,Environment & Housing,LEEDS CITIZENS ADVICE BUREAU,02/05/2013,20131400881,"10,767.70",0,Advice agencies grant funding,Supplies & Services
Leeds City Council,http://opendatacommunities.org/id/metropolitan-district-council/leeds,12/11/2014,Environment & Housing,LEEDS CITIZENS ADVICE BUREAU,18/09/2013,20131400882,"181,683.00",0,Advice agencies grant funding,Supplies & Services
Leeds City Council,http://opendatacommunities.org/id/metropolitan-district-council/leeds,12/11/2014,Environment & Housing,LEEDS CITIZENS ADVICE BUREAU,18/04/2013,20131400883,"181,683.00",0,Advice agencies grant funding,Supplies & Services
Leeds City Council,http://opendatacommunities.org/id/metropolitan-district-council/leeds,12/11/2014,Environment & Housing,LEEDS CITIZENS ADVICE BUREAU,17/12/2013,20131400884,"181,686.00",0,Advice agencies grant funding,Supplies & Services
Leeds City Council,http://opendatacommunities.org/id/metropolitan-district-council/leeds,12/11/2014,Environment & Housing,LEEDS CITIZENS ADVICE BUREAU,01/07/2013,20131400885,"181,683.00",0,Advice agencies grant funding,Supplies & Services
Leeds City Council,http://opendatacommunities.org/id/metropolitan-district-council/leeds,12/11/2014,Adult Social Care,LEEDS CITIZENS ADVICE BUREAU,26/03/2013,20131400886,"8,586.00",0,Adult Social Care grant ,Supplies & Services
Leeds City Council,http://opendatacommunities.org/id/metropolitan-district-council/leeds,12/11/2014,Adult Social Care,LEEDS CITIZENS ADVICE BUREAU,14/06/2013,20131400887,"8,586.00",0,Adult Social Care grant ,Supplies & Services
Leeds City Council,http://opendatacommunities.org/id/metropolitan-district-council/leeds,12/11/2014,Adult Social Care,LEEDS CITIZENS ADVICE BUREAU,10/12/2013,20131400888,"8,586.00",0,Adult Social Care grant ,Supplies & Services
Leeds City Council,http://opendatacommunities.org/id/metropolitan-district-council/leeds,12/11/2014,Adult Social Care,LEEDS CITIZENS ADVICE BUREAU,24/09/2013,20131400889,"8,586.00",0,Adult Social Care grant ,Supplies & Services
Leeds City Council,http://opendatacommunities.org/id/metropolitan-district-council/leeds,12/11/2014,Citizens & Communities,LEEDS CITIZENS ADVICE BUREAU,03/10/2013,20131400890,"95,568.00",0,Social welfare grant,Supplies & Services
Leeds City Council,http://opendatacommunities.org/id/metropolitan-district-council/leeds,12/11/2014,Citizens & Communities,Leeds City Credit Union,11/12/2013,20131400891,"45,000.00",0,Social Fund grant,Supplies & Services
Leeds City Council,http://opendatacommunities.org/id/metropolitan-district-council/leeds,12/11/2014,Environment & Housing,Leeds City Credit Union,24/06/2013,20131400892,"1,560.00",0,Green Deal capital grants,Capital Expenditure
Leeds City Council,http://opendatacommunities.org/id/metropolitan-district-council/leeds,12/11/2014,Environment & Housing,Leeds City Credit Union,28/06/2013,20131400893,"161,850.43",0,Green Deal capital grants,Capital Expenditure
Leeds City Council,http://opendatacommunities.org/id/metropolitan-district-council/leeds,12/11/2014,Environment & Housing,Leeds City Credit Union,03/07/2013,20131400894,"20,182.89",0,Green Deal capital grants,Capital Expenditure
Leeds City Council,http://opendatacommunities.org/id/metropolitan-district-council/leeds,12/11/2014,Environment & Housing,Leeds City Credit Union,10/01/2014,20131400895,700,0,Green Deal capital grants,Capital Expenditure
Leeds City Council,http://opendatacommunities.org/id/metropolitan-district-council/leeds,12/11/2014,Environment & Housing,Leeds City Credit Union,10/01/2014,20131400896,198,0,Green Deal capital grants,Capital Expenditure
Leeds City Council,http://opendatacommunities.org/id/metropolitan-district-council/leeds,12/11/2014,Environment & Housing,Leeds City Credit Union,04/02/2014,20131400897,"168,398.00",0,Green Deal capital grants,Capital Expenditure
Leeds City Council,http://opendatacommunities.org/id/metropolitan-district-council/leeds,12/11/2014,Environment & Housing,Leeds City Credit Union,04/02/2014,20131400898,"21,825.00",0,Green Deal capital grants,Capital Expenditure
Leeds City Council,http://opendatacommunities.org/id/metropolitan-district-council/leeds,12/11/2014,Environment & Housing,Leeds City Credit Union,21/06/2013,20131400899,390,0,Green Deal capital grants,Capital Expenditure
Leeds City Council,http://opendatacommunities.org/id/metropolitan-district-council/leeds,12/11/2014,Environment & Housing,Leeds City Credit Union,21/06/2013,20131400900,135,0,Green Deal capital grants,Capital Expenditure
Leeds City Council,http://opendatacommunities.org/id/metropolitan-district-council/leeds,12/11/2014,Environment & Housing,Leeds City Credit Union,24/06/2013,20131400901,"8,580.00",0,Green Deal capital grants,Capital Expenditure
Leeds City Council,http://opendatacommunities.org/id/metropolitan-district-council/leeds,12/11/2014,Environment & Housing,Leeds City Credit Union,24/06/2013,20131400902,"4,719.65",0,Green Deal capital grants,Capital Expenditure
Leeds City Council,http://opendatacommunities.org/id/metropolitan-district-council/leeds,12/11/2014,Citizens & Communities,Leeds City Credit Union - Welfare Fund,27/02/2014,20131400903,"5,000.00",0,Social welfare grant,Supplies & Services
Leeds City Council,http://opendatacommunities.org/id/metropolitan-district-council/leeds,12/11/2014,Citizens & Communities,Leeds City Credit Union - Welfare Fund,25/03/2014,20131400904,"5,000.00",0,Social welfare grant,Supplies & Services
Leeds City Council,http://opendatacommunities.org/id/metropolitan-district-council/leeds,12/11/2014,Citizens & Communities,Leeds City Credit Union - Welfare Fund,19/08/2013,20131400905,"2,000.00",0,Fuel allowances funding,Supplies & Services
Leeds City Council,http://opendatacommunities.org/id/metropolitan-district-council/leeds,12/11/2014,Citizens & Communities,Leeds City Credit Union - Welfare Fund,10/09/2013,20131400906,"2,000.00",0,Fuel allowances funding,Supplies & Services
Leeds City Council,http://opendatacommunities.org/id/metropolitan-district-council/leeds,12/11/2014,Citizens & Communities,Leeds City Credit Union - Welfare Fund,08/07/2013,20131400907,"2,000.00",0,Fuel allowances funding,Supplies & Services
Leeds City Council,http://opendatacommunities.org/id/metropolitan-district-council/leeds,12/11/2014,Citizens & Communities,Leeds City Credit Union - Welfare Fund,03/06/2013,20131400908,"2,000.00",0,Fuel allowances funding,Supplies & Services
Leeds City Council,http://opendatacommunities.org/id/metropolitan-district-council/leeds,12/11/2014,Citizens & Communities,Leeds City Credit Union - Welfare Fund,04/02/2014,20131400909,"5,000.00",0,Social welfare grant,Supplies & Services
Leeds City Council,http://opendatacommunities.org/id/metropolitan-district-council/leeds,12/11/2014,Citizens & Communities,Leeds City Credit Union - Welfare Fund,20/12/2013,20131400910,"5,000.00",0,Social welfare grant,Supplies & Services
Leeds City Council,http://opendatacommunities.org/id/metropolitan-district-council/leeds,12/11/2014,Citizens & Communities,Leeds City Credit Union - Welfare Fund,24/09/2013,20131400911,"3,000.00",0,Fuel allowances funding,Supplies & Services
Leeds City Council,http://opendatacommunities.org/id/metropolitan-district-council/leeds,12/11/2014,Citizens & Communities,Leeds City Credit Union - Welfare Fund,04/11/2013,20131400912,"3,000.00",0,Fuel allowances funding,Supplies & Services
Leeds City Council,http://opendatacommunities.org/id/metropolitan-district-council/leeds,12/11/2014,Citizens & Communities,Leeds City Credit Union - Welfare Fund,10/10/2013,20131400913,"3,000.00",0,Fuel allowances funding,Supplies & Services
